{"text_format":"1","workbook":"xlsx","n_sheets":1,"sheets":["ورقة1"],"not_rendered":{"charts":0,"images":0,"macros":1,"external_links":0,"defined_names":0,"comments":0,"pivot_tables":0},"unopened":[],"bounds":{"document_bytes":16777216,"sheet_cells":100000,"rows_first":2000,"rows_last":500,"rows_between":2000,"halvings":0,"cell_chars":16384,"cell_head_chars":4096},"cells_cut":0,"cells_raw":0,"read":"whole","date_system":"1900"}

{"sheet":"ورقة1","index":0,"n_rows":540,"n_cols":25,"rows_kept":540,"cut":false,"hidden":false,"merged":[[0,19,0,21],[0,1,0,3],[0,4,0,6],[0,7,0,9],[0,10,0,12],[0,13,0,15],[0,16,0,18]]}
["اسم الطالب","القران ",null,null,"اسلامية ",null,null,"اللغة العربية ",null,null,"انجليزي",null,null,"رياضيات",null,null,"العلوم ",null,null,"اجتماعيات",null,null,"مجموع الكلي","معدل ","ترتيب"]
["طالب 1",16,11,27,12,20,32,12,19,31,12,26,38,18,24,42,16,18,34,14,21,35,239,{"$f":"W2/350","v":0.68285714285714283},{"$f":"IF(W2=0,\"\",IF(COUNTIF(W$2:$W2,W2)=1,Order_Salim(RANK(W2,$W$2:$W$500)),Order_Salim(RANK(W2,$W$2:$W$500))&\" مكرّر  \"))","v":"الثّالث عشر"}]
["طالب2",16,22,38,14,18,32,14,25,39,12,17,29,12,15,27,12,15,27,16,12,28,220,{"$f":"W3/350","v":0.62857142857142856},{"$f":"IF(W3=0,\"\",IF(COUNTIF(W$2:$W3,W3)=1,Order_Salim(RANK(W3,$W$2:$W$500)),Order_Salim(RANK(W3,$W$2:$W$500))&\" مكرّر  \"))","v":"السّابع عشر"}]
["طالب 3",16,10,26,14,14,28,10,21,31,12,23,35,18,15,33,12,17,29,14,24,38,220,0.62857142857142856,{"$f":"IF(W4=0,\"\",IF(COUNTIF(W$2:$W4,W4)=1,Order_Salim(RANK(W4,$W$2:$W$500)),Order_Salim(RANK(W4,$W$2:$W$500))&\" مكرّر  \"))","v":"السّابع عشر مكرّر  "}]
["طالب 4",14,8,22,14,15,29,8,18,26,8,15,23,18,17,35,14,8,22,14,13,27,184,0.52571428571428569,{"$f":"IF(W5=0,\"\",IF(COUNTIF(W$2:$W5,W5)=1,Order_Salim(RANK(W5,$W$2:$W$500)),Order_Salim(RANK(W5,$W$2:$W$500))&\" مكرّر  \"))","v":"السّادس والعشرون"}]
["طالب 5",20,30,50,20,29,49,20,29,49,18,27,45,20,29,49,20,24,44,18,30,48,334,0.95428571428571429,{"$f":"IF(W6=0,\"\",IF(COUNTIF(W$2:$W6,W6)=1,Order_Salim(RANK(W6,$W$2:$W$500)),Order_Salim(RANK(W6,$W$2:$W$500))&\" مكرّر  \"))","v":"الأوّل"}]
["طالب 6",14,9,23,10,18,28,6,16,22,16,7,23,16,15,31,14,9,23,12,12,24,174,0.49714285714285716,{"$f":"IF(W7=0,\"\",IF(COUNTIF(W$2:$W7,W7)=1,Order_Salim(RANK(W7,$W$2:$W$500)),Order_Salim(RANK(W7,$W$2:$W$500))&\" مكرّر  \"))","v":"الثّلاثون"}]
["طالب 7",14,11,25,12,7,19,10,8,18,10,8,18,12,6,18,10,16,26,14,11,25,149,0.42571428571428571,{"$f":"IF(W8=0,\"\",IF(COUNTIF(W$2:$W8,W8)=1,Order_Salim(RANK(W8,$W$2:$W$500)),Order_Salim(RANK(W8,$W$2:$W$500))&\" مكرّر  \"))","v":"السّادس والثّلاثون"}]
["طالب 8",20,30,50,18,27,45,16,26,42,18,28,46,20,27,47,18,19,37,18,21,39,306,0.87428571428571433,{"$f":"IF(W9=0,\"\",IF(COUNTIF(W$2:$W9,W9)=1,Order_Salim(RANK(W9,$W$2:$W$500)),Order_Salim(RANK(W9,$W$2:$W$500))&\" مكرّر  \"))","v":"الرّابع"}]
["طالب 9",18,30,48,16,28,44,16,25,41,12,28,40,12,25,37,12,21,33,16,28,44,287,0.82,{"$f":"IF(W10=0,\"\",IF(COUNTIF(W$2:$W10,W10)=1,Order_Salim(RANK(W10,$W$2:$W$500)),Order_Salim(RANK(W10,$W$2:$W$500))&\" مكرّر  \"))","v":"السّابع"}]
["طالب 10",10,10,20,10,11,21,8,10,18,10,8,18,10,6,16,12,15,27,16,10,26,146,0.41714285714285715,{"$f":"IF(W11=0,\"\",IF(COUNTIF(W$2:$W11,W11)=1,Order_Salim(RANK(W11,$W$2:$W$500)),Order_Salim(RANK(W11,$W$2:$W$500))&\" مكرّر  \"))","v":"الثّامن والثّلاثون"}]
["طالب 11",12,13,25,10,13,23,12,17,29,14,12,26,8,8,16,12,19,31,14,6,20,170,0.48571428571428571,{"$f":"IF(W12=0,\"\",IF(COUNTIF(W$2:$W12,W12)=1,Order_Salim(RANK(W12,$W$2:$W$500)),Order_Salim(RANK(W12,$W$2:$W$500))&\" مكرّر  \"))","v":"الثّاني والثّلاثون"}]
["طالب 12",14,10,24,10,15,25,10,13,23,12,14,26,12,15,27,10,20,30,14,14,28,183,0.52285714285714291,{"$f":"IF(W13=0,\"\",IF(COUNTIF(W$2:$W13,W13)=1,Order_Salim(RANK(W13,$W$2:$W$500)),Order_Salim(RANK(W13,$W$2:$W$500))&\" مكرّر  \"))","v":"السّابع والعشرون"}]
["طالب 13",12,9,21,6,8,14,6,9,15,8,11,19,8,6,14,12,10,22,14,9,23,128,0.36571428571428571,{"$f":"IF(W14=0,\"\",IF(COUNTIF(W$2:$W14,W14)=1,Order_Salim(RANK(W14,$W$2:$W$500)),Order_Salim(RANK(W14,$W$2:$W$500))&\" مكرّر  \"))","v":"الأربعون"}]
["طالب 14",20,24,44,16,24,40,18,20,38,16,26,42,16,18,34,12,11,23,16,20,36,257,0.73428571428571432,{"$f":"IF(W15=0,\"\",IF(COUNTIF(W$2:$W15,W15)=1,Order_Salim(RANK(W15,$W$2:$W$500)),Order_Salim(RANK(W15,$W$2:$W$500))&\" مكرّر  \"))","v":"الثّاني عشر"}]
["طالب 15",20,18,38,18,26,44,16,27,43,14,27,41,12,16,28,16,15,31,18,30,48,273,0.78,{"$f":"IF(W16=0,\"\",IF(COUNTIF(W$2:$W16,W16)=1,Order_Salim(RANK(W16,$W$2:$W$500)),Order_Salim(RANK(W16,$W$2:$W$500))&\" مكرّر  \"))","v":"التّاسع"}]
["طالب 16",14,5,19,12,10,22,10,11,21,12,12,24,14,10,24,14,12,26,14,14,28,164,0.46857142857142858,{"$f":"IF(W17=0,\"\",IF(COUNTIF(W$2:$W17,W17)=1,Order_Salim(RANK(W17,$W$2:$W$500)),Order_Salim(RANK(W17,$W$2:$W$500))&\" مكرّر  \"))","v":"الخامس والثّلاثون"}]
["طالب 17",16,12,28,14,21,35,12,24,36,14,13,27,16,15,31,12,22,34,16,26,42,233,0.6657142857142857,{"$f":"IF(W18=0,\"\",IF(COUNTIF(W$2:$W18,W18)=1,Order_Salim(RANK(W18,$W$2:$W$500)),Order_Salim(RANK(W18,$W$2:$W$500))&\" مكرّر  \"))","v":"الخامس عشر"}]
["طالب 18",14,8,22,10,11,21,8,7,15,10,10,20,10,2,12,8,15,23,10,3,13,126,0.36,{"$f":"IF(W19=0,\"\",IF(COUNTIF(W$2:$W19,W19)=1,Order_Salim(RANK(W19,$W$2:$W$500)),Order_Salim(RANK(W19,$W$2:$W$500))&\" مكرّر  \"))","v":"الحادي والأربعون"}]
["طالب 19",16,15,31,16,26,42,12,19,31,12,13,25,18,20,38,12,15,27,18,26,44,238,0.68,{"$f":"IF(W20=0,\"\",IF(COUNTIF(W$2:$W20,W20)=1,Order_Salim(RANK(W20,$W$2:$W$500)),Order_Salim(RANK(W20,$W$2:$W$500))&\" مكرّر  \"))","v":"الرّابع عشر"}]
["طالب 20",14,8,22,6,11,17,10,12,22,12,10,22,12,15,27,12,16,28,14,13,27,165,0.47142857142857142,{"$f":"IF(W21=0,\"\",IF(COUNTIF(W$2:$W21,W21)=1,Order_Salim(RANK(W21,$W$2:$W$500)),Order_Salim(RANK(W21,$W$2:$W$500))&\" مكرّر  \"))","v":"الثّالث والثّلاثون"}]
["طالب 21",20,30,50,20,27,47,18,26,44,20,30,50,20,28,48,20,20,40,18,30,48,327,0.93428571428571427,{"$f":"IF(W22=0,\"\",IF(COUNTIF(W$2:$W22,W22)=1,Order_Salim(RANK(W22,$W$2:$W$500)),Order_Salim(RANK(W22,$W$2:$W$500))&\" مكرّر  \"))","v":"الثّاني"}]
["طالب 22",20,29,49,18,27,45,16,25,41,18,25,43,14,10,24,12,18,30,16,21,37,269,0.76857142857142857,{"$f":"IF(W23=0,\"\",IF(COUNTIF(W$2:$W23,W23)=1,Order_Salim(RANK(W23,$W$2:$W$500)),Order_Salim(RANK(W23,$W$2:$W$500))&\" مكرّر  \"))","v":"العاشر"}]
["طالب 23",12,5,17,10,14,24,10,10,20,14,15,29,18,17,35,12,20,32,14,17,31,188,0.53714285714285714,{"$f":"IF(W24=0,\"\",IF(COUNTIF(W$2:$W24,W24)=1,Order_Salim(RANK(W24,$W$2:$W$500)),Order_Salim(RANK(W24,$W$2:$W$500))&\" مكرّر  \"))","v":"الثّالث والعشرون"}]
["طالب 24",16,9,25,12,21,33,12,12,24,16,11,27,18,15,33,16,21,37,12,9,21,200,0.5714285714285714,{"$f":"IF(W25=0,\"\",IF(COUNTIF(W$2:$W25,W25)=1,Order_Salim(RANK(W25,$W$2:$W$500)),Order_Salim(RANK(W25,$W$2:$W$500))&\" مكرّر  \"))","v":"الثّاني والعشرون"}]
["طالب 25",18,16,34,12,21,33,14,17,31,14,10,24,14,5,19,12,15,27,14,20,34,202,0.57714285714285718,{"$f":"IF(W26=0,\"\",IF(COUNTIF(W$2:$W26,W26)=1,Order_Salim(RANK(W26,$W$2:$W$500)),Order_Salim(RANK(W26,$W$2:$W$500))&\" مكرّر  \"))","v":"الحادي والعشرون"}]
["طالب 26",20,28,48,18,29,47,16,27,43,16,26,42,20,18,38,16,20,36,18,28,46,300,0.8571428571428571,{"$f":"IF(W27=0,\"\",IF(COUNTIF(W$2:$W27,W27)=1,Order_Salim(RANK(W27,$W$2:$W$500)),Order_Salim(RANK(W27,$W$2:$W$500))&\" مكرّر  \"))","v":"الخامس"}]
["طالب 27",18,18,36,16,20,36,14,22,36,14,19,33,14,16,30,14,15,29,14,17,31,231,0.66,{"$f":"IF(W28=0,\"\",IF(COUNTIF(W$2:$W28,W28)=1,Order_Salim(RANK(W28,$W$2:$W$500)),Order_Salim(RANK(W28,$W$2:$W$500))&\" مكرّر  \"))","v":"السّادس عشر"}]
["طالب 28",18,24,42,18,24,42,14,25,39,12,23,35,18,19,37,16,20,36,18,30,48,279,0.79714285714285715,{"$f":"IF(W29=0,\"\",IF(COUNTIF(W$2:$W29,W29)=1,Order_Salim(RANK(W29,$W$2:$W$500)),Order_Salim(RANK(W29,$W$2:$W$500))&\" مكرّر  \"))","v":"الثّامن"}]
["طالب 29",20,23,43,14,21,35,10,23,33,16,26,42,18,24,42,12,22,34,16,21,37,266,0.76,{"$f":"IF(W30=0,\"\",IF(COUNTIF(W$2:$W30,W30)=1,Order_Salim(RANK(W30,$W$2:$W$500)),Order_Salim(RANK(W30,$W$2:$W$500))&\" مكرّر  \"))","v":"الحادي عشر"}]
["طالب 30",20,30,50,18,27,45,14,19,33,18,29,47,16,26,42,16,20,36,16,25,41,294,0.84,{"$f":"IF(W31=0,\"\",IF(COUNTIF(W$2:$W31,W31)=1,Order_Salim(RANK(W31,$W$2:$W$500)),Order_Salim(RANK(W31,$W$2:$W$500))&\" مكرّر  \"))","v":"السّادس"}]
["طالب 31",14,13,27,10,11,21,10,12,22,14,10,24,18,7,25,10,17,27,12,13,25,171,0.48857142857142855,{"$f":"IF(W32=0,\"\",IF(COUNTIF(W$2:$W32,W32)=1,Order_Salim(RANK(W32,$W$2:$W$500)),Order_Salim(RANK(W32,$W$2:$W$500))&\" مكرّر  \"))","v":"الحادي والثّلاثون"}]
["طالب 32",16,11,27,12,23,35,10,19,29,10,7,17,16,18,34,12,21,33,12,17,29,204,0.58285714285714285,{"$f":"IF(W33=0,\"\",IF(COUNTIF(W$2:$W33,W33)=1,Order_Salim(RANK(W33,$W$2:$W$500)),Order_Salim(RANK(W33,$W$2:$W$500))&\" مكرّر  \"))","v":"التّاسع عشر"}]
["طالب 33",14,9,23,14,20,34,10,20,30,10,19,29,16,17,33,12,20,32,14,9,23,204,0.58285714285714285,{"$f":"IF(W34=0,\"\",IF(COUNTIF(W$2:$W34,W34)=1,Order_Salim(RANK(W34,$W$2:$W$500)),Order_Salim(RANK(W34,$W$2:$W$500))&\" مكرّر  \"))","v":"التّاسع عشر مكرّر  "}]
["طالب 34",14,6,20,16,17,33,8,16,24,8,8,16,18,16,34,12,12,24,14,15,29,180,0.51428571428571423,{"$f":"IF(W35=0,\"\",IF(COUNTIF(W$2:$W35,W35)=1,Order_Salim(RANK(W35,$W$2:$W$500)),Order_Salim(RANK(W35,$W$2:$W$500))&\" مكرّر  \"))","v":"الثّامن والعشرون"}]
["طالب 35",2,"غ ",2,2,"غ ",2,0," غ",0,0,"غ ",0,4,"غ ",4,2," غ",2,2," غ",2,12,3.4285714285714287E-2,{"$f":"IF(W36=0,\"\",IF(COUNTIF(W$2:$W36,W36)=1,Order_Salim(RANK(W36,$W$2:$W$500)),Order_Salim(RANK(W36,$W$2:$W$500))&\" مكرّر  \"))","v":"الثّاني والأربعون"}]
["طالب 36",10,9,19,8,15,23,6,15,21,14,11,25,12,2,14,8,8,16,14,12,26,144,0.41142857142857142,{"$f":"IF(W37=0,\"\",IF(COUNTIF(W$2:$W37,W37)=1,Order_Salim(RANK(W37,$W$2:$W$500)),Order_Salim(RANK(W37,$W$2:$W$500))&\" مكرّر  \"))","v":"التّاسع والثّلاثون"}]
["طالب 37",20,28,48,18,29,47,18,30,48,18,30,48,20,27,47,18,22,40,20,27,47,325,0.9285714285714286,{"$f":"IF(W38=0,\"\",IF(COUNTIF(W$2:$W38,W38)=1,Order_Salim(RANK(W38,$W$2:$W$500)),Order_Salim(RANK(W38,$W$2:$W$500))&\" مكرّر  \"))","v":"الثّالث"}]
["طالب 38",14,9,23,6,12,18,12,15,27,10,9,19,10,9,19,8,11,19,10,13,23,148,0.42285714285714288,{"$f":"IF(W39=0,\"\",IF(COUNTIF(W$2:$W39,W39)=1,Order_Salim(RANK(W39,$W$2:$W$500)),Order_Salim(RANK(W39,$W$2:$W$500))&\" مكرّر  \"))","v":"السّابع والثّلاثون"}]
["طالب 39",14,8,22,12,11,23,10,16,26,12,3,15,18,16,34,12,15,27,14,16,30,177,0.50571428571428567,{"$f":"IF(W40=0,\"\",IF(COUNTIF(W$2:$W40,W40)=1,Order_Salim(RANK(W40,$W$2:$W$500)),Order_Salim(RANK(W40,$W$2:$W$500))&\" مكرّر  \"))","v":"التّاسع والعشرون"}]
["طالب 40",16,14,30,16,18,34,6,18,24,10,20,30,14,4,18,12,18,30,14,5,19,185,0.52857142857142858,{"$f":"IF(W41=0,\"\",IF(COUNTIF(W$2:$W41,W41)=1,Order_Salim(RANK(W41,$W$2:$W$500)),Order_Salim(RANK(W41,$W$2:$W$500))&\" مكرّر  \"))","v":"الخامس والعشرون"}]
["طالب 41",16,10,26,14,21,35,12,11,23,12,10,22,14,6,20,10,8,18,14,7,21,165,0.47142857142857142,{"$f":"IF(W42=0,\"\",IF(COUNTIF(W$2:$W42,W42)=1,Order_Salim(RANK(W42,$W$2:$W$500)),Order_Salim(RANK(W42,$W$2:$W$500))&\" مكرّر  \"))","v":"الثّالث والثّلاثون مكرّر  "}]
["طالب 42",12,10,22,18,24,42,6,18,24,10,19,29,12,5,17,12,15,27,14,13,27,188,0.53714285714285714,{"$f":"IF(W43=0,\"\",IF(COUNTIF(W$2:$W43,W43)=1,Order_Salim(RANK(W43,$W$2:$W$500)),Order_Salim(RANK(W43,$W$2:$W$500))&\" مكرّر  \"))","v":"الثّالث والعشرون مكرّر  "}]
["طالب 43",null,null,null,null,null,null,null,null,null,null,null,null,null,null,null,null,null,null,null,null,null,{"$f":"SUM(D44,G44,J44,M44,P44,S44,V44)","v":0},0,{"$f":"IF(W44=0,\"\",IF(COUNTIF(W$2:$W44,W44)=1,Order_Salim(RANK(W44,$W$2:$W$500)),Order_Salim(RANK(W44,$W$2:$W$500))&\" مكرّر  \"))","v":""}]
["طالب 44",null,null,null,null,null,null,null,null,null,null,null,null,null,null,null,null,null,null,null,null,null,0,0,{"$f":"IF(W45=0,\"\",IF(COUNTIF(W$2:$W45,W45)=1,Order_Salim(RANK(W45,$W$2:$W$500)),Order_Salim(RANK(W45,$W$2:$W$500))&\" مكرّر  \"))","v":""}]
["طالب 45",null,null,null,null,null,null,null,null,null,null,null,null,null,null,null,null,null,null,null,null,null,0,0,{"$f":"IF(W46=0,\"\",IF(COUNTIF(W$2:$W46,W46)=1,Order_Salim(RANK(W46,$W$2:$W$500)),Order_Salim(RANK(W46,$W$2:$W$500))&\" مكرّر  \"))","v":""}]
["طالب 46",null,null,null,null,null,null,null,null,null,null,null,null,null,null,null,null,null,null,null,null,null,0,0,{"$f":"IF(W47=0,\"\",IF(COUNTIF(W$2:$W47,W47)=1,Order_Salim(RANK(W47,$W$2:$W$500)),Order_Salim(RANK(W47,$W$2:$W$500))&\" مكرّر  \"))","v":""}]
["طالب 47",null,null,null,null,null,null,null,null,null,null,null,null,null,null,null,null,null,null,null,null,null,0,0,{"$f":"IF(W48=0,\"\",IF(COUNTIF(W$2:$W48,W48)=1,Order_Salim(RANK(W48,$W$2:$W$500)),Order_Salim(RANK(W48,$W$2:$W$500))&\" مكرّر  \"))","v":""}]
["طالب 48",null,null,null,null,null,null,null,null,null,null,null,null,null,null,null,null,null,null,null,null,null,0,0,{"$f":"IF(W49=0,\"\",IF(COUNTIF(W$2:$W49,W49)=1,Order_Salim(RANK(W49,$W$2:$W$500)),Order_Salim(RANK(W49,$W$2:$W$500))&\" مكرّر  \"))","v":""}]
["طالب 49",null,null,null,null,null,null,null,null,null,null,null,null,null,null,null,null,null,null,null,null,null,0,0,{"$f":"IF(W50=0,\"\",IF(COUNTIF(W$2:$W50,W50)=1,Order_Salim(RANK(W50,$W$2:$W$500)),Order_Salim(RANK(W50,$W$2:$W$500))&\" مكرّر  \"))","v":""}]
["طالب 50",null,null,null,null,null,null,null,null,null,null,null,null,null,null,null,null,null,null,null,null,null,0,0,{"$f":"IF(W51=0,\"\",IF(COUNTIF(W$2:$W51,W51)=1,Order_Salim(RANK(W51,$W$2:$W$500)),Order_Salim(RANK(W51,$W$2:$W$500))&\" مكرّر  \"))","v":""}]
["طالب 51",null,null,null,null,null,null,null,null,null,null,null,null,null,null,null,null,null,null,null,null,null,0,0,{"$f":"IF(W52=0,\"\",IF(COUNTIF(W$2:$W52,W52)=1,Order_Salim(RANK(W52,$W$2:$W$500)),Order_Salim(RANK(W52,$W$2:$W$500))&\" مكرّر  \"))","v":""}]
["طالب 52",null,null,null,null,null,null,null,null,null,null,null,null,null,null,null,null,null,null,null,null,null,0,0,{"$f":"IF(W53=0,\"\",IF(COUNTIF(W$2:$W53,W53)=1,Order_Salim(RANK(W53,$W$2:$W$500)),Order_Salim(RANK(W53,$W$2:$W$500))&\" مكرّر  \"))","v":""}]
["طالب 53",null,null,null,null,null,null,null,null,null,null,null,null,null,null,null,null,null,null,null,null,null,0,0,{"$f":"IF(W54=0,\"\",IF(COUNTIF(W$2:$W54,W54)=1,Order_Salim(RANK(W54,$W$2:$W$500)),Order_Salim(RANK(W54,$W$2:$W$500))&\" مكرّر  \"))","v":""}]
["طالب 54",null,null,null,null,null,null,null,null,null,null,null,null,null,null,null,null,null,null,null,null,null,0,0,{"$f":"IF(W55=0,\"\",IF(COUNTIF(W$2:$W55,W55)=1,Order_Salim(RANK(W55,$W$2:$W$500)),Order_Salim(RANK(W55,$W$2:$W$500))&\" مكرّر  \"))","v":""}]
["طالب 55",null,null,null,null,null,null,null,null,null,null,null,null,null,null,null,null,null,null,null,null,null,0,0,{"$f":"IF(W56=0,\"\",IF(COUNTIF(W$2:$W56,W56)=1,Order_Salim(RANK(W56,$W$2:$W$500)),Order_Salim(RANK(W56,$W$2:$W$500))&\" مكرّر  \"))","v":""}]
["طالب 56",null,null,null,null,null,null,null,null,null,null,null,null,null,null,null,null,null,null,null,null,null,0,0,{"$f":"IF(W57=0,\"\",IF(COUNTIF(W$2:$W57,W57)=1,Order_Salim(RANK(W57,$W$2:$W$500)),Order_Salim(RANK(W57,$W$2:$W$500))&\" مكرّر  \"))","v":""}]
["طالب 57",null,null,null,null,null,null,null,null,null,null,null,null,null,null,null,null,null,null,null,null,null,0,0,{"$f":"IF(W58=0,\"\",IF(COUNTIF(W$2:$W58,W58)=1,Order_Salim(RANK(W58,$W$2:$W$500)),Order_Salim(RANK(W58,$W$2:$W$500))&\" مكرّر  \"))","v":""}]
["طالب 58",null,null,null,null,null,null,null,null,null,null,null,null,null,null,null,null,null,null,null,null,null,0,0,{"$f":"IF(W59=0,\"\",IF(COUNTIF(W$2:$W59,W59)=1,Order_Salim(RANK(W59,$W$2:$W$500)),Order_Salim(RANK(W59,$W$2:$W$500))&\" مكرّر  \"))","v":""}]
["طالب 59",null,null,null,null,null,null,null,null,null,null,null,null,null,null,null,null,null,null,null,null,null,0,0,{"$f":"IF(W60=0,\"\",IF(COUNTIF(W$2:$W60,W60)=1,Order_Salim(RANK(W60,$W$2:$W$500)),Order_Salim(RANK(W60,$W$2:$W$500))&\" مكرّر  \"))","v":""}]
["طالب 60",null,null,null,null,null,null,null,null,null,null,null,null,null,null,null,null,null,null,null,null,null,0,0,{"$f":"IF(W61=0,\"\",IF(COUNTIF(W$2:$W61,W61)=1,Order_Salim(RANK(W61,$W$2:$W$500)),Order_Salim(RANK(W61,$W$2:$W$500))&\" مكرّر  \"))","v":""}]
["طالب 61",null,null,null,null,null,null,null,null,null,null,null,null,null,null,null,null,null,null,null,null,null,{"$f":"SUM(D62,G62,J62,M62,P62,S62,V62)","v":0},0,{"$f":"IF(W62=0,\"\",IF(COUNTIF(W$2:$W62,W62)=1,Order_Salim(RANK(W62,$W$2:$W$500)),Order_Salim(RANK(W62,$W$2:$W$500))&\" مكرّر  \"))","v":""}]
["طالب 62",null,null,null,null,null,null,null,null,null,null,null,null,null,null,null,null,null,null,null,null,null,{"$f":"SUM(D63,G63,J63,M63,P63,S63,V63)","v":0},0,{"$f":"IF(W63=0,\"\",IF(COUNTIF(W$2:$W63,W63)=1,Order_Salim(RANK(W63,$W$2:$W$500)),Order_Salim(RANK(W63,$W$2:$W$500))&\" مكرّر  \"))","v":""}]
["طالب 63",null,null,null,null,null,null,null,null,null,null,null,null,null,null,null,null,null,null,null,null,null,0,0,{"$f":"IF(W64=0,\"\",IF(COUNTIF(W$2:$W64,W64)=1,Order_Salim(RANK(W64,$W$2:$W$500)),Order_Salim(RANK(W64,$W$2:$W$500))&\" مكرّر  \"))","v":""}]
["طالب 64",null,null,null,null,null,null,null,null,null,null,null,null,null,null,null,null,null,null,null,null,null,0,0,{"$f":"IF(W65=0,\"\",IF(COUNTIF(W$2:$W65,W65)=1,Order_Salim(RANK(W65,$W$2:$W$500)),Order_Salim(RANK(W65,$W$2:$W$500))&\" مكرّر  \"))","v":""}]
["طالب 65",null,null,null,null,null,null,null,null,null,null,null,null,null,null,null,null,null,null,null,null,null,0,0,{"$f":"IF(W66=0,\"\",IF(COUNTIF(W$2:$W66,W66)=1,Order_Salim(RANK(W66,$W$2:$W$500)),Order_Salim(RANK(W66,$W$2:$W$500))&\" مكرّر  \"))","v":""}]
["طالب 66",null,null,null,null,null,null,null,null,null,null,null,null,null,null,null,null,null,null,null,null,null,0,{"$f":"W67/350","v":0},{"$f":"IF(W67=0,\"\",IF(COUNTIF(W$2:$W67,W67)=1,Order_Salim(RANK(W67,$W$2:$W$500)),Order_Salim(RANK(W67,$W$2:$W$500))&\" مكرّر  \"))","v":""}]
["طالب 67",null,null,null,null,null,null,null,null,null,null,null,null,null,null,null,null,null,null,null,null,null,0,0,{"$f":"IF(W68=0,\"\",IF(COUNTIF(W$2:$W68,W68)=1,Order_Salim(RANK(W68,$W$2:$W$500)),Order_Salim(RANK(W68,$W$2:$W$500))&\" مكرّر  \"))","v":""}]
["طالب 68",null,null,null,null,null,null,null,null,null,null,null,null,null,null,null,null,null,null,null,null,null,0,0,{"$f":"IF(W69=0,\"\",IF(COUNTIF(W$2:$W69,W69)=1,Order_Salim(RANK(W69,$W$2:$W$500)),Order_Salim(RANK(W69,$W$2:$W$500))&\" مكرّر  \"))","v":""}]
["طالب 69",null,null,null,null,null,null,null,null,null,null,null,null,null,null,null,null,null,null,null,null,null,0,0,{"$f":"IF(W70=0,\"\",IF(COUNTIF(W$2:$W70,W70)=1,Order_Salim(RANK(W70,$W$2:$W$500)),Order_Salim(RANK(W70,$W$2:$W$500))&\" مكرّر  \"))","v":""}]
["طالب 70",null,null,null,null,null,null,null,null,null,null,null,null,null,null,null,null,null,null,null,null,null,0,0,{"$f":"IF(W71=0,\"\",IF(COUNTIF(W$2:$W71,W71)=1,Order_Salim(RANK(W71,$W$2:$W$500)),Order_Salim(RANK(W71,$W$2:$W$500))&\" مكرّر  \"))","v":""}]
["طالب 71",null,null,null,null,null,null,null,null,null,null,null,null,null,null,null,null,null,null,null,null,null,0,0,{"$f":"IF(W72=0,\"\",IF(COUNTIF(W$2:$W72,W72)=1,Order_Salim(RANK(W72,$W$2:$W$500)),Order_Salim(RANK(W72,$W$2:$W$500))&\" مكرّر  \"))","v":""}]
["طالب 72",null,null,null,null,null,null,null,null,null,null,null,null,null,null,null,null,null,null,null,null,null,0,0,{"$f":"IF(W73=0,\"\",IF(COUNTIF(W$2:$W73,W73)=1,Order_Salim(RANK(W73,$W$2:$W$500)),Order_Salim(RANK(W73,$W$2:$W$500))&\" مكرّر  \"))","v":""}]
["طالب 73",null,null,null,null,null,null,null,null,null,null,null,null,null,null,null,null,null,null,null,null,null,0,0,{"$f":"IF(W74=0,\"\",IF(COUNTIF(W$2:$W74,W74)=1,Order_Salim(RANK(W74,$W$2:$W$500)),Order_Salim(RANK(W74,$W$2:$W$500))&\" مكرّر  \"))","v":""}]
["طالب 74",null,null,null,null,null,null,null,null,null,null,null,null,null,null,null,null,null,null,null,null,null,0,0,{"$f":"IF(W75=0,\"\",IF(COUNTIF(W$2:$W75,W75)=1,Order_Salim(RANK(W75,$W$2:$W$500)),Order_Salim(RANK(W75,$W$2:$W$500))&\" مكرّر  \"))","v":""}]
[null,null,null,null,null,null,null,null,null,null,null,null,null,null,null,null,null,null,null,null,null,null,0,0,{"$f":"IF(W76=0,\"\",IF(COUNTIF(W$2:$W76,W76)=1,Order_Salim(RANK(W76,$W$2:$W$500)),Order_Salim(RANK(W76,$W$2:$W$500))&\" مكرّر  \"))","v":""}]
[null,null,null,null,null,null,null,null,null,null,null,null,null,null,null,null,null,null,null,null,null,null,0,0,{"$f":"IF(W77=0,\"\",IF(COUNTIF(W$2:$W77,W77)=1,Order_Salim(RANK(W77,$W$2:$W$500)),Order_Salim(RANK(W77,$W$2:$W$500))&\" مكرّر  \"))","v":""}]
[null,null,null,null,null,null,null,null,null,null,null,null,null,null,null,null,null,null,null,null,null,null,0,0,{"$f":"IF(W78=0,\"\",IF(COUNTIF(W$2:$W78,W78)=1,Order_Salim(RANK(W78,$W$2:$W$500)),Order_Salim(RANK(W78,$W$2:$W$500))&\" مكرّر  \"))","v":""}]
[null,null,null,null,null,null,null,null,null,null,null,null,null,null,null,null,null,null,null,null,null,null,0,0,{"$f":"IF(W79=0,\"\",IF(COUNTIF(W$2:$W79,W79)=1,Order_Salim(RANK(W79,$W$2:$W$500)),Order_Salim(RANK(W79,$W$2:$W$500))&\" مكرّر  \"))","v":""}]
[null,null,null,null,null,null,null,null,null,null,null,null,null,null,null,null,null,null,null,null,null,null,0,0,{"$f":"IF(W80=0,\"\",IF(COUNTIF(W$2:$W80,W80)=1,Order_Salim(RANK(W80,$W$2:$W$500)),Order_Salim(RANK(W80,$W$2:$W$500))&\" مكرّر  \"))","v":""}]
[null,null,null,null,null,null,null,null,null,null,null,null,null,null,null,null,null,null,null,null,null,null,0,0,{"$f":"IF(W81=0,\"\",IF(COUNTIF(W$2:$W81,W81)=1,Order_Salim(RANK(W81,$W$2:$W$500)),Order_Salim(RANK(W81,$W$2:$W$500))&\" مكرّر  \"))","v":""}]
[null,null,null,null,null,null,null,null,null,null,null,null,null,null,null,null,null,null,null,null,null,null,{"$f":"SUM(D82,G82,J82,M82,P82,S82,V82)","v":0},0,{"$f":"IF(W82=0,\"\",IF(COUNTIF(W$2:$W82,W82)=1,Order_Salim(RANK(W82,$W$2:$W$500)),Order_Salim(RANK(W82,$W$2:$W$500))&\" مكرّر  \"))","v":""}]
[null,null,null,null,null,null,null,null,null,null,null,null,null,null,null,null,null,null,null,null,null,null,{"$f":"SUM(D83,G83,J83,M83,P83,S83,V83)","v":0},0,{"$f":"IF(W83=0,\"\",IF(COUNTIF(W$2:$W83,W83)=1,Order_Salim(RANK(W83,$W$2:$W$500)),Order_Salim(RANK(W83,$W$2:$W$500))&\" مكرّر  \"))","v":""}]
[null,null,null,null,null,null,null,null,null,null,null,null,null,null,null,null,null,null,null,null,null,null,0,0,{"$f":"IF(W84=0,\"\",IF(COUNTIF(W$2:$W84,W84)=1,Order_Salim(RANK(W84,$W$2:$W$500)),Order_Salim(RANK(W84,$W$2:$W$500))&\" مكرّر  \"))","v":""}]
[null,null,null,null,null,null,null,null,null,null,null,null,null,null,null,null,null,null,null,null,null,null,0,0,{"$f":"IF(W85=0,\"\",IF(COUNTIF(W$2:$W85,W85)=1,Order_Salim(RANK(W85,$W$2:$W$500)),Order_Salim(RANK(W85,$W$2:$W$500))&\" مكرّر  \"))","v":""}]
[null,null,null,null,null,null,null,null,null,null,null,null,null,null,null,null,null,null,null,null,null,null,0,0,{"$f":"IF(W86=0,\"\",IF(COUNTIF(W$2:$W86,W86)=1,Order_Salim(RANK(W86,$W$2:$W$500)),Order_Salim(RANK(W86,$W$2:$W$500))&\" مكرّر  \"))","v":""}]
[null,null,null,null,null,null,null,null,null,null,null,null,null,null,null,null,null,null,null,null,null,null,0,0,{"$f":"IF(W87=0,\"\",IF(COUNTIF(W$2:$W87,W87)=1,Order_Salim(RANK(W87,$W$2:$W$500)),Order_Salim(RANK(W87,$W$2:$W$500))&\" مكرّر  \"))","v":""}]
[null,null,null,null,null,null,null,null,null,null,null,null,null,null,null,null,null,null,null,null,null,null,0,0,{"$f":"IF(W88=0,\"\",IF(COUNTIF(W$2:$W88,W88)=1,Order_Salim(RANK(W88,$W$2:$W$500)),Order_Salim(RANK(W88,$W$2:$W$500))&\" مكرّر  \"))","v":""}]
[null,null,null,null,null,null,null,null,null,null,null,null,null,null,null,null,null,null,null,null,null,null,0,0,{"$f":"IF(W89=0,\"\",IF(COUNTIF(W$2:$W89,W89)=1,Order_Salim(RANK(W89,$W$2:$W$500)),Order_Salim(RANK(W89,$W$2:$W$500))&\" مكرّر  \"))","v":""}]
[null,null,null,null,null,null,null,null,null,null,null,null,null,null,null,null,null,null,null,null,null,null,0,0,{"$f":"IF(W90=0,\"\",IF(COUNTIF(W$2:$W90,W90)=1,Order_Salim(RANK(W90,$W$2:$W$500)),Order_Salim(RANK(W90,$W$2:$W$500))&\" مكرّر  \"))","v":""}]
[null,null,null,null,null,null,null,null,null,null,null,null,null,null,null,null,null,null,null,null,null,null,0,0,{"$f":"IF(W91=0,\"\",IF(COUNTIF(W$2:$W91,W91)=1,Order_Salim(RANK(W91,$W$2:$W$500)),Order_Salim(RANK(W91,$W$2:$W$500))&\" مكرّر  \"))","v":""}]
[null,null,null,null,null,null,null,null,null,null,null,null,null,null,null,null,null,null,null,null,null,null,0,0,{"$f":"IF(W92=0,\"\",IF(COUNTIF(W$2:$W92,W92)=1,Order_Salim(RANK(W92,$W$2:$W$500)),Order_Salim(RANK(W92,$W$2:$W$500))&\" مكرّر  \"))","v":""}]
[null,null,null,null,null,null,null,null,null,null,null,null,null,null,null,null,null,null,null,null,null,null,0,0,{"$f":"IF(W93=0,\"\",IF(COUNTIF(W$2:$W93,W93)=1,Order_Salim(RANK(W93,$W$2:$W$500)),Order_Salim(RANK(W93,$W$2:$W$500))&\" مكرّر  \"))","v":""}]
[null,null,null,null,null,null,null,null,null,null,null,null,null,null,null,null,null,null,null,null,null,null,0,0,{"$f":"IF(W94=0,\"\",IF(COUNTIF(W$2:$W94,W94)=1,Order_Salim(RANK(W94,$W$2:$W$500)),Order_Salim(RANK(W94,$W$2:$W$500))&\" مكرّر  \"))","v":""}]
[null,null,null,null,null,null,null,null,null,null,null,null,null,null,null,null,null,null,null,null,null,null,0,0,{"$f":"IF(W95=0,\"\",IF(COUNTIF(W$2:$W95,W95)=1,Order_Salim(RANK(W95,$W$2:$W$500)),Order_Salim(RANK(W95,$W$2:$W$500))&\" مكرّر  \"))","v":""}]
[null,null,null,null,null,null,null,null,null,null,null,null,null,null,null,null,null,null,null,null,null,null,0,0,{"$f":"IF(W96=0,\"\",IF(COUNTIF(W$2:$W96,W96)=1,Order_Salim(RANK(W96,$W$2:$W$500)),Order_Salim(RANK(W96,$W$2:$W$500))&\" مكرّر  \"))","v":""}]
[null,null,null,null,null,null,null,null,null,null,null,null,null,null,null,null,null,null,null,null,null,null,0,0,{"$f":"IF(W97=0,\"\",IF(COUNTIF(W$2:$W97,W97)=1,Order_Salim(RANK(W97,$W$2:$W$500)),Order_Salim(RANK(W97,$W$2:$W$500))&\" مكرّر  \"))","v":""}]
[null,null,null,null,null,null,null,null,null,null,null,null,null,null,null,null,null,null,null,null,null,null,0,0,{"$f":"IF(W98=0,\"\",IF(COUNTIF(W$2:$W98,W98)=1,Order_Salim(RANK(W98,$W$2:$W$500)),Order_Salim(RANK(W98,$W$2:$W$500))&\" مكرّر  \"))","v":""}]
[null,null,null,null,null,null,null,null,null,null,null,null,null,null,null,null,null,null,null,null,null,null,0,0,{"$f":"IF(W99=0,\"\",IF(COUNTIF(W$2:$W99,W99)=1,Order_Salim(RANK(W99,$W$2:$W$500)),Order_Salim(RANK(W99,$W$2:$W$500))&\" مكرّر  \"))","v":""}]
[null,null,null,null,null,null,null,null,null,null,null,null,null,null,null,null,null,null,null,null,null,null,0,0,{"$f":"IF(W100=0,\"\",IF(COUNTIF(W$2:$W100,W100)=1,Order_Salim(RANK(W100,$W$2:$W$500)),Order_Salim(RANK(W100,$W$2:$W$500))&\" مكرّر  \"))","v":""}]
[null,null,null,null,null,null,null,null,null,null,null,null,null,null,null,null,null,null,null,null,null,null,0,0,{"$f":"IF(W101=0,\"\",IF(COUNTIF(W$2:$W101,W101)=1,Order_Salim(RANK(W101,$W$2:$W$500)),Order_Salim(RANK(W101,$W$2:$W$500))&\" مكرّر  \"))","v":""}]
[null,null,null,null,null,null,null,null,null,null,null,null,null,null,null,null,null,null,null,null,null,null,{"$f":"SUM(D102,G102,J102,M102,P102,S102,V102)","v":0},0,{"$f":"IF(W102=0,\"\",IF(COUNTIF(W$2:$W102,W102)=1,Order_Salim(RANK(W102,$W$2:$W$500)),Order_Salim(RANK(W102,$W$2:$W$500))&\" مكرّر  \"))","v":""}]
[null,null,null,null,null,null,null,null,null,null,null,null,null,null,null,null,null,null,null,null,null,null,{"$f":"SUM(D103,G103,J103,M103,P103,S103,V103)","v":0},0,{"$f":"IF(W103=0,\"\",IF(COUNTIF(W$2:$W103,W103)=1,Order_Salim(RANK(W103,$W$2:$W$500)),Order_Salim(RANK(W103,$W$2:$W$500))&\" مكرّر  \"))","v":""}]
[null,null,null,null,null,null,null,null,null,null,null,null,null,null,null,null,null,null,null,null,null,null,0,0,{"$f":"IF(W104=0,\"\",IF(COUNTIF(W$2:$W104,W104)=1,Order_Salim(RANK(W104,$W$2:$W$500)),Order_Salim(RANK(W104,$W$2:$W$500))&\" مكرّر  \"))","v":""}]
[null,null,null,null,null,null,null,null,null,null,null,null,null,null,null,null,null,null,null,null,null,null,0,0,{"$f":"IF(W105=0,\"\",IF(COUNTIF(W$2:$W105,W105)=1,Order_Salim(RANK(W105,$W$2:$W$500)),Order_Salim(RANK(W105,$W$2:$W$500))&\" مكرّر  \"))","v":""}]
[null,null,null,null,null,null,null,null,null,null,null,null,null,null,null,null,null,null,null,null,null,null,0,0,{"$f":"IF(W106=0,\"\",IF(COUNTIF(W$2:$W106,W106)=1,Order_Salim(RANK(W106,$W$2:$W$500)),Order_Salim(RANK(W106,$W$2:$W$500))&\" مكرّر  \"))","v":""}]
[null,null,null,null,null,null,null,null,null,null,null,null,null,null,null,null,null,null,null,null,null,null,0,0,{"$f":"IF(W107=0,\"\",IF(COUNTIF(W$2:$W107,W107)=1,Order_Salim(RANK(W107,$W$2:$W$500)),Order_Salim(RANK(W107,$W$2:$W$500))&\" مكرّر  \"))","v":""}]
[null,null,null,null,null,null,null,null,null,null,null,null,null,null,null,null,null,null,null,null,null,null,0,0,{"$f":"IF(W108=0,\"\",IF(COUNTIF(W$2:$W108,W108)=1,Order_Salim(RANK(W108,$W$2:$W$500)),Order_Salim(RANK(W108,$W$2:$W$500))&\" مكرّر  \"))","v":""}]
[null,null,null,null,null,null,null,null,null,null,null,null,null,null,null,null,null,null,null,null,null,null,0,0,{"$f":"IF(W109=0,\"\",IF(COUNTIF(W$2:$W109,W109)=1,Order_Salim(RANK(W109,$W$2:$W$500)),Order_Salim(RANK(W109,$W$2:$W$500))&\" مكرّر  \"))","v":""}]
[null,null,null,null,null,null,null,null,null,null,null,null,null,null,null,null,null,null,null,null,null,null,0,0,{"$f":"IF(W110=0,\"\",IF(COUNTIF(W$2:$W110,W110)=1,Order_Salim(RANK(W110,$W$2:$W$500)),Order_Salim(RANK(W110,$W$2:$W$500))&\" مكرّر  \"))","v":""}]
[null,null,null,null,null,null,null,null,null,null,null,null,null,null,null,null,null,null,null,null,null,null,0,0,{"$f":"IF(W111=0,\"\",IF(COUNTIF(W$2:$W111,W111)=1,Order_Salim(RANK(W111,$W$2:$W$500)),Order_Salim(RANK(W111,$W$2:$W$500))&\" مكرّر  \"))","v":""}]
[null,null,null,null,null,null,null,null,null,null,null,null,null,null,null,null,null,null,null,null,null,null,0,0,{"$f":"IF(W112=0,\"\",IF(COUNTIF(W$2:$W112,W112)=1,Order_Salim(RANK(W112,$W$2:$W$500)),Order_Salim(RANK(W112,$W$2:$W$500))&\" مكرّر  \"))","v":""}]
[null,null,null,null,null,null,null,null,null,null,null,null,null,null,null,null,null,null,null,null,null,null,0,0,{"$f":"IF(W113=0,\"\",IF(COUNTIF(W$2:$W113,W113)=1,Order_Salim(RANK(W113,$W$2:$W$500)),Order_Salim(RANK(W113,$W$2:$W$500))&\" مكرّر  \"))","v":""}]
[null,null,null,null,null,null,null,null,null,null,null,null,null,null,null,null,null,null,null,null,null,null,0,0,{"$f":"IF(W114=0,\"\",IF(COUNTIF(W$2:$W114,W114)=1,Order_Salim(RANK(W114,$W$2:$W$500)),Order_Salim(RANK(W114,$W$2:$W$500))&\" مكرّر  \"))","v":""}]
[null,null,null,null,null,null,null,null,null,null,null,null,null,null,null,null,null,null,null,null,null,null,0,0,{"$f":"IF(W115=0,\"\",IF(COUNTIF(W$2:$W115,W115)=1,Order_Salim(RANK(W115,$W$2:$W$500)),Order_Salim(RANK(W115,$W$2:$W$500))&\" مكرّر  \"))","v":""}]
[null,null,null,null,null,null,null,null,null,null,null,null,null,null,null,null,null,null,null,null,null,null,0,0,{"$f":"IF(W116=0,\"\",IF(COUNTIF(W$2:$W116,W116)=1,Order_Salim(RANK(W116,$W$2:$W$500)),Order_Salim(RANK(W116,$W$2:$W$500))&\" مكرّر  \"))","v":""}]
[null,null,null,null,null,null,null,null,null,null,null,null,null,null,null,null,null,null,null,null,null,null,0,0,{"$f":"IF(W117=0,\"\",IF(COUNTIF(W$2:$W117,W117)=1,Order_Salim(RANK(W117,$W$2:$W$500)),Order_Salim(RANK(W117,$W$2:$W$500))&\" مكرّر  \"))","v":""}]
[null,null,null,null,null,null,null,null,null,null,null,null,null,null,null,null,null,null,null,null,null,null,0,0,{"$f":"IF(W118=0,\"\",IF(COUNTIF(W$2:$W118,W118)=1,Order_Salim(RANK(W118,$W$2:$W$500)),Order_Salim(RANK(W118,$W$2:$W$500))&\" مكرّر  \"))","v":""}]
[null,null,null,null,null,null,null,null,null,null,null,null,null,null,null,null,null,null,null,null,null,null,0,0,{"$f":"IF(W119=0,\"\",IF(COUNTIF(W$2:$W119,W119)=1,Order_Salim(RANK(W119,$W$2:$W$500)),Order_Salim(RANK(W119,$W$2:$W$500))&\" مكرّر  \"))","v":""}]
[null,null,null,null,null,null,null,null,null,null,null,null,null,null,null,null,null,null,null,null,null,null,0,0,{"$f":"IF(W120=0,\"\",IF(COUNTIF(W$2:$W120,W120)=1,Order_Salim(RANK(W120,$W$2:$W$500)),Order_Salim(RANK(W120,$W$2:$W$500))&\" مكرّر  \"))","v":""}]
[null,null,null,null,null,null,null,null,null,null,null,null,null,null,null,null,null,null,null,null,null,null,0,0,{"$f":"IF(W121=0,\"\",IF(COUNTIF(W$2:$W121,W121)=1,Order_Salim(RANK(W121,$W$2:$W$500)),Order_Salim(RANK(W121,$W$2:$W$500))&\" مكرّر  \"))","v":""}]
[null,null,null,null,null,null,null,null,null,null,null,null,null,null,null,null,null,null,null,null,null,null,{"$f":"SUM(D122,G122,J122,M122,P122,S122,V122)","v":0},0,{"$f":"IF(W122=0,\"\",IF(COUNTIF(W$2:$W122,W122)=1,Order_Salim(RANK(W122,$W$2:$W$500)),Order_Salim(RANK(W122,$W$2:$W$500))&\" مكرّر  \"))","v":""}]
[null,null,null,null,null,null,null,null,null,null,null,null,null,null,null,null,null,null,null,null,null,null,{"$f":"SUM(D123,G123,J123,M123,P123,S123,V123)","v":0},0,{"$f":"IF(W123=0,\"\",IF(COUNTIF(W$2:$W123,W123)=1,Order_Salim(RANK(W123,$W$2:$W$500)),Order_Salim(RANK(W123,$W$2:$W$500))&\" مكرّر  \"))","v":""}]
[null,null,null,null,null,null,null,null,null,null,null,null,null,null,null,null,null,null,null,null,null,null,0,0,{"$f":"IF(W124=0,\"\",IF(COUNTIF(W$2:$W124,W124)=1,Order_Salim(RANK(W124,$W$2:$W$500)),Order_Salim(RANK(W124,$W$2:$W$500))&\" مكرّر  \"))","v":""}]
[null,null,null,null,null,null,null,null,null,null,null,null,null,null,null,null,null,null,null,null,null,null,0,0,{"$f":"IF(W125=0,\"\",IF(COUNTIF(W$2:$W125,W125)=1,Order_Salim(RANK(W125,$W$2:$W$500)),Order_Salim(RANK(W125,$W$2:$W$500))&\" مكرّر  \"))","v":""}]
[null,null,null,null,null,null,null,null,null,null,null,null,null,null,null,null,null,null,null,null,null,null,0,0,{"$f":"IF(W126=0,\"\",IF(COUNTIF(W$2:$W126,W126)=1,Order_Salim(RANK(W126,$W$2:$W$500)),Order_Salim(RANK(W126,$W$2:$W$500))&\" مكرّر  \"))","v":""}]
[null,null,null,null,null,null,null,null,null,null,null,null,null,null,null,null,null,null,null,null,null,null,0,0,{"$f":"IF(W127=0,\"\",IF(COUNTIF(W$2:$W127,W127)=1,Order_Salim(RANK(W127,$W$2:$W$500)),Order_Salim(RANK(W127,$W$2:$W$500))&\" مكرّر  \"))","v":""}]
[null,null,null,null,null,null,null,null,null,null,null,null,null,null,null,null,null,null,null,null,null,null,0,0,{"$f":"IF(W128=0,\"\",IF(COUNTIF(W$2:$W128,W128)=1,Order_Salim(RANK(W128,$W$2:$W$500)),Order_Salim(RANK(W128,$W$2:$W$500))&\" مكرّر  \"))","v":""}]
[null,null,null,null,null,null,null,null,null,null,null,null,null,null,null,null,null,null,null,null,null,null,0,0,{"$f":"IF(W129=0,\"\",IF(COUNTIF(W$2:$W129,W129)=1,Order_Salim(RANK(W129,$W$2:$W$500)),Order_Salim(RANK(W129,$W$2:$W$500))&\" مكرّر  \"))","v":""}]
[null,null,null,null,null,null,null,null,null,null,null,null,null,null,null,null,null,null,null,null,null,null,0,0,{"$f":"IF(W130=0,\"\",IF(COUNTIF(W$2:$W130,W130)=1,Order_Salim(RANK(W130,$W$2:$W$500)),Order_Salim(RANK(W130,$W$2:$W$500))&\" مكرّر  \"))","v":""}]
[null,null,null,null,null,null,null,null,null,null,null,null,null,null,null,null,null,null,null,null,null,null,0,{"$f":"W131/350","v":0},{"$f":"IF(W131=0,\"\",IF(COUNTIF(W$2:$W131,W131)=1,Order_Salim(RANK(W131,$W$2:$W$500)),Order_Salim(RANK(W131,$W$2:$W$500))&\" مكرّر  \"))","v":""}]
[null,null,null,null,null,null,null,null,null,null,null,null,null,null,null,null,null,null,null,null,null,null,0,0,{"$f":"IF(W132=0,\"\",IF(COUNTIF(W$2:$W132,W132)=1,Order_Salim(RANK(W132,$W$2:$W$500)),Order_Salim(RANK(W132,$W$2:$W$500))&\" مكرّر  \"))","v":""}]
[null,null,null,null,null,null,null,null,null,null,null,null,null,null,null,null,null,null,null,null,null,null,0,0,{"$f":"IF(W133=0,\"\",IF(COUNTIF(W$2:$W133,W133)=1,Order_Salim(RANK(W133,$W$2:$W$500)),Order_Salim(RANK(W133,$W$2:$W$500))&\" مكرّر  \"))","v":""}]
[null,null,null,null,null,null,null,null,null,null,null,null,null,null,null,null,null,null,null,null,null,null,0,0,{"$f":"IF(W134=0,\"\",IF(COUNTIF(W$2:$W134,W134)=1,Order_Salim(RANK(W134,$W$2:$W$500)),Order_Salim(RANK(W134,$W$2:$W$500))&\" مكرّر  \"))","v":""}]
[null,null,null,null,null,null,null,null,null,null,null,null,null,null,null,null,null,null,null,null,null,null,0,0,{"$f":"IF(W135=0,\"\",IF(COUNTIF(W$2:$W135,W135)=1,Order_Salim(RANK(W135,$W$2:$W$500)),Order_Salim(RANK(W135,$W$2:$W$500))&\" مكرّر  \"))","v":""}]
[null,null,null,null,null,null,null,null,null,null,null,null,null,null,null,null,null,null,null,null,null,null,0,0,{"$f":"IF(W136=0,\"\",IF(COUNTIF(W$2:$W136,W136)=1,Order_Salim(RANK(W136,$W$2:$W$500)),Order_Salim(RANK(W136,$W$2:$W$500))&\" مكرّر  \"))","v":""}]
[null,null,null,null,null,null,null,null,null,null,null,null,null,null,null,null,null,null,null,null,null,null,0,0,{"$f":"IF(W137=0,\"\",IF(COUNTIF(W$2:$W137,W137)=1,Order_Salim(RANK(W137,$W$2:$W$500)),Order_Salim(RANK(W137,$W$2:$W$500))&\" مكرّر  \"))","v":""}]
[null,null,null,null,null,null,null,null,null,null,null,null,null,null,null,null,null,null,null,null,null,null,0,0,{"$f":"IF(W138=0,\"\",IF(COUNTIF(W$2:$W138,W138)=1,Order_Salim(RANK(W138,$W$2:$W$500)),Order_Salim(RANK(W138,$W$2:$W$500))&\" مكرّر  \"))","v":""}]
[null,null,null,null,null,null,null,null,null,null,null,null,null,null,null,null,null,null,null,null,null,null,0,0,{"$f":"IF(W139=0,\"\",IF(COUNTIF(W$2:$W139,W139)=1,Order_Salim(RANK(W139,$W$2:$W$500)),Order_Salim(RANK(W139,$W$2:$W$500))&\" مكرّر  \"))","v":""}]
[null,null,null,null,null,null,null,null,null,null,null,null,null,null,null,null,null,null,null,null,null,null,0,0,{"$f":"IF(W140=0,\"\",IF(COUNTIF(W$2:$W140,W140)=1,Order_Salim(RANK(W140,$W$2:$W$500)),Order_Salim(RANK(W140,$W$2:$W$500))&\" مكرّر  \"))","v":""}]
[null,null,null,null,null,null,null,null,null,null,null,null,null,null,null,null,null,null,null,null,null,null,0,0,{"$f":"IF(W141=0,\"\",IF(COUNTIF(W$2:$W141,W141)=1,Order_Salim(RANK(W141,$W$2:$W$500)),Order_Salim(RANK(W141,$W$2:$W$500))&\" مكرّر  \"))","v":""}]
[null,null,null,null,null,null,null,null,null,null,null,null,null,null,null,null,null,null,null,null,null,null,{"$f":"SUM(D142,G142,J142,M142,P142,S142,V142)","v":0},0,{"$f":"IF(W142=0,\"\",IF(COUNTIF(W$2:$W142,W142)=1,Order_Salim(RANK(W142,$W$2:$W$500)),Order_Salim(RANK(W142,$W$2:$W$500))&\" مكرّر  \"))","v":""}]
[null,null,null,null,null,null,null,null,null,null,null,null,null,null,null,null,null,null,null,null,null,null,{"$f":"SUM(D143,G143,J143,M143,P143,S143,V143)","v":0},0,{"$f":"IF(W143=0,\"\",IF(COUNTIF(W$2:$W143,W143)=1,Order_Salim(RANK(W143,$W$2:$W$500)),Order_Salim(RANK(W143,$W$2:$W$500))&\" مكرّر  \"))","v":""}]
[null,null,null,null,null,null,null,null,null,null,null,null,null,null,null,null,null,null,null,null,null,null,0,0,{"$f":"IF(W144=0,\"\",IF(COUNTIF(W$2:$W144,W144)=1,Order_Salim(RANK(W144,$W$2:$W$500)),Order_Salim(RANK(W144,$W$2:$W$500))&\" مكرّر  \"))","v":""}]
[null,null,null,null,null,null,null,null,null,null,null,null,null,null,null,null,null,null,null,null,null,null,0,0,{"$f":"IF(W145=0,\"\",IF(COUNTIF(W$2:$W145,W145)=1,Order_Salim(RANK(W145,$W$2:$W$500)),Order_Salim(RANK(W145,$W$2:$W$500))&\" مكرّر  \"))","v":""}]
[null,null,null,null,null,null,null,null,null,null,null,null,null,null,null,null,null,null,null,null,null,null,0,0,{"$f":"IF(W146=0,\"\",IF(COUNTIF(W$2:$W146,W146)=1,Order_Salim(RANK(W146,$W$2:$W$500)),Order_Salim(RANK(W146,$W$2:$W$500))&\" مكرّر  \"))","v":""}]
[null,null,null,null,null,null,null,null,null,null,null,null,null,null,null,null,null,null,null,null,null,null,0,0,{"$f":"IF(W147=0,\"\",IF(COUNTIF(W$2:$W147,W147)=1,Order_Salim(RANK(W147,$W$2:$W$500)),Order_Salim(RANK(W147,$W$2:$W$500))&\" مكرّر  \"))","v":""}]
[null,null,null,null,null,null,null,null,null,null,null,null,null,null,null,null,null,null,null,null,null,null,0,0,{"$f":"IF(W148=0,\"\",IF(COUNTIF(W$2:$W148,W148)=1,Order_Salim(RANK(W148,$W$2:$W$500)),Order_Salim(RANK(W148,$W$2:$W$500))&\" مكرّر  \"))","v":""}]
[null,null,null,null,null,null,null,null,null,null,null,null,null,null,null,null,null,null,null,null,null,null,0,0,{"$f":"IF(W149=0,\"\",IF(COUNTIF(W$2:$W149,W149)=1,Order_Salim(RANK(W149,$W$2:$W$500)),Order_Salim(RANK(W149,$W$2:$W$500))&\" مكرّر  \"))","v":""}]
[null,null,null,null,null,null,null,null,null,null,null,null,null,null,null,null,null,null,null,null,null,null,0,0,{"$f":"IF(W150=0,\"\",IF(COUNTIF(W$2:$W150,W150)=1,Order_Salim(RANK(W150,$W$2:$W$500)),Order_Salim(RANK(W150,$W$2:$W$500))&\" مكرّر  \"))","v":""}]
[null,null,null,null,null,null,null,null,null,null,null,null,null,null,null,null,null,null,null,null,null,null,0,0,{"$f":"IF(W151=0,\"\",IF(COUNTIF(W$2:$W151,W151)=1,Order_Salim(RANK(W151,$W$2:$W$500)),Order_Salim(RANK(W151,$W$2:$W$500))&\" مكرّر  \"))","v":""}]
[null,null,null,null,null,null,null,null,null,null,null,null,null,null,null,null,null,null,null,null,null,null,0,0,{"$f":"IF(W152=0,\"\",IF(COUNTIF(W$2:$W152,W152)=1,Order_Salim(RANK(W152,$W$2:$W$500)),Order_Salim(RANK(W152,$W$2:$W$500))&\" مكرّر  \"))","v":""}]
[null,null,null,null,null,null,null,null,null,null,null,null,null,null,null,null,null,null,null,null,null,null,0,0,{"$f":"IF(W153=0,\"\",IF(COUNTIF(W$2:$W153,W153)=1,Order_Salim(RANK(W153,$W$2:$W$500)),Order_Salim(RANK(W153,$W$2:$W$500))&\" مكرّر  \"))","v":""}]
[null,null,null,null,null,null,null,null,null,null,null,null,null,null,null,null,null,null,null,null,null,null,0,0,{"$f":"IF(W154=0,\"\",IF(COUNTIF(W$2:$W154,W154)=1,Order_Salim(RANK(W154,$W$2:$W$500)),Order_Salim(RANK(W154,$W$2:$W$500))&\" مكرّر  \"))","v":""}]
[null,null,null,null,null,null,null,null,null,null,null,null,null,null,null,null,null,null,null,null,null,null,0,0,{"$f":"IF(W155=0,\"\",IF(COUNTIF(W$2:$W155,W155)=1,Order_Salim(RANK(W155,$W$2:$W$500)),Order_Salim(RANK(W155,$W$2:$W$500))&\" مكرّر  \"))","v":""}]
[null,null,null,null,null,null,null,null,null,null,null,null,null,null,null,null,null,null,null,null,null,null,0,0,{"$f":"IF(W156=0,\"\",IF(COUNTIF(W$2:$W156,W156)=1,Order_Salim(RANK(W156,$W$2:$W$500)),Order_Salim(RANK(W156,$W$2:$W$500))&\" مكرّر  \"))","v":""}]
[null,null,null,null,null,null,null,null,null,null,null,null,null,null,null,null,null,null,null,null,null,null,0,0,{"$f":"IF(W157=0,\"\",IF(COUNTIF(W$2:$W157,W157)=1,Order_Salim(RANK(W157,$W$2:$W$500)),Order_Salim(RANK(W157,$W$2:$W$500))&\" مكرّر  \"))","v":""}]
[null,null,null,null,null,null,null,null,null,null,null,null,null,null,null,null,null,null,null,null,null,null,0,0,{"$f":"IF(W158=0,\"\",IF(COUNTIF(W$2:$W158,W158)=1,Order_Salim(RANK(W158,$W$2:$W$500)),Order_Salim(RANK(W158,$W$2:$W$500))&\" مكرّر  \"))","v":""}]
[null,null,null,null,null,null,null,null,null,null,null,null,null,null,null,null,null,null,null,null,null,null,0,0,{"$f":"IF(W159=0,\"\",IF(COUNTIF(W$2:$W159,W159)=1,Order_Salim(RANK(W159,$W$2:$W$500)),Order_Salim(RANK(W159,$W$2:$W$500))&\" مكرّر  \"))","v":""}]
[null,null,null,null,null,null,null,null,null,null,null,null,null,null,null,null,null,null,null,null,null,null,0,0,{"$f":"IF(W160=0,\"\",IF(COUNTIF(W$2:$W160,W160)=1,Order_Salim(RANK(W160,$W$2:$W$500)),Order_Salim(RANK(W160,$W$2:$W$500))&\" مكرّر  \"))","v":""}]
[null,null,null,null,null,null,null,null,null,null,null,null,null,null,null,null,null,null,null,null,null,null,0,0,{"$f":"IF(W161=0,\"\",IF(COUNTIF(W$2:$W161,W161)=1,Order_Salim(RANK(W161,$W$2:$W$500)),Order_Salim(RANK(W161,$W$2:$W$500))&\" مكرّر  \"))","v":""}]
[null,null,null,null,null,null,null,null,null,null,null,null,null,null,null,null,null,null,null,null,null,null,null,0,{"$f":"IF(W162=0,\"\",IF(COUNTIF(W$2:$W162,W162)=1,Order_Salim(RANK(W162,$W$2:$W$500)),Order_Salim(RANK(W162,$W$2:$W$500))&\" مكرّر  \"))","v":""}]
[null,null,null,null,null,null,null,null,null,null,null,null,null,null,null,null,null,null,null,null,null,null,null,0,{"$f":"IF(W163=0,\"\",IF(COUNTIF(W$2:$W163,W163)=1,Order_Salim(RANK(W163,$W$2:$W$500)),Order_Salim(RANK(W163,$W$2:$W$500))&\" مكرّر  \"))","v":""}]
[null,null,null,null,null,null,null,null,null,null,null,null,null,null,null,null,null,null,null,null,null,null,null,0,{"$f":"IF(W164=0,\"\",IF(COUNTIF(W$2:$W164,W164)=1,Order_Salim(RANK(W164,$W$2:$W$500)),Order_Salim(RANK(W164,$W$2:$W$500))&\" مكرّر  \"))","v":""}]
[null,null,null,null,null,null,null,null,null,null,null,null,null,null,null,null,null,null,null,null,null,null,null,0,{"$f":"IF(W165=0,\"\",IF(COUNTIF(W$2:$W165,W165)=1,Order_Salim(RANK(W165,$W$2:$W$500)),Order_Salim(RANK(W165,$W$2:$W$500))&\" مكرّر  \"))","v":""}]
[null,null,null,null,null,null,null,null,null,null,null,null,null,null,null,null,null,null,null,null,null,null,null,0,{"$f":"IF(W166=0,\"\",IF(COUNTIF(W$2:$W166,W166)=1,Order_Salim(RANK(W166,$W$2:$W$500)),Order_Salim(RANK(W166,$W$2:$W$500))&\" مكرّر  \"))","v":""}]
[null,null,null,null,null,null,null,null,null,null,null,null,null,null,null,null,null,null,null,null,null,null,null,0,{"$f":"IF(W167=0,\"\",IF(COUNTIF(W$2:$W167,W167)=1,Order_Salim(RANK(W167,$W$2:$W$500)),Order_Salim(RANK(W167,$W$2:$W$500))&\" مكرّر  \"))","v":""}]
[null,null,null,null,null,null,null,null,null,null,null,null,null,null,null,null,null,null,null,null,null,null,null,0,{"$f":"IF(W168=0,\"\",IF(COUNTIF(W$2:$W168,W168)=1,Order_Salim(RANK(W168,$W$2:$W$500)),Order_Salim(RANK(W168,$W$2:$W$500))&\" مكرّر  \"))","v":""}]
[null,null,null,null,null,null,null,null,null,null,null,null,null,null,null,null,null,null,null,null,null,null,null,0,{"$f":"IF(W169=0,\"\",IF(COUNTIF(W$2:$W169,W169)=1,Order_Salim(RANK(W169,$W$2:$W$500)),Order_Salim(RANK(W169,$W$2:$W$500))&\" مكرّر  \"))","v":""}]
[null,null,null,null,null,null,null,null,null,null,null,null,null,null,null,null,null,null,null,null,null,null,null,0,{"$f":"IF(W170=0,\"\",IF(COUNTIF(W$2:$W170,W170)=1,Order_Salim(RANK(W170,$W$2:$W$500)),Order_Salim(RANK(W170,$W$2:$W$500))&\" مكرّر  \"))","v":""}]
[null,null,null,null,null,null,null,null,null,null,null,null,null,null,null,null,null,null,null,null,null,null,null,0,{"$f":"IF(W171=0,\"\",IF(COUNTIF(W$2:$W171,W171)=1,Order_Salim(RANK(W171,$W$2:$W$500)),Order_Salim(RANK(W171,$W$2:$W$500))&\" مكرّر  \"))","v":""}]
[null,null,null,null,null,null,null,null,null,null,null,null,null,null,null,null,null,null,null,null,null,null,null,0,{"$f":"IF(W172=0,\"\",IF(COUNTIF(W$2:$W172,W172)=1,Order_Salim(RANK(W172,$W$2:$W$500)),Order_Salim(RANK(W172,$W$2:$W$500))&\" مكرّر  \"))","v":""}]
[null,null,null,null,null,null,null,null,null,null,null,null,null,null,null,null,null,null,null,null,null,null,null,0,{"$f":"IF(W173=0,\"\",IF(COUNTIF(W$2:$W173,W173)=1,Order_Salim(RANK(W173,$W$2:$W$500)),Order_Salim(RANK(W173,$W$2:$W$500))&\" مكرّر  \"))","v":""}]
[null,null,null,null,null,null,null,null,null,null,null,null,null,null,null,null,null,null,null,null,null,null,null,0,{"$f":"IF(W174=0,\"\",IF(COUNTIF(W$2:$W174,W174)=1,Order_Salim(RANK(W174,$W$2:$W$500)),Order_Salim(RANK(W174,$W$2:$W$500))&\" مكرّر  \"))","v":""}]
[null,null,null,null,null,null,null,null,null,null,null,null,null,null,null,null,null,null,null,null,null,null,null,0,{"$f":"IF(W175=0,\"\",IF(COUNTIF(W$2:$W175,W175)=1,Order_Salim(RANK(W175,$W$2:$W$500)),Order_Salim(RANK(W175,$W$2:$W$500))&\" مكرّر  \"))","v":""}]
[null,null,null,null,null,null,null,null,null,null,null,null,null,null,null,null,null,null,null,null,null,null,null,0,{"$f":"IF(W176=0,\"\",IF(COUNTIF(W$2:$W176,W176)=1,Order_Salim(RANK(W176,$W$2:$W$500)),Order_Salim(RANK(W176,$W$2:$W$500))&\" مكرّر  \"))","v":""}]
[null,null,null,null,null,null,null,null,null,null,null,null,null,null,null,null,null,null,null,null,null,null,null,0,{"$f":"IF(W177=0,\"\",IF(COUNTIF(W$2:$W177,W177)=1,Order_Salim(RANK(W177,$W$2:$W$500)),Order_Salim(RANK(W177,$W$2:$W$500))&\" مكرّر  \"))","v":""}]
[null,null,null,null,null,null,null,null,null,null,null,null,null,null,null,null,null,null,null,null,null,null,null,0,{"$f":"IF(W178=0,\"\",IF(COUNTIF(W$2:$W178,W178)=1,Order_Salim(RANK(W178,$W$2:$W$500)),Order_Salim(RANK(W178,$W$2:$W$500))&\" مكرّر  \"))","v":""}]
[null,null,null,null,null,null,null,null,null,null,null,null,null,null,null,null,null,null,null,null,null,null,null,0,{"$f":"IF(W179=0,\"\",IF(COUNTIF(W$2:$W179,W179)=1,Order_Salim(RANK(W179,$W$2:$W$500)),Order_Salim(RANK(W179,$W$2:$W$500))&\" مكرّر  \"))","v":""}]
[null,null,null,null,null,null,null,null,null,null,null,null,null,null,null,null,null,null,null,null,null,null,null,0,{"$f":"IF(W180=0,\"\",IF(COUNTIF(W$2:$W180,W180)=1,Order_Salim(RANK(W180,$W$2:$W$500)),Order_Salim(RANK(W180,$W$2:$W$500))&\" مكرّر  \"))","v":""}]
[null,null,null,null,null,null,null,null,null,null,null,null,null,null,null,null,null,null,null,null,null,null,null,0,{"$f":"IF(W181=0,\"\",IF(COUNTIF(W$2:$W181,W181)=1,Order_Salim(RANK(W181,$W$2:$W$500)),Order_Salim(RANK(W181,$W$2:$W$500))&\" مكرّر  \"))","v":""}]
[null,null,null,null,null,null,null,null,null,null,null,null,null,null,null,null,null,null,null,null,null,null,null,0,{"$f":"IF(W182=0,\"\",IF(COUNTIF(W$2:$W182,W182)=1,Order_Salim(RANK(W182,$W$2:$W$500)),Order_Salim(RANK(W182,$W$2:$W$500))&\" مكرّر  \"))","v":""}]
[null,null,null,null,null,null,null,null,null,null,null,null,null,null,null,null,null,null,null,null,null,null,null,0,{"$f":"IF(W183=0,\"\",IF(COUNTIF(W$2:$W183,W183)=1,Order_Salim(RANK(W183,$W$2:$W$500)),Order_Salim(RANK(W183,$W$2:$W$500))&\" مكرّر  \"))","v":""}]
[null,null,null,null,null,null,null,null,null,null,null,null,null,null,null,null,null,null,null,null,null,null,null,0,{"$f":"IF(W184=0,\"\",IF(COUNTIF(W$2:$W184,W184)=1,Order_Salim(RANK(W184,$W$2:$W$500)),Order_Salim(RANK(W184,$W$2:$W$500))&\" مكرّر  \"))","v":""}]
[null,null,null,null,null,null,null,null,null,null,null,null,null,null,null,null,null,null,null,null,null,null,null,0,{"$f":"IF(W185=0,\"\",IF(COUNTIF(W$2:$W185,W185)=1,Order_Salim(RANK(W185,$W$2:$W$500)),Order_Salim(RANK(W185,$W$2:$W$500))&\" مكرّر  \"))","v":""}]
[null,null,null,null,null,null,null,null,null,null,null,null,null,null,null,null,null,null,null,null,null,null,null,0,{"$f":"IF(W186=0,\"\",IF(COUNTIF(W$2:$W186,W186)=1,Order_Salim(RANK(W186,$W$2:$W$500)),Order_Salim(RANK(W186,$W$2:$W$500))&\" مكرّر  \"))","v":""}]
[null,null,null,null,null,null,null,null,null,null,null,null,null,null,null,null,null,null,null,null,null,null,null,0,{"$f":"IF(W187=0,\"\",IF(COUNTIF(W$2:$W187,W187)=1,Order_Salim(RANK(W187,$W$2:$W$500)),Order_Salim(RANK(W187,$W$2:$W$500))&\" مكرّر  \"))","v":""}]
[null,null,null,null,null,null,null,null,null,null,null,null,null,null,null,null,null,null,null,null,null,null,null,0,{"$f":"IF(W188=0,\"\",IF(COUNTIF(W$2:$W188,W188)=1,Order_Salim(RANK(W188,$W$2:$W$500)),Order_Salim(RANK(W188,$W$2:$W$500))&\" مكرّر  \"))","v":""}]
[null,null,null,null,null,null,null,null,null,null,null,null,null,null,null,null,null,null,null,null,null,null,null,0,{"$f":"IF(W189=0,\"\",IF(COUNTIF(W$2:$W189,W189)=1,Order_Salim(RANK(W189,$W$2:$W$500)),Order_Salim(RANK(W189,$W$2:$W$500))&\" مكرّر  \"))","v":""}]
[null,null,null,null,null,null,null,null,null,null,null,null,null,null,null,null,null,null,null,null,null,null,null,0,{"$f":"IF(W190=0,\"\",IF(COUNTIF(W$2:$W190,W190)=1,Order_Salim(RANK(W190,$W$2:$W$500)),Order_Salim(RANK(W190,$W$2:$W$500))&\" مكرّر  \"))","v":""}]
[null,null,null,null,null,null,null,null,null,null,null,null,null,null,null,null,null,null,null,null,null,null,null,0,{"$f":"IF(W191=0,\"\",IF(COUNTIF(W$2:$W191,W191)=1,Order_Salim(RANK(W191,$W$2:$W$500)),Order_Salim(RANK(W191,$W$2:$W$500))&\" مكرّر  \"))","v":""}]
[null,null,null,null,null,null,null,null,null,null,null,null,null,null,null,null,null,null,null,null,null,null,null,0,{"$f":"IF(W192=0,\"\",IF(COUNTIF(W$2:$W192,W192)=1,Order_Salim(RANK(W192,$W$2:$W$500)),Order_Salim(RANK(W192,$W$2:$W$500))&\" مكرّر  \"))","v":""}]
[null,null,null,null,null,null,null,null,null,null,null,null,null,null,null,null,null,null,null,null,null,null,null,0,{"$f":"IF(W193=0,\"\",IF(COUNTIF(W$2:$W193,W193)=1,Order_Salim(RANK(W193,$W$2:$W$500)),Order_Salim(RANK(W193,$W$2:$W$500))&\" مكرّر  \"))","v":""}]
[null,null,null,null,null,null,null,null,null,null,null,null,null,null,null,null,null,null,null,null,null,null,null,0,{"$f":"IF(W194=0,\"\",IF(COUNTIF(W$2:$W194,W194)=1,Order_Salim(RANK(W194,$W$2:$W$500)),Order_Salim(RANK(W194,$W$2:$W$500))&\" مكرّر  \"))","v":""}]
[null,null,null,null,null,null,null,null,null,null,null,null,null,null,null,null,null,null,null,null,null,null,null,{"$f":"W195/350","v":0},{"$f":"IF(W195=0,\"\",IF(COUNTIF(W$2:$W195,W195)=1,Order_Salim(RANK(W195,$W$2:$W$500)),Order_Salim(RANK(W195,$W$2:$W$500))&\" مكرّر  \"))","v":""}]
[null,null,null,null,null,null,null,null,null,null,null,null,null,null,null,null,null,null,null,null,null,null,null,0,{"$f":"IF(W196=0,\"\",IF(COUNTIF(W$2:$W196,W196)=1,Order_Salim(RANK(W196,$W$2:$W$500)),Order_Salim(RANK(W196,$W$2:$W$500))&\" مكرّر  \"))","v":""}]
[null,null,null,null,null,null,null,null,null,null,null,null,null,null,null,null,null,null,null,null,null,null,null,0,{"$f":"IF(W197=0,\"\",IF(COUNTIF(W$2:$W197,W197)=1,Order_Salim(RANK(W197,$W$2:$W$500)),Order_Salim(RANK(W197,$W$2:$W$500))&\" مكرّر  \"))","v":""}]
[null,null,null,null,null,null,null,null,null,null,null,null,null,null,null,null,null,null,null,null,null,null,null,0,{"$f":"IF(W198=0,\"\",IF(COUNTIF(W$2:$W198,W198)=1,Order_Salim(RANK(W198,$W$2:$W$500)),Order_Salim(RANK(W198,$W$2:$W$500))&\" مكرّر  \"))","v":""}]
[null,null,null,null,null,null,null,null,null,null,null,null,null,null,null,null,null,null,null,null,null,null,null,0,{"$f":"IF(W199=0,\"\",IF(COUNTIF(W$2:$W199,W199)=1,Order_Salim(RANK(W199,$W$2:$W$500)),Order_Salim(RANK(W199,$W$2:$W$500))&\" مكرّر  \"))","v":""}]
[null,null,null,null,null,null,null,null,null,null,null,null,null,null,null,null,null,null,null,null,null,null,null,0,{"$f":"IF(W200=0,\"\",IF(COUNTIF(W$2:$W200,W200)=1,Order_Salim(RANK(W200,$W$2:$W$500)),Order_Salim(RANK(W200,$W$2:$W$500))&\" مكرّر  \"))","v":""}]
[null,null,null,null,null,null,null,null,null,null,null,null,null,null,null,null,null,null,null,null,null,null,null,0,{"$f":"IF(W201=0,\"\",IF(COUNTIF(W$2:$W201,W201)=1,Order_Salim(RANK(W201,$W$2:$W$500)),Order_Salim(RANK(W201,$W$2:$W$500))&\" مكرّر  \"))","v":""}]
[null,null,null,null,null,null,null,null,null,null,null,null,null,null,null,null,null,null,null,null,null,null,null,0,{"$f":"IF(W202=0,\"\",IF(COUNTIF(W$2:$W202,W202)=1,Order_Salim(RANK(W202,$W$2:$W$500)),Order_Salim(RANK(W202,$W$2:$W$500))&\" مكرّر  \"))","v":""}]
[null,null,null,null,null,null,null,null,null,null,null,null,null,null,null,null,null,null,null,null,null,null,null,0,{"$f":"IF(W203=0,\"\",IF(COUNTIF(W$2:$W203,W203)=1,Order_Salim(RANK(W203,$W$2:$W$500)),Order_Salim(RANK(W203,$W$2:$W$500))&\" مكرّر  \"))","v":""}]
[null,null,null,null,null,null,null,null,null,null,null,null,null,null,null,null,null,null,null,null,null,null,null,0,{"$f":"IF(W204=0,\"\",IF(COUNTIF(W$2:$W204,W204)=1,Order_Salim(RANK(W204,$W$2:$W$500)),Order_Salim(RANK(W204,$W$2:$W$500))&\" مكرّر  \"))","v":""}]
[null,null,null,null,null,null,null,null,null,null,null,null,null,null,null,null,null,null,null,null,null,null,null,0,{"$f":"IF(W205=0,\"\",IF(COUNTIF(W$2:$W205,W205)=1,Order_Salim(RANK(W205,$W$2:$W$500)),Order_Salim(RANK(W205,$W$2:$W$500))&\" مكرّر  \"))","v":""}]
[null,null,null,null,null,null,null,null,null,null,null,null,null,null,null,null,null,null,null,null,null,null,null,0,{"$f":"IF(W206=0,\"\",IF(COUNTIF(W$2:$W206,W206)=1,Order_Salim(RANK(W206,$W$2:$W$500)),Order_Salim(RANK(W206,$W$2:$W$500))&\" مكرّر  \"))","v":""}]
[null,null,null,null,null,null,null,null,null,null,null,null,null,null,null,null,null,null,null,null,null,null,null,0,{"$f":"IF(W207=0,\"\",IF(COUNTIF(W$2:$W207,W207)=1,Order_Salim(RANK(W207,$W$2:$W$500)),Order_Salim(RANK(W207,$W$2:$W$500))&\" مكرّر  \"))","v":""}]
[null,null,null,null,null,null,null,null,null,null,null,null,null,null,null,null,null,null,null,null,null,null,null,0,{"$f":"IF(W208=0,\"\",IF(COUNTIF(W$2:$W208,W208)=1,Order_Salim(RANK(W208,$W$2:$W$500)),Order_Salim(RANK(W208,$W$2:$W$500))&\" مكرّر  \"))","v":""}]
[null,null,null,null,null,null,null,null,null,null,null,null,null,null,null,null,null,null,null,null,null,null,null,0,{"$f":"IF(W209=0,\"\",IF(COUNTIF(W$2:$W209,W209)=1,Order_Salim(RANK(W209,$W$2:$W$500)),Order_Salim(RANK(W209,$W$2:$W$500))&\" مكرّر  \"))","v":""}]
[null,null,null,null,null,null,null,null,null,null,null,null,null,null,null,null,null,null,null,null,null,null,null,0,{"$f":"IF(W210=0,\"\",IF(COUNTIF(W$2:$W210,W210)=1,Order_Salim(RANK(W210,$W$2:$W$500)),Order_Salim(RANK(W210,$W$2:$W$500))&\" مكرّر  \"))","v":""}]
[null,null,null,null,null,null,null,null,null,null,null,null,null,null,null,null,null,null,null,null,null,null,null,0,{"$f":"IF(W211=0,\"\",IF(COUNTIF(W$2:$W211,W211)=1,Order_Salim(RANK(W211,$W$2:$W$500)),Order_Salim(RANK(W211,$W$2:$W$500))&\" مكرّر  \"))","v":""}]
[null,null,null,null,null,null,null,null,null,null,null,null,null,null,null,null,null,null,null,null,null,null,null,0,{"$f":"IF(W212=0,\"\",IF(COUNTIF(W$2:$W212,W212)=1,Order_Salim(RANK(W212,$W$2:$W$500)),Order_Salim(RANK(W212,$W$2:$W$500))&\" مكرّر  \"))","v":""}]
[null,null,null,null,null,null,null,null,null,null,null,null,null,null,null,null,null,null,null,null,null,null,null,0,{"$f":"IF(W213=0,\"\",IF(COUNTIF(W$2:$W213,W213)=1,Order_Salim(RANK(W213,$W$2:$W$500)),Order_Salim(RANK(W213,$W$2:$W$500))&\" مكرّر  \"))","v":""}]
[null,null,null,null,null,null,null,null,null,null,null,null,null,null,null,null,null,null,null,null,null,null,null,0,{"$f":"IF(W214=0,\"\",IF(COUNTIF(W$2:$W214,W214)=1,Order_Salim(RANK(W214,$W$2:$W$500)),Order_Salim(RANK(W214,$W$2:$W$500))&\" مكرّر  \"))","v":""}]
[null,null,null,null,null,null,null,null,null,null,null,null,null,null,null,null,null,null,null,null,null,null,null,0,{"$f":"IF(W215=0,\"\",IF(COUNTIF(W$2:$W215,W215)=1,Order_Salim(RANK(W215,$W$2:$W$500)),Order_Salim(RANK(W215,$W$2:$W$500))&\" مكرّر  \"))","v":""}]
[null,null,null,null,null,null,null,null,null,null,null,null,null,null,null,null,null,null,null,null,null,null,null,0,{"$f":"IF(W216=0,\"\",IF(COUNTIF(W$2:$W216,W216)=1,Order_Salim(RANK(W216,$W$2:$W$500)),Order_Salim(RANK(W216,$W$2:$W$500))&\" مكرّر  \"))","v":""}]
[null,null,null,null,null,null,null,null,null,null,null,null,null,null,null,null,null,null,null,null,null,null,null,0,{"$f":"IF(W217=0,\"\",IF(COUNTIF(W$2:$W217,W217)=1,Order_Salim(RANK(W217,$W$2:$W$500)),Order_Salim(RANK(W217,$W$2:$W$500))&\" مكرّر  \"))","v":""}]
[null,null,null,null,null,null,null,null,null,null,null,null,null,null,null,null,null,null,null,null,null,null,null,0,{"$f":"IF(W218=0,\"\",IF(COUNTIF(W$2:$W218,W218)=1,Order_Salim(RANK(W218,$W$2:$W$500)),Order_Salim(RANK(W218,$W$2:$W$500))&\" مكرّر  \"))","v":""}]
[null,null,null,null,null,null,null,null,null,null,null,null,null,null,null,null,null,null,null,null,null,null,null,0,{"$f":"IF(W219=0,\"\",IF(COUNTIF(W$2:$W219,W219)=1,Order_Salim(RANK(W219,$W$2:$W$500)),Order_Salim(RANK(W219,$W$2:$W$500))&\" مكرّر  \"))","v":""}]
[null,null,null,null,null,null,null,null,null,null,null,null,null,null,null,null,null,null,null,null,null,null,null,0,{"$f":"IF(W220=0,\"\",IF(COUNTIF(W$2:$W220,W220)=1,Order_Salim(RANK(W220,$W$2:$W$500)),Order_Salim(RANK(W220,$W$2:$W$500))&\" مكرّر  \"))","v":""}]
[null,null,null,null,null,null,null,null,null,null,null,null,null,null,null,null,null,null,null,null,null,null,null,0,{"$f":"IF(W221=0,\"\",IF(COUNTIF(W$2:$W221,W221)=1,Order_Salim(RANK(W221,$W$2:$W$500)),Order_Salim(RANK(W221,$W$2:$W$500))&\" مكرّر  \"))","v":""}]
[null,null,null,null,null,null,null,null,null,null,null,null,null,null,null,null,null,null,null,null,null,null,null,0,{"$f":"IF(W222=0,\"\",IF(COUNTIF(W$2:$W222,W222)=1,Order_Salim(RANK(W222,$W$2:$W$500)),Order_Salim(RANK(W222,$W$2:$W$500))&\" مكرّر  \"))","v":""}]
[null,null,null,null,null,null,null,null,null,null,null,null,null,null,null,null,null,null,null,null,null,null,null,0,{"$f":"IF(W223=0,\"\",IF(COUNTIF(W$2:$W223,W223)=1,Order_Salim(RANK(W223,$W$2:$W$500)),Order_Salim(RANK(W223,$W$2:$W$500))&\" مكرّر  \"))","v":""}]
[null,null,null,null,null,null,null,null,null,null,null,null,null,null,null,null,null,null,null,null,null,null,null,0,{"$f":"IF(W224=0,\"\",IF(COUNTIF(W$2:$W224,W224)=1,Order_Salim(RANK(W224,$W$2:$W$500)),Order_Salim(RANK(W224,$W$2:$W$500))&\" مكرّر  \"))","v":""}]
[null,null,null,null,null,null,null,null,null,null,null,null,null,null,null,null,null,null,null,null,null,null,null,0,{"$f":"IF(W225=0,\"\",IF(COUNTIF(W$2:$W225,W225)=1,Order_Salim(RANK(W225,$W$2:$W$500)),Order_Salim(RANK(W225,$W$2:$W$500))&\" مكرّر  \"))","v":""}]
[null,null,null,null,null,null,null,null,null,null,null,null,null,null,null,null,null,null,null,null,null,null,null,0,{"$f":"IF(W226=0,\"\",IF(COUNTIF(W$2:$W226,W226)=1,Order_Salim(RANK(W226,$W$2:$W$500)),Order_Salim(RANK(W226,$W$2:$W$500))&\" مكرّر  \"))","v":""}]
[null,null,null,null,null,null,null,null,null,null,null,null,null,null,null,null,null,null,null,null,null,null,null,0,{"$f":"IF(W227=0,\"\",IF(COUNTIF(W$2:$W227,W227)=1,Order_Salim(RANK(W227,$W$2:$W$500)),Order_Salim(RANK(W227,$W$2:$W$500))&\" مكرّر  \"))","v":""}]
[null,null,null,null,null,null,null,null,null,null,null,null,null,null,null,null,null,null,null,null,null,null,null,0,{"$f":"IF(W228=0,\"\",IF(COUNTIF(W$2:$W228,W228)=1,Order_Salim(RANK(W228,$W$2:$W$500)),Order_Salim(RANK(W228,$W$2:$W$500))&\" مكرّر  \"))","v":""}]
[null,null,null,null,null,null,null,null,null,null,null,null,null,null,null,null,null,null,null,null,null,null,null,0,{"$f":"IF(W229=0,\"\",IF(COUNTIF(W$2:$W229,W229)=1,Order_Salim(RANK(W229,$W$2:$W$500)),Order_Salim(RANK(W229,$W$2:$W$500))&\" مكرّر  \"))","v":""}]
[null,null,null,null,null,null,null,null,null,null,null,null,null,null,null,null,null,null,null,null,null,null,null,0,{"$f":"IF(W230=0,\"\",IF(COUNTIF(W$2:$W230,W230)=1,Order_Salim(RANK(W230,$W$2:$W$500)),Order_Salim(RANK(W230,$W$2:$W$500))&\" مكرّر  \"))","v":""}]
[null,null,null,null,null,null,null,null,null,null,null,null,null,null,null,null,null,null,null,null,null,null,null,0,{"$f":"IF(W231=0,\"\",IF(COUNTIF(W$2:$W231,W231)=1,Order_Salim(RANK(W231,$W$2:$W$500)),Order_Salim(RANK(W231,$W$2:$W$500))&\" مكرّر  \"))","v":""}]
[null,null,null,null,null,null,null,null,null,null,null,null,null,null,null,null,null,null,null,null,null,null,null,0,{"$f":"IF(W232=0,\"\",IF(COUNTIF(W$2:$W232,W232)=1,Order_Salim(RANK(W232,$W$2:$W$500)),Order_Salim(RANK(W232,$W$2:$W$500))&\" مكرّر  \"))","v":""}]
[null,null,null,null,null,null,null,null,null,null,null,null,null,null,null,null,null,null,null,null,null,null,null,0,{"$f":"IF(W233=0,\"\",IF(COUNTIF(W$2:$W233,W233)=1,Order_Salim(RANK(W233,$W$2:$W$500)),Order_Salim(RANK(W233,$W$2:$W$500))&\" مكرّر  \"))","v":""}]
[null,null,null,null,null,null,null,null,null,null,null,null,null,null,null,null,null,null,null,null,null,null,null,0,{"$f":"IF(W234=0,\"\",IF(COUNTIF(W$2:$W234,W234)=1,Order_Salim(RANK(W234,$W$2:$W$500)),Order_Salim(RANK(W234,$W$2:$W$500))&\" مكرّر  \"))","v":""}]
[null,null,null,null,null,null,null,null,null,null,null,null,null,null,null,null,null,null,null,null,null,null,null,0,{"$f":"IF(W235=0,\"\",IF(COUNTIF(W$2:$W235,W235)=1,Order_Salim(RANK(W235,$W$2:$W$500)),Order_Salim(RANK(W235,$W$2:$W$500))&\" مكرّر  \"))","v":""}]
[null,null,null,null,null,null,null,null,null,null,null,null,null,null,null,null,null,null,null,null,null,null,null,0,{"$f":"IF(W236=0,\"\",IF(COUNTIF(W$2:$W236,W236)=1,Order_Salim(RANK(W236,$W$2:$W$500)),Order_Salim(RANK(W236,$W$2:$W$500))&\" مكرّر  \"))","v":""}]
[null,null,null,null,null,null,null,null,null,null,null,null,null,null,null,null,null,null,null,null,null,null,null,0,{"$f":"IF(W237=0,\"\",IF(COUNTIF(W$2:$W237,W237)=1,Order_Salim(RANK(W237,$W$2:$W$500)),Order_Salim(RANK(W237,$W$2:$W$500))&\" مكرّر  \"))","v":""}]
[null,null,null,null,null,null,null,null,null,null,null,null,null,null,null,null,null,null,null,null,null,null,null,0,{"$f":"IF(W238=0,\"\",IF(COUNTIF(W$2:$W238,W238)=1,Order_Salim(RANK(W238,$W$2:$W$500)),Order_Salim(RANK(W238,$W$2:$W$500))&\" مكرّر  \"))","v":""}]
[null,null,null,null,null,null,null,null,null,null,null,null,null,null,null,null,null,null,null,null,null,null,null,0,{"$f":"IF(W239=0,\"\",IF(COUNTIF(W$2:$W239,W239)=1,Order_Salim(RANK(W239,$W$2:$W$500)),Order_Salim(RANK(W239,$W$2:$W$500))&\" مكرّر  \"))","v":""}]
[null,null,null,null,null,null,null,null,null,null,null,null,null,null,null,null,null,null,null,null,null,null,null,0,{"$f":"IF(W240=0,\"\",IF(COUNTIF(W$2:$W240,W240)=1,Order_Salim(RANK(W240,$W$2:$W$500)),Order_Salim(RANK(W240,$W$2:$W$500))&\" مكرّر  \"))","v":""}]
[null,null,null,null,null,null,null,null,null,null,null,null,null,null,null,null,null,null,null,null,null,null,null,0,{"$f":"IF(W241=0,\"\",IF(COUNTIF(W$2:$W241,W241)=1,Order_Salim(RANK(W241,$W$2:$W$500)),Order_Salim(RANK(W241,$W$2:$W$500))&\" مكرّر  \"))","v":""}]
[null,null,null,null,null,null,null,null,null,null,null,null,null,null,null,null,null,null,null,null,null,null,null,0,{"$f":"IF(W242=0,\"\",IF(COUNTIF(W$2:$W242,W242)=1,Order_Salim(RANK(W242,$W$2:$W$500)),Order_Salim(RANK(W242,$W$2:$W$500))&\" مكرّر  \"))","v":""}]
[null,null,null,null,null,null,null,null,null,null,null,null,null,null,null,null,null,null,null,null,null,null,null,0,{"$f":"IF(W243=0,\"\",IF(COUNTIF(W$2:$W243,W243)=1,Order_Salim(RANK(W243,$W$2:$W$500)),Order_Salim(RANK(W243,$W$2:$W$500))&\" مكرّر  \"))","v":""}]
[null,null,null,null,null,null,null,null,null,null,null,null,null,null,null,null,null,null,null,null,null,null,null,0,{"$f":"IF(W244=0,\"\",IF(COUNTIF(W$2:$W244,W244)=1,Order_Salim(RANK(W244,$W$2:$W$500)),Order_Salim(RANK(W244,$W$2:$W$500))&\" مكرّر  \"))","v":""}]
[null,null,null,null,null,null,null,null,null,null,null,null,null,null,null,null,null,null,null,null,null,null,null,0,{"$f":"IF(W245=0,\"\",IF(COUNTIF(W$2:$W245,W245)=1,Order_Salim(RANK(W245,$W$2:$W$500)),Order_Salim(RANK(W245,$W$2:$W$500))&\" مكرّر  \"))","v":""}]
[null,null,null,null,null,null,null,null,null,null,null,null,null,null,null,null,null,null,null,null,null,null,null,0,{"$f":"IF(W246=0,\"\",IF(COUNTIF(W$2:$W246,W246)=1,Order_Salim(RANK(W246,$W$2:$W$500)),Order_Salim(RANK(W246,$W$2:$W$500))&\" مكرّر  \"))","v":""}]
[null,null,null,null,null,null,null,null,null,null,null,null,null,null,null,null,null,null,null,null,null,null,null,0,{"$f":"IF(W247=0,\"\",IF(COUNTIF(W$2:$W247,W247)=1,Order_Salim(RANK(W247,$W$2:$W$500)),Order_Salim(RANK(W247,$W$2:$W$500))&\" مكرّر  \"))","v":""}]
[null,null,null,null,null,null,null,null,null,null,null,null,null,null,null,null,null,null,null,null,null,null,null,0,{"$f":"IF(W248=0,\"\",IF(COUNTIF(W$2:$W248,W248)=1,Order_Salim(RANK(W248,$W$2:$W$500)),Order_Salim(RANK(W248,$W$2:$W$500))&\" مكرّر  \"))","v":""}]
[null,null,null,null,null,null,null,null,null,null,null,null,null,null,null,null,null,null,null,null,null,null,null,0,{"$f":"IF(W249=0,\"\",IF(COUNTIF(W$2:$W249,W249)=1,Order_Salim(RANK(W249,$W$2:$W$500)),Order_Salim(RANK(W249,$W$2:$W$500))&\" مكرّر  \"))","v":""}]
[null,null,null,null,null,null,null,null,null,null,null,null,null,null,null,null,null,null,null,null,null,null,null,0,{"$f":"IF(W250=0,\"\",IF(COUNTIF(W$2:$W250,W250)=1,Order_Salim(RANK(W250,$W$2:$W$500)),Order_Salim(RANK(W250,$W$2:$W$500))&\" مكرّر  \"))","v":""}]
[null,null,null,null,null,null,null,null,null,null,null,null,null,null,null,null,null,null,null,null,null,null,null,0,{"$f":"IF(W251=0,\"\",IF(COUNTIF(W$2:$W251,W251)=1,Order_Salim(RANK(W251,$W$2:$W$500)),Order_Salim(RANK(W251,$W$2:$W$500))&\" مكرّر  \"))","v":""}]
[null,null,null,null,null,null,null,null,null,null,null,null,null,null,null,null,null,null,null,null,null,null,null,0,{"$f":"IF(W252=0,\"\",IF(COUNTIF(W$2:$W252,W252)=1,Order_Salim(RANK(W252,$W$2:$W$500)),Order_Salim(RANK(W252,$W$2:$W$500))&\" مكرّر  \"))","v":""}]
[null,null,null,null,null,null,null,null,null,null,null,null,null,null,null,null,null,null,null,null,null,null,null,0,{"$f":"IF(W253=0,\"\",IF(COUNTIF(W$2:$W253,W253)=1,Order_Salim(RANK(W253,$W$2:$W$500)),Order_Salim(RANK(W253,$W$2:$W$500))&\" مكرّر  \"))","v":""}]
[null,null,null,null,null,null,null,null,null,null,null,null,null,null,null,null,null,null,null,null,null,null,null,0,{"$f":"IF(W254=0,\"\",IF(COUNTIF(W$2:$W254,W254)=1,Order_Salim(RANK(W254,$W$2:$W$500)),Order_Salim(RANK(W254,$W$2:$W$500))&\" مكرّر  \"))","v":""}]
[null,null,null,null,null,null,null,null,null,null,null,null,null,null,null,null,null,null,null,null,null,null,null,0,{"$f":"IF(W255=0,\"\",IF(COUNTIF(W$2:$W255,W255)=1,Order_Salim(RANK(W255,$W$2:$W$500)),Order_Salim(RANK(W255,$W$2:$W$500))&\" مكرّر  \"))","v":""}]
[null,null,null,null,null,null,null,null,null,null,null,null,null,null,null,null,null,null,null,null,null,null,null,0,{"$f":"IF(W256=0,\"\",IF(COUNTIF(W$2:$W256,W256)=1,Order_Salim(RANK(W256,$W$2:$W$500)),Order_Salim(RANK(W256,$W$2:$W$500))&\" مكرّر  \"))","v":""}]
[null,null,null,null,null,null,null,null,null,null,null,null,null,null,null,null,null,null,null,null,null,null,null,0,{"$f":"IF(W257=0,\"\",IF(COUNTIF(W$2:$W257,W257)=1,Order_Salim(RANK(W257,$W$2:$W$500)),Order_Salim(RANK(W257,$W$2:$W$500))&\" مكرّر  \"))","v":""}]
[null,null,null,null,null,null,null,null,null,null,null,null,null,null,null,null,null,null,null,null,null,null,null,0,{"$f":"IF(W258=0,\"\",IF(COUNTIF(W$2:$W258,W258)=1,Order_Salim(RANK(W258,$W$2:$W$500)),Order_Salim(RANK(W258,$W$2:$W$500))&\" مكرّر  \"))","v":""}]
[null,null,null,null,null,null,null,null,null,null,null,null,null,null,null,null,null,null,null,null,null,null,null,{"$f":"W259/350","v":0},{"$f":"IF(W259=0,\"\",IF(COUNTIF(W$2:$W259,W259)=1,Order_Salim(RANK(W259,$W$2:$W$500)),Order_Salim(RANK(W259,$W$2:$W$500))&\" مكرّر  \"))","v":""}]
[null,null,null,null,null,null,null,null,null,null,null,null,null,null,null,null,null,null,null,null,null,null,null,0,{"$f":"IF(W260=0,\"\",IF(COUNTIF(W$2:$W260,W260)=1,Order_Salim(RANK(W260,$W$2:$W$500)),Order_Salim(RANK(W260,$W$2:$W$500))&\" مكرّر  \"))","v":""}]
[null,null,null,null,null,null,null,null,null,null,null,null,null,null,null,null,null,null,null,null,null,null,null,0,{"$f":"IF(W261=0,\"\",IF(COUNTIF(W$2:$W261,W261)=1,Order_Salim(RANK(W261,$W$2:$W$500)),Order_Salim(RANK(W261,$W$2:$W$500))&\" مكرّر  \"))","v":""}]
[null,null,null,null,null,null,null,null,null,null,null,null,null,null,null,null,null,null,null,null,null,null,null,0,{"$f":"IF(W262=0,\"\",IF(COUNTIF(W$2:$W262,W262)=1,Order_Salim(RANK(W262,$W$2:$W$500)),Order_Salim(RANK(W262,$W$2:$W$500))&\" مكرّر  \"))","v":""}]
[null,null,null,null,null,null,null,null,null,null,null,null,null,null,null,null,null,null,null,null,null,null,null,0,{"$f":"IF(W263=0,\"\",IF(COUNTIF(W$2:$W263,W263)=1,Order_Salim(RANK(W263,$W$2:$W$500)),Order_Salim(RANK(W263,$W$2:$W$500))&\" مكرّر  \"))","v":""}]
[null,null,null,null,null,null,null,null,null,null,null,null,null,null,null,null,null,null,null,null,null,null,null,0,{"$f":"IF(W264=0,\"\",IF(COUNTIF(W$2:$W264,W264)=1,Order_Salim(RANK(W264,$W$2:$W$500)),Order_Salim(RANK(W264,$W$2:$W$500))&\" مكرّر  \"))","v":""}]
[null,null,null,null,null,null,null,null,null,null,null,null,null,null,null,null,null,null,null,null,null,null,null,0,{"$f":"IF(W265=0,\"\",IF(COUNTIF(W$2:$W265,W265)=1,Order_Salim(RANK(W265,$W$2:$W$500)),Order_Salim(RANK(W265,$W$2:$W$500))&\" مكرّر  \"))","v":""}]
[null,null,null,null,null,null,null,null,null,null,null,null,null,null,null,null,null,null,null,null,null,null,null,0,{"$f":"IF(W266=0,\"\",IF(COUNTIF(W$2:$W266,W266)=1,Order_Salim(RANK(W266,$W$2:$W$500)),Order_Salim(RANK(W266,$W$2:$W$500))&\" مكرّر  \"))","v":""}]
[null,null,null,null,null,null,null,null,null,null,null,null,null,null,null,null,null,null,null,null,null,null,null,0,{"$f":"IF(W267=0,\"\",IF(COUNTIF(W$2:$W267,W267)=1,Order_Salim(RANK(W267,$W$2:$W$500)),Order_Salim(RANK(W267,$W$2:$W$500))&\" مكرّر  \"))","v":""}]
[null,null,null,null,null,null,null,null,null,null,null,null,null,null,null,null,null,null,null,null,null,null,null,0,{"$f":"IF(W268=0,\"\",IF(COUNTIF(W$2:$W268,W268)=1,Order_Salim(RANK(W268,$W$2:$W$500)),Order_Salim(RANK(W268,$W$2:$W$500))&\" مكرّر  \"))","v":""}]
[null,null,null,null,null,null,null,null,null,null,null,null,null,null,null,null,null,null,null,null,null,null,null,0,{"$f":"IF(W269=0,\"\",IF(COUNTIF(W$2:$W269,W269)=1,Order_Salim(RANK(W269,$W$2:$W$500)),Order_Salim(RANK(W269,$W$2:$W$500))&\" مكرّر  \"))","v":""}]
[null,null,null,null,null,null,null,null,null,null,null,null,null,null,null,null,null,null,null,null,null,null,null,0,{"$f":"IF(W270=0,\"\",IF(COUNTIF(W$2:$W270,W270)=1,Order_Salim(RANK(W270,$W$2:$W$500)),Order_Salim(RANK(W270,$W$2:$W$500))&\" مكرّر  \"))","v":""}]
[null,null,null,null,null,null,null,null,null,null,null,null,null,null,null,null,null,null,null,null,null,null,null,0,{"$f":"IF(W271=0,\"\",IF(COUNTIF(W$2:$W271,W271)=1,Order_Salim(RANK(W271,$W$2:$W$500)),Order_Salim(RANK(W271,$W$2:$W$500))&\" مكرّر  \"))","v":""}]
[null,null,null,null,null,null,null,null,null,null,null,null,null,null,null,null,null,null,null,null,null,null,null,0,{"$f":"IF(W272=0,\"\",IF(COUNTIF(W$2:$W272,W272)=1,Order_Salim(RANK(W272,$W$2:$W$500)),Order_Salim(RANK(W272,$W$2:$W$500))&\" مكرّر  \"))","v":""}]
[null,null,null,null,null,null,null,null,null,null,null,null,null,null,null,null,null,null,null,null,null,null,null,0,{"$f":"IF(W273=0,\"\",IF(COUNTIF(W$2:$W273,W273)=1,Order_Salim(RANK(W273,$W$2:$W$500)),Order_Salim(RANK(W273,$W$2:$W$500))&\" مكرّر  \"))","v":""}]
[null,null,null,null,null,null,null,null,null,null,null,null,null,null,null,null,null,null,null,null,null,null,null,0,{"$f":"IF(W274=0,\"\",IF(COUNTIF(W$2:$W274,W274)=1,Order_Salim(RANK(W274,$W$2:$W$500)),Order_Salim(RANK(W274,$W$2:$W$500))&\" مكرّر  \"))","v":""}]
[null,null,null,null,null,null,null,null,null,null,null,null,null,null,null,null,null,null,null,null,null,null,null,0,{"$f":"IF(W275=0,\"\",IF(COUNTIF(W$2:$W275,W275)=1,Order_Salim(RANK(W275,$W$2:$W$500)),Order_Salim(RANK(W275,$W$2:$W$500))&\" مكرّر  \"))","v":""}]
[null,null,null,null,null,null,null,null,null,null,null,null,null,null,null,null,null,null,null,null,null,null,null,0,{"$f":"IF(W276=0,\"\",IF(COUNTIF(W$2:$W276,W276)=1,Order_Salim(RANK(W276,$W$2:$W$500)),Order_Salim(RANK(W276,$W$2:$W$500))&\" مكرّر  \"))","v":""}]
[null,null,null,null,null,null,null,null,null,null,null,null,null,null,null,null,null,null,null,null,null,null,null,0,{"$f":"IF(W277=0,\"\",IF(COUNTIF(W$2:$W277,W277)=1,Order_Salim(RANK(W277,$W$2:$W$500)),Order_Salim(RANK(W277,$W$2:$W$500))&\" مكرّر  \"))","v":""}]
[null,null,null,null,null,null,null,null,null,null,null,null,null,null,null,null,null,null,null,null,null,null,null,0,{"$f":"IF(W278=0,\"\",IF(COUNTIF(W$2:$W278,W278)=1,Order_Salim(RANK(W278,$W$2:$W$500)),Order_Salim(RANK(W278,$W$2:$W$500))&\" مكرّر  \"))","v":""}]
[null,null,null,null,null,null,null,null,null,null,null,null,null,null,null,null,null,null,null,null,null,null,null,0,{"$f":"IF(W279=0,\"\",IF(COUNTIF(W$2:$W279,W279)=1,Order_Salim(RANK(W279,$W$2:$W$500)),Order_Salim(RANK(W279,$W$2:$W$500))&\" مكرّر  \"))","v":""}]
[null,null,null,null,null,null,null,null,null,null,null,null,null,null,null,null,null,null,null,null,null,null,null,0,{"$f":"IF(W280=0,\"\",IF(COUNTIF(W$2:$W280,W280)=1,Order_Salim(RANK(W280,$W$2:$W$500)),Order_Salim(RANK(W280,$W$2:$W$500))&\" مكرّر  \"))","v":""}]
[null,null,null,null,null,null,null,null,null,null,null,null,null,null,null,null,null,null,null,null,null,null,null,0,{"$f":"IF(W281=0,\"\",IF(COUNTIF(W$2:$W281,W281)=1,Order_Salim(RANK(W281,$W$2:$W$500)),Order_Salim(RANK(W281,$W$2:$W$500))&\" مكرّر  \"))","v":""}]
[null,null,null,null,null,null,null,null,null,null,null,null,null,null,null,null,null,null,null,null,null,null,null,0,{"$f":"IF(W282=0,\"\",IF(COUNTIF(W$2:$W282,W282)=1,Order_Salim(RANK(W282,$W$2:$W$500)),Order_Salim(RANK(W282,$W$2:$W$500))&\" مكرّر  \"))","v":""}]
[null,null,null,null,null,null,null,null,null,null,null,null,null,null,null,null,null,null,null,null,null,null,null,0,{"$f":"IF(W283=0,\"\",IF(COUNTIF(W$2:$W283,W283)=1,Order_Salim(RANK(W283,$W$2:$W$500)),Order_Salim(RANK(W283,$W$2:$W$500))&\" مكرّر  \"))","v":""}]
[null,null,null,null,null,null,null,null,null,null,null,null,null,null,null,null,null,null,null,null,null,null,null,0,{"$f":"IF(W284=0,\"\",IF(COUNTIF(W$2:$W284,W284)=1,Order_Salim(RANK(W284,$W$2:$W$500)),Order_Salim(RANK(W284,$W$2:$W$500))&\" مكرّر  \"))","v":""}]
[null,null,null,null,null,null,null,null,null,null,null,null,null,null,null,null,null,null,null,null,null,null,null,0,{"$f":"IF(W285=0,\"\",IF(COUNTIF(W$2:$W285,W285)=1,Order_Salim(RANK(W285,$W$2:$W$500)),Order_Salim(RANK(W285,$W$2:$W$500))&\" مكرّر  \"))","v":""}]
[null,null,null,null,null,null,null,null,null,null,null,null,null,null,null,null,null,null,null,null,null,null,null,0,{"$f":"IF(W286=0,\"\",IF(COUNTIF(W$2:$W286,W286)=1,Order_Salim(RANK(W286,$W$2:$W$500)),Order_Salim(RANK(W286,$W$2:$W$500))&\" مكرّر  \"))","v":""}]
[null,null,null,null,null,null,null,null,null,null,null,null,null,null,null,null,null,null,null,null,null,null,null,0,{"$f":"IF(W287=0,\"\",IF(COUNTIF(W$2:$W287,W287)=1,Order_Salim(RANK(W287,$W$2:$W$500)),Order_Salim(RANK(W287,$W$2:$W$500))&\" مكرّر  \"))","v":""}]
[null,null,null,null,null,null,null,null,null,null,null,null,null,null,null,null,null,null,null,null,null,null,null,0,{"$f":"IF(W288=0,\"\",IF(COUNTIF(W$2:$W288,W288)=1,Order_Salim(RANK(W288,$W$2:$W$500)),Order_Salim(RANK(W288,$W$2:$W$500))&\" مكرّر  \"))","v":""}]
[null,null,null,null,null,null,null,null,null,null,null,null,null,null,null,null,null,null,null,null,null,null,null,0,{"$f":"IF(W289=0,\"\",IF(COUNTIF(W$2:$W289,W289)=1,Order_Salim(RANK(W289,$W$2:$W$500)),Order_Salim(RANK(W289,$W$2:$W$500))&\" مكرّر  \"))","v":""}]
[null,null,null,null,null,null,null,null,null,null,null,null,null,null,null,null,null,null,null,null,null,null,null,0,{"$f":"IF(W290=0,\"\",IF(COUNTIF(W$2:$W290,W290)=1,Order_Salim(RANK(W290,$W$2:$W$500)),Order_Salim(RANK(W290,$W$2:$W$500))&\" مكرّر  \"))","v":""}]
[null,null,null,null,null,null,null,null,null,null,null,null,null,null,null,null,null,null,null,null,null,null,null,0,{"$f":"IF(W291=0,\"\",IF(COUNTIF(W$2:$W291,W291)=1,Order_Salim(RANK(W291,$W$2:$W$500)),Order_Salim(RANK(W291,$W$2:$W$500))&\" مكرّر  \"))","v":""}]
[null,null,null,null,null,null,null,null,null,null,null,null,null,null,null,null,null,null,null,null,null,null,null,0,{"$f":"IF(W292=0,\"\",IF(COUNTIF(W$2:$W292,W292)=1,Order_Salim(RANK(W292,$W$2:$W$500)),Order_Salim(RANK(W292,$W$2:$W$500))&\" مكرّر  \"))","v":""}]
[null,null,null,null,null,null,null,null,null,null,null,null,null,null,null,null,null,null,null,null,null,null,null,0,{"$f":"IF(W293=0,\"\",IF(COUNTIF(W$2:$W293,W293)=1,Order_Salim(RANK(W293,$W$2:$W$500)),Order_Salim(RANK(W293,$W$2:$W$500))&\" مكرّر  \"))","v":""}]
[null,null,null,null,null,null,null,null,null,null,null,null,null,null,null,null,null,null,null,null,null,null,null,0,{"$f":"IF(W294=0,\"\",IF(COUNTIF(W$2:$W294,W294)=1,Order_Salim(RANK(W294,$W$2:$W$500)),Order_Salim(RANK(W294,$W$2:$W$500))&\" مكرّر  \"))","v":""}]
[null,null,null,null,null,null,null,null,null,null,null,null,null,null,null,null,null,null,null,null,null,null,null,0,{"$f":"IF(W295=0,\"\",IF(COUNTIF(W$2:$W295,W295)=1,Order_Salim(RANK(W295,$W$2:$W$500)),Order_Salim(RANK(W295,$W$2:$W$500))&\" مكرّر  \"))","v":""}]
[null,null,null,null,null,null,null,null,null,null,null,null,null,null,null,null,null,null,null,null,null,null,null,0,{"$f":"IF(W296=0,\"\",IF(COUNTIF(W$2:$W296,W296)=1,Order_Salim(RANK(W296,$W$2:$W$500)),Order_Salim(RANK(W296,$W$2:$W$500))&\" مكرّر  \"))","v":""}]
[null,null,null,null,null,null,null,null,null,null,null,null,null,null,null,null,null,null,null,null,null,null,null,0,{"$f":"IF(W297=0,\"\",IF(COUNTIF(W$2:$W297,W297)=1,Order_Salim(RANK(W297,$W$2:$W$500)),Order_Salim(RANK(W297,$W$2:$W$500))&\" مكرّر  \"))","v":""}]
[null,null,null,null,null,null,null,null,null,null,null,null,null,null,null,null,null,null,null,null,null,null,null,0,{"$f":"IF(W298=0,\"\",IF(COUNTIF(W$2:$W298,W298)=1,Order_Salim(RANK(W298,$W$2:$W$500)),Order_Salim(RANK(W298,$W$2:$W$500))&\" مكرّر  \"))","v":""}]
[null,null,null,null,null,null,null,null,null,null,null,null,null,null,null,null,null,null,null,null,null,null,null,0,{"$f":"IF(W299=0,\"\",IF(COUNTIF(W$2:$W299,W299)=1,Order_Salim(RANK(W299,$W$2:$W$500)),Order_Salim(RANK(W299,$W$2:$W$500))&\" مكرّر  \"))","v":""}]
[null,null,null,null,null,null,null,null,null,null,null,null,null,null,null,null,null,null,null,null,null,null,null,0,{"$f":"IF(W300=0,\"\",IF(COUNTIF(W$2:$W300,W300)=1,Order_Salim(RANK(W300,$W$2:$W$500)),Order_Salim(RANK(W300,$W$2:$W$500))&\" مكرّر  \"))","v":""}]
[null,null,null,null,null,null,null,null,null,null,null,null,null,null,null,null,null,null,null,null,null,null,null,0,{"$f":"IF(W301=0,\"\",IF(COUNTIF(W$2:$W301,W301)=1,Order_Salim(RANK(W301,$W$2:$W$500)),Order_Salim(RANK(W301,$W$2:$W$500))&\" مكرّر  \"))","v":""}]
[null,null,null,null,null,null,null,null,null,null,null,null,null,null,null,null,null,null,null,null,null,null,null,0,{"$f":"IF(W302=0,\"\",IF(COUNTIF(W$2:$W302,W302)=1,Order_Salim(RANK(W302,$W$2:$W$500)),Order_Salim(RANK(W302,$W$2:$W$500))&\" مكرّر  \"))","v":""}]
[null,null,null,null,null,null,null,null,null,null,null,null,null,null,null,null,null,null,null,null,null,null,null,0,{"$f":"IF(W303=0,\"\",IF(COUNTIF(W$2:$W303,W303)=1,Order_Salim(RANK(W303,$W$2:$W$500)),Order_Salim(RANK(W303,$W$2:$W$500))&\" مكرّر  \"))","v":""}]
[null,null,null,null,null,null,null,null,null,null,null,null,null,null,null,null,null,null,null,null,null,null,null,0,{"$f":"IF(W304=0,\"\",IF(COUNTIF(W$2:$W304,W304)=1,Order_Salim(RANK(W304,$W$2:$W$500)),Order_Salim(RANK(W304,$W$2:$W$500))&\" مكرّر  \"))","v":""}]
[null,null,null,null,null,null,null,null,null,null,null,null,null,null,null,null,null,null,null,null,null,null,null,0,{"$f":"IF(W305=0,\"\",IF(COUNTIF(W$2:$W305,W305)=1,Order_Salim(RANK(W305,$W$2:$W$500)),Order_Salim(RANK(W305,$W$2:$W$500))&\" مكرّر  \"))","v":""}]
[null,null,null,null,null,null,null,null,null,null,null,null,null,null,null,null,null,null,null,null,null,null,null,0,{"$f":"IF(W306=0,\"\",IF(COUNTIF(W$2:$W306,W306)=1,Order_Salim(RANK(W306,$W$2:$W$500)),Order_Salim(RANK(W306,$W$2:$W$500))&\" مكرّر  \"))","v":""}]
[null,null,null,null,null,null,null,null,null,null,null,null,null,null,null,null,null,null,null,null,null,null,null,0,{"$f":"IF(W307=0,\"\",IF(COUNTIF(W$2:$W307,W307)=1,Order_Salim(RANK(W307,$W$2:$W$500)),Order_Salim(RANK(W307,$W$2:$W$500))&\" مكرّر  \"))","v":""}]
[null,null,null,null,null,null,null,null,null,null,null,null,null,null,null,null,null,null,null,null,null,null,null,0,{"$f":"IF(W308=0,\"\",IF(COUNTIF(W$2:$W308,W308)=1,Order_Salim(RANK(W308,$W$2:$W$500)),Order_Salim(RANK(W308,$W$2:$W$500))&\" مكرّر  \"))","v":""}]
[null,null,null,null,null,null,null,null,null,null,null,null,null,null,null,null,null,null,null,null,null,null,null,0,{"$f":"IF(W309=0,\"\",IF(COUNTIF(W$2:$W309,W309)=1,Order_Salim(RANK(W309,$W$2:$W$500)),Order_Salim(RANK(W309,$W$2:$W$500))&\" مكرّر  \"))","v":""}]
[null,null,null,null,null,null,null,null,null,null,null,null,null,null,null,null,null,null,null,null,null,null,null,0,{"$f":"IF(W310=0,\"\",IF(COUNTIF(W$2:$W310,W310)=1,Order_Salim(RANK(W310,$W$2:$W$500)),Order_Salim(RANK(W310,$W$2:$W$500))&\" مكرّر  \"))","v":""}]
[null,null,null,null,null,null,null,null,null,null,null,null,null,null,null,null,null,null,null,null,null,null,null,0,{"$f":"IF(W311=0,\"\",IF(COUNTIF(W$2:$W311,W311)=1,Order_Salim(RANK(W311,$W$2:$W$500)),Order_Salim(RANK(W311,$W$2:$W$500))&\" مكرّر  \"))","v":""}]
[null,null,null,null,null,null,null,null,null,null,null,null,null,null,null,null,null,null,null,null,null,null,null,0,{"$f":"IF(W312=0,\"\",IF(COUNTIF(W$2:$W312,W312)=1,Order_Salim(RANK(W312,$W$2:$W$500)),Order_Salim(RANK(W312,$W$2:$W$500))&\" مكرّر  \"))","v":""}]
[null,null,null,null,null,null,null,null,null,null,null,null,null,null,null,null,null,null,null,null,null,null,null,0,{"$f":"IF(W313=0,\"\",IF(COUNTIF(W$2:$W313,W313)=1,Order_Salim(RANK(W313,$W$2:$W$500)),Order_Salim(RANK(W313,$W$2:$W$500))&\" مكرّر  \"))","v":""}]
[null,null,null,null,null,null,null,null,null,null,null,null,null,null,null,null,null,null,null,null,null,null,null,0,{"$f":"IF(W314=0,\"\",IF(COUNTIF(W$2:$W314,W314)=1,Order_Salim(RANK(W314,$W$2:$W$500)),Order_Salim(RANK(W314,$W$2:$W$500))&\" مكرّر  \"))","v":""}]
[null,null,null,null,null,null,null,null,null,null,null,null,null,null,null,null,null,null,null,null,null,null,null,0,{"$f":"IF(W315=0,\"\",IF(COUNTIF(W$2:$W315,W315)=1,Order_Salim(RANK(W315,$W$2:$W$500)),Order_Salim(RANK(W315,$W$2:$W$500))&\" مكرّر  \"))","v":""}]
[null,null,null,null,null,null,null,null,null,null,null,null,null,null,null,null,null,null,null,null,null,null,null,0,{"$f":"IF(W316=0,\"\",IF(COUNTIF(W$2:$W316,W316)=1,Order_Salim(RANK(W316,$W$2:$W$500)),Order_Salim(RANK(W316,$W$2:$W$500))&\" مكرّر  \"))","v":""}]
[null,null,null,null,null,null,null,null,null,null,null,null,null,null,null,null,null,null,null,null,null,null,null,0,{"$f":"IF(W317=0,\"\",IF(COUNTIF(W$2:$W317,W317)=1,Order_Salim(RANK(W317,$W$2:$W$500)),Order_Salim(RANK(W317,$W$2:$W$500))&\" مكرّر  \"))","v":""}]
[null,null,null,null,null,null,null,null,null,null,null,null,null,null,null,null,null,null,null,null,null,null,null,0,{"$f":"IF(W318=0,\"\",IF(COUNTIF(W$2:$W318,W318)=1,Order_Salim(RANK(W318,$W$2:$W$500)),Order_Salim(RANK(W318,$W$2:$W$500))&\" مكرّر  \"))","v":""}]
[null,null,null,null,null,null,null,null,null,null,null,null,null,null,null,null,null,null,null,null,null,null,null,0,{"$f":"IF(W319=0,\"\",IF(COUNTIF(W$2:$W319,W319)=1,Order_Salim(RANK(W319,$W$2:$W$500)),Order_Salim(RANK(W319,$W$2:$W$500))&\" مكرّر  \"))","v":""}]
[null,null,null,null,null,null,null,null,null,null,null,null,null,null,null,null,null,null,null,null,null,null,null,0,{"$f":"IF(W320=0,\"\",IF(COUNTIF(W$2:$W320,W320)=1,Order_Salim(RANK(W320,$W$2:$W$500)),Order_Salim(RANK(W320,$W$2:$W$500))&\" مكرّر  \"))","v":""}]
[null,null,null,null,null,null,null,null,null,null,null,null,null,null,null,null,null,null,null,null,null,null,null,0,{"$f":"IF(W321=0,\"\",IF(COUNTIF(W$2:$W321,W321)=1,Order_Salim(RANK(W321,$W$2:$W$500)),Order_Salim(RANK(W321,$W$2:$W$500))&\" مكرّر  \"))","v":""}]
[null,null,null,null,null,null,null,null,null,null,null,null,null,null,null,null,null,null,null,null,null,null,null,0,{"$f":"IF(W322=0,\"\",IF(COUNTIF(W$2:$W322,W322)=1,Order_Salim(RANK(W322,$W$2:$W$500)),Order_Salim(RANK(W322,$W$2:$W$500))&\" مكرّر  \"))","v":""}]
[null,null,null,null,null,null,null,null,null,null,null,null,null,null,null,null,null,null,null,null,null,null,null,{"$f":"W323/350","v":0},{"$f":"IF(W323=0,\"\",IF(COUNTIF(W$2:$W323,W323)=1,Order_Salim(RANK(W323,$W$2:$W$500)),Order_Salim(RANK(W323,$W$2:$W$500))&\" مكرّر  \"))","v":""}]
[null,null,null,null,null,null,null,null,null,null,null,null,null,null,null,null,null,null,null,null,null,null,null,0,{"$f":"IF(W324=0,\"\",IF(COUNTIF(W$2:$W324,W324)=1,Order_Salim(RANK(W324,$W$2:$W$500)),Order_Salim(RANK(W324,$W$2:$W$500))&\" مكرّر  \"))","v":""}]
[null,null,null,null,null,null,null,null,null,null,null,null,null,null,null,null,null,null,null,null,null,null,null,0,{"$f":"IF(W325=0,\"\",IF(COUNTIF(W$2:$W325,W325)=1,Order_Salim(RANK(W325,$W$2:$W$500)),Order_Salim(RANK(W325,$W$2:$W$500))&\" مكرّر  \"))","v":""}]
[null,null,null,null,null,null,null,null,null,null,null,null,null,null,null,null,null,null,null,null,null,null,null,0,{"$f":"IF(W326=0,\"\",IF(COUNTIF(W$2:$W326,W326)=1,Order_Salim(RANK(W326,$W$2:$W$500)),Order_Salim(RANK(W326,$W$2:$W$500))&\" مكرّر  \"))","v":""}]
[null,null,null,null,null,null,null,null,null,null,null,null,null,null,null,null,null,null,null,null,null,null,null,0,{"$f":"IF(W327=0,\"\",IF(COUNTIF(W$2:$W327,W327)=1,Order_Salim(RANK(W327,$W$2:$W$500)),Order_Salim(RANK(W327,$W$2:$W$500))&\" مكرّر  \"))","v":""}]
[null,null,null,null,null,null,null,null,null,null,null,null,null,null,null,null,null,null,null,null,null,null,null,0,{"$f":"IF(W328=0,\"\",IF(COUNTIF(W$2:$W328,W328)=1,Order_Salim(RANK(W328,$W$2:$W$500)),Order_Salim(RANK(W328,$W$2:$W$500))&\" مكرّر  \"))","v":""}]
[null,null,null,null,null,null,null,null,null,null,null,null,null,null,null,null,null,null,null,null,null,null,null,0,{"$f":"IF(W329=0,\"\",IF(COUNTIF(W$2:$W329,W329)=1,Order_Salim(RANK(W329,$W$2:$W$500)),Order_Salim(RANK(W329,$W$2:$W$500))&\" مكرّر  \"))","v":""}]
[null,null,null,null,null,null,null,null,null,null,null,null,null,null,null,null,null,null,null,null,null,null,null,0,{"$f":"IF(W330=0,\"\",IF(COUNTIF(W$2:$W330,W330)=1,Order_Salim(RANK(W330,$W$2:$W$500)),Order_Salim(RANK(W330,$W$2:$W$500))&\" مكرّر  \"))","v":""}]
[null,null,null,null,null,null,null,null,null,null,null,null,null,null,null,null,null,null,null,null,null,null,null,0,{"$f":"IF(W331=0,\"\",IF(COUNTIF(W$2:$W331,W331)=1,Order_Salim(RANK(W331,$W$2:$W$500)),Order_Salim(RANK(W331,$W$2:$W$500))&\" مكرّر  \"))","v":""}]
[null,null,null,null,null,null,null,null,null,null,null,null,null,null,null,null,null,null,null,null,null,null,null,0,{"$f":"IF(W332=0,\"\",IF(COUNTIF(W$2:$W332,W332)=1,Order_Salim(RANK(W332,$W$2:$W$500)),Order_Salim(RANK(W332,$W$2:$W$500))&\" مكرّر  \"))","v":""}]
[null,null,null,null,null,null,null,null,null,null,null,null,null,null,null,null,null,null,null,null,null,null,null,0,{"$f":"IF(W333=0,\"\",IF(COUNTIF(W$2:$W333,W333)=1,Order_Salim(RANK(W333,$W$2:$W$500)),Order_Salim(RANK(W333,$W$2:$W$500))&\" مكرّر  \"))","v":""}]
[null,null,null,null,null,null,null,null,null,null,null,null,null,null,null,null,null,null,null,null,null,null,null,0,{"$f":"IF(W334=0,\"\",IF(COUNTIF(W$2:$W334,W334)=1,Order_Salim(RANK(W334,$W$2:$W$500)),Order_Salim(RANK(W334,$W$2:$W$500))&\" مكرّر  \"))","v":""}]
[null,null,null,null,null,null,null,null,null,null,null,null,null,null,null,null,null,null,null,null,null,null,null,0,{"$f":"IF(W335=0,\"\",IF(COUNTIF(W$2:$W335,W335)=1,Order_Salim(RANK(W335,$W$2:$W$500)),Order_Salim(RANK(W335,$W$2:$W$500))&\" مكرّر  \"))","v":""}]
[null,null,null,null,null,null,null,null,null,null,null,null,null,null,null,null,null,null,null,null,null,null,null,0,{"$f":"IF(W336=0,\"\",IF(COUNTIF(W$2:$W336,W336)=1,Order_Salim(RANK(W336,$W$2:$W$500)),Order_Salim(RANK(W336,$W$2:$W$500))&\" مكرّر  \"))","v":""}]
[null,null,null,null,null,null,null,null,null,null,null,null,null,null,null,null,null,null,null,null,null,null,null,0,{"$f":"IF(W337=0,\"\",IF(COUNTIF(W$2:$W337,W337)=1,Order_Salim(RANK(W337,$W$2:$W$500)),Order_Salim(RANK(W337,$W$2:$W$500))&\" مكرّر  \"))","v":""}]
[null,null,null,null,null,null,null,null,null,null,null,null,null,null,null,null,null,null,null,null,null,null,null,0,{"$f":"IF(W338=0,\"\",IF(COUNTIF(W$2:$W338,W338)=1,Order_Salim(RANK(W338,$W$2:$W$500)),Order_Salim(RANK(W338,$W$2:$W$500))&\" مكرّر  \"))","v":""}]
[null,null,null,null,null,null,null,null,null,null,null,null,null,null,null,null,null,null,null,null,null,null,null,0,{"$f":"IF(W339=0,\"\",IF(COUNTIF(W$2:$W339,W339)=1,Order_Salim(RANK(W339,$W$2:$W$500)),Order_Salim(RANK(W339,$W$2:$W$500))&\" مكرّر  \"))","v":""}]
[null,null,null,null,null,null,null,null,null,null,null,null,null,null,null,null,null,null,null,null,null,null,null,0,{"$f":"IF(W340=0,\"\",IF(COUNTIF(W$2:$W340,W340)=1,Order_Salim(RANK(W340,$W$2:$W$500)),Order_Salim(RANK(W340,$W$2:$W$500))&\" مكرّر  \"))","v":""}]
[null,null,null,null,null,null,null,null,null,null,null,null,null,null,null,null,null,null,null,null,null,null,null,0,{"$f":"IF(W341=0,\"\",IF(COUNTIF(W$2:$W341,W341)=1,Order_Salim(RANK(W341,$W$2:$W$500)),Order_Salim(RANK(W341,$W$2:$W$500))&\" مكرّر  \"))","v":""}]
[null,null,null,null,null,null,null,null,null,null,null,null,null,null,null,null,null,null,null,null,null,null,null,0,{"$f":"IF(W342=0,\"\",IF(COUNTIF(W$2:$W342,W342)=1,Order_Salim(RANK(W342,$W$2:$W$500)),Order_Salim(RANK(W342,$W$2:$W$500))&\" مكرّر  \"))","v":""}]
[null,null,null,null,null,null,null,null,null,null,null,null,null,null,null,null,null,null,null,null,null,null,null,0,{"$f":"IF(W343=0,\"\",IF(COUNTIF(W$2:$W343,W343)=1,Order_Salim(RANK(W343,$W$2:$W$500)),Order_Salim(RANK(W343,$W$2:$W$500))&\" مكرّر  \"))","v":""}]
[null,null,null,null,null,null,null,null,null,null,null,null,null,null,null,null,null,null,null,null,null,null,null,0,{"$f":"IF(W344=0,\"\",IF(COUNTIF(W$2:$W344,W344)=1,Order_Salim(RANK(W344,$W$2:$W$500)),Order_Salim(RANK(W344,$W$2:$W$500))&\" مكرّر  \"))","v":""}]
[null,null,null,null,null,null,null,null,null,null,null,null,null,null,null,null,null,null,null,null,null,null,null,0,{"$f":"IF(W345=0,\"\",IF(COUNTIF(W$2:$W345,W345)=1,Order_Salim(RANK(W345,$W$2:$W$500)),Order_Salim(RANK(W345,$W$2:$W$500))&\" مكرّر  \"))","v":""}]
[null,null,null,null,null,null,null,null,null,null,null,null,null,null,null,null,null,null,null,null,null,null,null,0,{"$f":"IF(W346=0,\"\",IF(COUNTIF(W$2:$W346,W346)=1,Order_Salim(RANK(W346,$W$2:$W$500)),Order_Salim(RANK(W346,$W$2:$W$500))&\" مكرّر  \"))","v":""}]
[null,null,null,null,null,null,null,null,null,null,null,null,null,null,null,null,null,null,null,null,null,null,null,0,{"$f":"IF(W347=0,\"\",IF(COUNTIF(W$2:$W347,W347)=1,Order_Salim(RANK(W347,$W$2:$W$500)),Order_Salim(RANK(W347,$W$2:$W$500))&\" مكرّر  \"))","v":""}]
[null,null,null,null,null,null,null,null,null,null,null,null,null,null,null,null,null,null,null,null,null,null,null,0,{"$f":"IF(W348=0,\"\",IF(COUNTIF(W$2:$W348,W348)=1,Order_Salim(RANK(W348,$W$2:$W$500)),Order_Salim(RANK(W348,$W$2:$W$500))&\" مكرّر  \"))","v":""}]
[null,null,null,null,null,null,null,null,null,null,null,null,null,null,null,null,null,null,null,null,null,null,null,0,{"$f":"IF(W349=0,\"\",IF(COUNTIF(W$2:$W349,W349)=1,Order_Salim(RANK(W349,$W$2:$W$500)),Order_Salim(RANK(W349,$W$2:$W$500))&\" مكرّر  \"))","v":""}]
[null,null,null,null,null,null,null,null,null,null,null,null,null,null,null,null,null,null,null,null,null,null,null,0,{"$f":"IF(W350=\"\",\"\",IF(COUNTIF(W$2:$W350,W350)=1,Order_Salim(RANK(W350,$W$2:$W$21)),Order_Salim(RANK(W350,$W$2:$W$21))&\" مكرّر  \"))","v":""}]
[null,null,null,null,null,null,null,null,null,null,null,null,null,null,null,null,null,null,null,null,null,null,null,0,{"$f":"IF(W351=\"\",\"\",IF(COUNTIF(W$2:$W351,W351)=1,Order_Salim(RANK(W351,$W$2:$W$21)),Order_Salim(RANK(W351,$W$2:$W$21))&\" مكرّر  \"))","v":""}]
[null,null,null,null,null,null,null,null,null,null,null,null,null,null,null,null,null,null,null,null,null,null,null,0,{"$f":"IF(W352=\"\",\"\",IF(COUNTIF(W$2:$W352,W352)=1,Order_Salim(RANK(W352,$W$2:$W$21)),Order_Salim(RANK(W352,$W$2:$W$21))&\" مكرّر  \"))","v":""}]
[null,null,null,null,null,null,null,null,null,null,null,null,null,null,null,null,null,null,null,null,null,null,null,0,{"$f":"IF(W353=\"\",\"\",IF(COUNTIF(W$2:$W353,W353)=1,Order_Salim(RANK(W353,$W$2:$W$21)),Order_Salim(RANK(W353,$W$2:$W$21))&\" مكرّر  \"))","v":""}]
[null,null,null,null,null,null,null,null,null,null,null,null,null,null,null,null,null,null,null,null,null,null,null,0,{"$f":"IF(W354=\"\",\"\",IF(COUNTIF(W$2:$W354,W354)=1,Order_Salim(RANK(W354,$W$2:$W$21)),Order_Salim(RANK(W354,$W$2:$W$21))&\" مكرّر  \"))","v":""}]
[null,null,null,null,null,null,null,null,null,null,null,null,null,null,null,null,null,null,null,null,null,null,null,0,{"$f":"IF(W355=\"\",\"\",IF(COUNTIF(W$2:$W355,W355)=1,Order_Salim(RANK(W355,$W$2:$W$21)),Order_Salim(RANK(W355,$W$2:$W$21))&\" مكرّر  \"))","v":""}]
[null,null,null,null,null,null,null,null,null,null,null,null,null,null,null,null,null,null,null,null,null,null,null,0,{"$f":"IF(W356=\"\",\"\",IF(COUNTIF(W$2:$W356,W356)=1,Order_Salim(RANK(W356,$W$2:$W$21)),Order_Salim(RANK(W356,$W$2:$W$21))&\" مكرّر  \"))","v":""}]
[null,null,null,null,null,null,null,null,null,null,null,null,null,null,null,null,null,null,null,null,null,null,null,0,{"$f":"IF(W357=\"\",\"\",IF(COUNTIF(W$2:$W357,W357)=1,Order_Salim(RANK(W357,$W$2:$W$21)),Order_Salim(RANK(W357,$W$2:$W$21))&\" مكرّر  \"))","v":""}]
[null,null,null,null,null,null,null,null,null,null,null,null,null,null,null,null,null,null,null,null,null,null,null,0,{"$f":"IF(W358=\"\",\"\",IF(COUNTIF(W$2:$W358,W358)=1,Order_Salim(RANK(W358,$W$2:$W$21)),Order_Salim(RANK(W358,$W$2:$W$21))&\" مكرّر  \"))","v":""}]
[null,null,null,null,null,null,null,null,null,null,null,null,null,null,null,null,null,null,null,null,null,null,null,0,{"$f":"IF(W359=\"\",\"\",IF(COUNTIF(W$2:$W359,W359)=1,Order_Salim(RANK(W359,$W$2:$W$21)),Order_Salim(RANK(W359,$W$2:$W$21))&\" مكرّر  \"))","v":""}]
[null,null,null,null,null,null,null,null,null,null,null,null,null,null,null,null,null,null,null,null,null,null,null,0,{"$f":"IF(W360=\"\",\"\",IF(COUNTIF(W$2:$W360,W360)=1,Order_Salim(RANK(W360,$W$2:$W$21)),Order_Salim(RANK(W360,$W$2:$W$21))&\" مكرّر  \"))","v":""}]
[null,null,null,null,null,null,null,null,null,null,null,null,null,null,null,null,null,null,null,null,null,null,null,0,{"$f":"IF(W361=\"\",\"\",IF(COUNTIF(W$2:$W361,W361)=1,Order_Salim(RANK(W361,$W$2:$W$21)),Order_Salim(RANK(W361,$W$2:$W$21))&\" مكرّر  \"))","v":""}]
[null,null,null,null,null,null,null,null,null,null,null,null,null,null,null,null,null,null,null,null,null,null,null,0,{"$f":"IF(W362=\"\",\"\",IF(COUNTIF(W$2:$W362,W362)=1,Order_Salim(RANK(W362,$W$2:$W$21)),Order_Salim(RANK(W362,$W$2:$W$21))&\" مكرّر  \"))","v":""}]
[null,null,null,null,null,null,null,null,null,null,null,null,null,null,null,null,null,null,null,null,null,null,null,0,{"$f":"IF(W363=\"\",\"\",IF(COUNTIF(W$2:$W363,W363)=1,Order_Salim(RANK(W363,$W$2:$W$21)),Order_Salim(RANK(W363,$W$2:$W$21))&\" مكرّر  \"))","v":""}]
[null,null,null,null,null,null,null,null,null,null,null,null,null,null,null,null,null,null,null,null,null,null,null,0,{"$f":"IF(W364=\"\",\"\",IF(COUNTIF(W$2:$W364,W364)=1,Order_Salim(RANK(W364,$W$2:$W$21)),Order_Salim(RANK(W364,$W$2:$W$21))&\" مكرّر  \"))","v":""}]
[null,null,null,null,null,null,null,null,null,null,null,null,null,null,null,null,null,null,null,null,null,null,null,0,{"$f":"IF(W365=\"\",\"\",IF(COUNTIF(W$2:$W365,W365)=1,Order_Salim(RANK(W365,$W$2:$W$21)),Order_Salim(RANK(W365,$W$2:$W$21))&\" مكرّر  \"))","v":""}]
[null,null,null,null,null,null,null,null,null,null,null,null,null,null,null,null,null,null,null,null,null,null,null,0,{"$f":"IF(W366=\"\",\"\",IF(COUNTIF(W$2:$W366,W366)=1,Order_Salim(RANK(W366,$W$2:$W$21)),Order_Salim(RANK(W366,$W$2:$W$21))&\" مكرّر  \"))","v":""}]
[null,null,null,null,null,null,null,null,null,null,null,null,null,null,null,null,null,null,null,null,null,null,null,0,{"$f":"IF(W367=\"\",\"\",IF(COUNTIF(W$2:$W367,W367)=1,Order_Salim(RANK(W367,$W$2:$W$21)),Order_Salim(RANK(W367,$W$2:$W$21))&\" مكرّر  \"))","v":""}]
[null,null,null,null,null,null,null,null,null,null,null,null,null,null,null,null,null,null,null,null,null,null,null,0,{"$f":"IF(W368=\"\",\"\",IF(COUNTIF(W$2:$W368,W368)=1,Order_Salim(RANK(W368,$W$2:$W$21)),Order_Salim(RANK(W368,$W$2:$W$21))&\" مكرّر  \"))","v":""}]
[null,null,null,null,null,null,null,null,null,null,null,null,null,null,null,null,null,null,null,null,null,null,null,0,{"$f":"IF(W369=\"\",\"\",IF(COUNTIF(W$2:$W369,W369)=1,Order_Salim(RANK(W369,$W$2:$W$21)),Order_Salim(RANK(W369,$W$2:$W$21))&\" مكرّر  \"))","v":""}]
[null,null,null,null,null,null,null,null,null,null,null,null,null,null,null,null,null,null,null,null,null,null,null,0,{"$f":"IF(W370=\"\",\"\",IF(COUNTIF(W$2:$W370,W370)=1,Order_Salim(RANK(W370,$W$2:$W$21)),Order_Salim(RANK(W370,$W$2:$W$21))&\" مكرّر  \"))","v":""}]
[null,null,null,null,null,null,null,null,null,null,null,null,null,null,null,null,null,null,null,null,null,null,null,0,{"$f":"IF(W371=\"\",\"\",IF(COUNTIF(W$2:$W371,W371)=1,Order_Salim(RANK(W371,$W$2:$W$21)),Order_Salim(RANK(W371,$W$2:$W$21))&\" مكرّر  \"))","v":""}]
[null,null,null,null,null,null,null,null,null,null,null,null,null,null,null,null,null,null,null,null,null,null,null,0,{"$f":"IF(W372=\"\",\"\",IF(COUNTIF(W$2:$W372,W372)=1,Order_Salim(RANK(W372,$W$2:$W$21)),Order_Salim(RANK(W372,$W$2:$W$21))&\" مكرّر  \"))","v":""}]
[null,null,null,null,null,null,null,null,null,null,null,null,null,null,null,null,null,null,null,null,null,null,null,0,{"$f":"IF(W373=\"\",\"\",IF(COUNTIF(W$2:$W373,W373)=1,Order_Salim(RANK(W373,$W$2:$W$21)),Order_Salim(RANK(W373,$W$2:$W$21))&\" مكرّر  \"))","v":""}]
[null,null,null,null,null,null,null,null,null,null,null,null,null,null,null,null,null,null,null,null,null,null,null,0,{"$f":"IF(W374=\"\",\"\",IF(COUNTIF(W$2:$W374,W374)=1,Order_Salim(RANK(W374,$W$2:$W$21)),Order_Salim(RANK(W374,$W$2:$W$21))&\" مكرّر  \"))","v":""}]
[null,null,null,null,null,null,null,null,null,null,null,null,null,null,null,null,null,null,null,null,null,null,null,0,{"$f":"IF(W375=\"\",\"\",IF(COUNTIF(W$2:$W375,W375)=1,Order_Salim(RANK(W375,$W$2:$W$21)),Order_Salim(RANK(W375,$W$2:$W$21))&\" مكرّر  \"))","v":""}]
[null,null,null,null,null,null,null,null,null,null,null,null,null,null,null,null,null,null,null,null,null,null,null,0,{"$f":"IF(W376=\"\",\"\",IF(COUNTIF(W$2:$W376,W376)=1,Order_Salim(RANK(W376,$W$2:$W$21)),Order_Salim(RANK(W376,$W$2:$W$21))&\" مكرّر  \"))","v":""}]
[null,null,null,null,null,null,null,null,null,null,null,null,null,null,null,null,null,null,null,null,null,null,null,0,{"$f":"IF(W377=\"\",\"\",IF(COUNTIF(W$2:$W377,W377)=1,Order_Salim(RANK(W377,$W$2:$W$21)),Order_Salim(RANK(W377,$W$2:$W$21))&\" مكرّر  \"))","v":""}]
[null,null,null,null,null,null,null,null,null,null,null,null,null,null,null,null,null,null,null,null,null,null,null,0,{"$f":"IF(W378=\"\",\"\",IF(COUNTIF(W$2:$W378,W378)=1,Order_Salim(RANK(W378,$W$2:$W$21)),Order_Salim(RANK(W378,$W$2:$W$21))&\" مكرّر  \"))","v":""}]
[null,null,null,null,null,null,null,null,null,null,null,null,null,null,null,null,null,null,null,null,null,null,null,0,{"$f":"IF(W379=\"\",\"\",IF(COUNTIF(W$2:$W379,W379)=1,Order_Salim(RANK(W379,$W$2:$W$21)),Order_Salim(RANK(W379,$W$2:$W$21))&\" مكرّر  \"))","v":""}]
[null,null,null,null,null,null,null,null,null,null,null,null,null,null,null,null,null,null,null,null,null,null,null,0,{"$f":"IF(W380=\"\",\"\",IF(COUNTIF(W$2:$W380,W380)=1,Order_Salim(RANK(W380,$W$2:$W$21)),Order_Salim(RANK(W380,$W$2:$W$21))&\" مكرّر  \"))","v":""}]
[null,null,null,null,null,null,null,null,null,null,null,null,null,null,null,null,null,null,null,null,null,null,null,0,{"$f":"IF(W381=\"\",\"\",IF(COUNTIF(W$2:$W381,W381)=1,Order_Salim(RANK(W381,$W$2:$W$21)),Order_Salim(RANK(W381,$W$2:$W$21))&\" مكرّر  \"))","v":""}]
[null,null,null,null,null,null,null,null,null,null,null,null,null,null,null,null,null,null,null,null,null,null,null,0,{"$f":"IF(W382=\"\",\"\",IF(COUNTIF(W$2:$W382,W382)=1,Order_Salim(RANK(W382,$W$2:$W$21)),Order_Salim(RANK(W382,$W$2:$W$21))&\" مكرّر  \"))","v":""}]
[null,null,null,null,null,null,null,null,null,null,null,null,null,null,null,null,null,null,null,null,null,null,null,0,{"$f":"IF(W383=\"\",\"\",IF(COUNTIF(W$2:$W383,W383)=1,Order_Salim(RANK(W383,$W$2:$W$21)),Order_Salim(RANK(W383,$W$2:$W$21))&\" مكرّر  \"))","v":""}]
[null,null,null,null,null,null,null,null,null,null,null,null,null,null,null,null,null,null,null,null,null,null,null,0,{"$f":"IF(W384=\"\",\"\",IF(COUNTIF(W$2:$W384,W384)=1,Order_Salim(RANK(W384,$W$2:$W$21)),Order_Salim(RANK(W384,$W$2:$W$21))&\" مكرّر  \"))","v":""}]
[null,null,null,null,null,null,null,null,null,null,null,null,null,null,null,null,null,null,null,null,null,null,null,0,{"$f":"IF(W385=\"\",\"\",IF(COUNTIF(W$2:$W385,W385)=1,Order_Salim(RANK(W385,$W$2:$W$21)),Order_Salim(RANK(W385,$W$2:$W$21))&\" مكرّر  \"))","v":""}]
[null,null,null,null,null,null,null,null,null,null,null,null,null,null,null,null,null,null,null,null,null,null,null,0,{"$f":"IF(W386=\"\",\"\",IF(COUNTIF(W$2:$W386,W386)=1,Order_Salim(RANK(W386,$W$2:$W$21)),Order_Salim(RANK(W386,$W$2:$W$21))&\" مكرّر  \"))","v":""}]
[null,null,null,null,null,null,null,null,null,null,null,null,null,null,null,null,null,null,null,null,null,null,null,{"$f":"W387/350","v":0},{"$f":"IF(W387=\"\",\"\",IF(COUNTIF(W$2:$W387,W387)=1,Order_Salim(RANK(W387,$W$2:$W$21)),Order_Salim(RANK(W387,$W$2:$W$21))&\" مكرّر  \"))","v":""}]
[null,null,null,null,null,null,null,null,null,null,null,null,null,null,null,null,null,null,null,null,null,null,null,0,{"$f":"IF(W388=\"\",\"\",IF(COUNTIF(W$2:$W388,W388)=1,Order_Salim(RANK(W388,$W$2:$W$21)),Order_Salim(RANK(W388,$W$2:$W$21))&\" مكرّر  \"))","v":""}]
[null,null,null,null,null,null,null,null,null,null,null,null,null,null,null,null,null,null,null,null,null,null,null,0,{"$f":"IF(W389=\"\",\"\",IF(COUNTIF(W$2:$W389,W389)=1,Order_Salim(RANK(W389,$W$2:$W$21)),Order_Salim(RANK(W389,$W$2:$W$21))&\" مكرّر  \"))","v":""}]
[null,null,null,null,null,null,null,null,null,null,null,null,null,null,null,null,null,null,null,null,null,null,null,0,{"$f":"IF(W390=\"\",\"\",IF(COUNTIF(W$2:$W390,W390)=1,Order_Salim(RANK(W390,$W$2:$W$21)),Order_Salim(RANK(W390,$W$2:$W$21))&\" مكرّر  \"))","v":""}]
[null,null,null,null,null,null,null,null,null,null,null,null,null,null,null,null,null,null,null,null,null,null,null,0,{"$f":"IF(W391=\"\",\"\",IF(COUNTIF(W$2:$W391,W391)=1,Order_Salim(RANK(W391,$W$2:$W$21)),Order_Salim(RANK(W391,$W$2:$W$21))&\" مكرّر  \"))","v":""}]
[null,null,null,null,null,null,null,null,null,null,null,null,null,null,null,null,null,null,null,null,null,null,null,0,{"$f":"IF(W392=\"\",\"\",IF(COUNTIF(W$2:$W392,W392)=1,Order_Salim(RANK(W392,$W$2:$W$21)),Order_Salim(RANK(W392,$W$2:$W$21))&\" مكرّر  \"))","v":""}]
[null,null,null,null,null,null,null,null,null,null,null,null,null,null,null,null,null,null,null,null,null,null,null,0,{"$f":"IF(W393=\"\",\"\",IF(COUNTIF(W$2:$W393,W393)=1,Order_Salim(RANK(W393,$W$2:$W$21)),Order_Salim(RANK(W393,$W$2:$W$21))&\" مكرّر  \"))","v":""}]
[null,null,null,null,null,null,null,null,null,null,null,null,null,null,null,null,null,null,null,null,null,null,null,0,{"$f":"IF(W394=\"\",\"\",IF(COUNTIF(W$2:$W394,W394)=1,Order_Salim(RANK(W394,$W$2:$W$21)),Order_Salim(RANK(W394,$W$2:$W$21))&\" مكرّر  \"))","v":""}]
[null,null,null,null,null,null,null,null,null,null,null,null,null,null,null,null,null,null,null,null,null,null,null,0,{"$f":"IF(W395=\"\",\"\",IF(COUNTIF(W$2:$W395,W395)=1,Order_Salim(RANK(W395,$W$2:$W$21)),Order_Salim(RANK(W395,$W$2:$W$21))&\" مكرّر  \"))","v":""}]
[null,null,null,null,null,null,null,null,null,null,null,null,null,null,null,null,null,null,null,null,null,null,null,0,{"$f":"IF(W396=\"\",\"\",IF(COUNTIF(W$2:$W396,W396)=1,Order_Salim(RANK(W396,$W$2:$W$21)),Order_Salim(RANK(W396,$W$2:$W$21))&\" مكرّر  \"))","v":""}]
[null,null,null,null,null,null,null,null,null,null,null,null,null,null,null,null,null,null,null,null,null,null,null,0,{"$f":"IF(W397=\"\",\"\",IF(COUNTIF(W$2:$W397,W397)=1,Order_Salim(RANK(W397,$W$2:$W$21)),Order_Salim(RANK(W397,$W$2:$W$21))&\" مكرّر  \"))","v":""}]
[null,null,null,null,null,null,null,null,null,null,null,null,null,null,null,null,null,null,null,null,null,null,null,0,{"$f":"IF(W398=\"\",\"\",IF(COUNTIF(W$2:$W398,W398)=1,Order_Salim(RANK(W398,$W$2:$W$21)),Order_Salim(RANK(W398,$W$2:$W$21))&\" مكرّر  \"))","v":""}]
[null,null,null,null,null,null,null,null,null,null,null,null,null,null,null,null,null,null,null,null,null,null,null,0,{"$f":"IF(W399=\"\",\"\",IF(COUNTIF(W$2:$W399,W399)=1,Order_Salim(RANK(W399,$W$2:$W$21)),Order_Salim(RANK(W399,$W$2:$W$21))&\" مكرّر  \"))","v":""}]
[null,null,null,null,null,null,null,null,null,null,null,null,null,null,null,null,null,null,null,null,null,null,null,0,{"$f":"IF(W400=\"\",\"\",IF(COUNTIF(W$2:$W400,W400)=1,Order_Salim(RANK(W400,$W$2:$W$21)),Order_Salim(RANK(W400,$W$2:$W$21))&\" مكرّر  \"))","v":""}]
[null,null,null,null,null,null,null,null,null,null,null,null,null,null,null,null,null,null,null,null,null,null,null,0,{"$f":"IF(W401=\"\",\"\",IF(COUNTIF(W$2:$W401,W401)=1,Order_Salim(RANK(W401,$W$2:$W$21)),Order_Salim(RANK(W401,$W$2:$W$21))&\" مكرّر  \"))","v":""}]
[null,null,null,null,null,null,null,null,null,null,null,null,null,null,null,null,null,null,null,null,null,null,null,0,{"$f":"IF(W402=\"\",\"\",IF(COUNTIF(W$2:$W402,W402)=1,Order_Salim(RANK(W402,$W$2:$W$21)),Order_Salim(RANK(W402,$W$2:$W$21))&\" مكرّر  \"))","v":""}]
[null,null,null,null,null,null,null,null,null,null,null,null,null,null,null,null,null,null,null,null,null,null,null,0,{"$f":"IF(W403=\"\",\"\",IF(COUNTIF(W$2:$W403,W403)=1,Order_Salim(RANK(W403,$W$2:$W$21)),Order_Salim(RANK(W403,$W$2:$W$21))&\" مكرّر  \"))","v":""}]
[null,null,null,null,null,null,null,null,null,null,null,null,null,null,null,null,null,null,null,null,null,null,null,0,{"$f":"IF(W404=\"\",\"\",IF(COUNTIF(W$2:$W404,W404)=1,Order_Salim(RANK(W404,$W$2:$W$21)),Order_Salim(RANK(W404,$W$2:$W$21))&\" مكرّر  \"))","v":""}]
[null,null,null,null,null,null,null,null,null,null,null,null,null,null,null,null,null,null,null,null,null,null,null,0,{"$f":"IF(W405=\"\",\"\",IF(COUNTIF(W$2:$W405,W405)=1,Order_Salim(RANK(W405,$W$2:$W$21)),Order_Salim(RANK(W405,$W$2:$W$21))&\" مكرّر  \"))","v":""}]
[null,null,null,null,null,null,null,null,null,null,null,null,null,null,null,null,null,null,null,null,null,null,null,0,{"$f":"IF(W406=\"\",\"\",IF(COUNTIF(W$2:$W406,W406)=1,Order_Salim(RANK(W406,$W$2:$W$21)),Order_Salim(RANK(W406,$W$2:$W$21))&\" مكرّر  \"))","v":""}]
[null,null,null,null,null,null,null,null,null,null,null,null,null,null,null,null,null,null,null,null,null,null,null,0,{"$f":"IF(W407=\"\",\"\",IF(COUNTIF(W$2:$W407,W407)=1,Order_Salim(RANK(W407,$W$2:$W$21)),Order_Salim(RANK(W407,$W$2:$W$21))&\" مكرّر  \"))","v":""}]
[null,null,null,null,null,null,null,null,null,null,null,null,null,null,null,null,null,null,null,null,null,null,null,0,{"$f":"IF(W408=\"\",\"\",IF(COUNTIF(W$2:$W408,W408)=1,Order_Salim(RANK(W408,$W$2:$W$21)),Order_Salim(RANK(W408,$W$2:$W$21))&\" مكرّر  \"))","v":""}]
[null,null,null,null,null,null,null,null,null,null,null,null,null,null,null,null,null,null,null,null,null,null,null,0,{"$f":"IF(W409=\"\",\"\",IF(COUNTIF(W$2:$W409,W409)=1,Order_Salim(RANK(W409,$W$2:$W$21)),Order_Salim(RANK(W409,$W$2:$W$21))&\" مكرّر  \"))","v":""}]
[null,null,null,null,null,null,null,null,null,null,null,null,null,null,null,null,null,null,null,null,null,null,null,0,{"$f":"IF(W410=\"\",\"\",IF(COUNTIF(W$2:$W410,W410)=1,Order_Salim(RANK(W410,$W$2:$W$21)),Order_Salim(RANK(W410,$W$2:$W$21))&\" مكرّر  \"))","v":""}]
[null,null,null,null,null,null,null,null,null,null,null,null,null,null,null,null,null,null,null,null,null,null,null,0,{"$f":"IF(W411=\"\",\"\",IF(COUNTIF(W$2:$W411,W411)=1,Order_Salim(RANK(W411,$W$2:$W$21)),Order_Salim(RANK(W411,$W$2:$W$21))&\" مكرّر  \"))","v":""}]
[null,null,null,null,null,null,null,null,null,null,null,null,null,null,null,null,null,null,null,null,null,null,null,0,{"$f":"IF(W412=\"\",\"\",IF(COUNTIF(W$2:$W412,W412)=1,Order_Salim(RANK(W412,$W$2:$W$21)),Order_Salim(RANK(W412,$W$2:$W$21))&\" مكرّر  \"))","v":""}]
[null,null,null,null,null,null,null,null,null,null,null,null,null,null,null,null,null,null,null,null,null,null,null,0,{"$f":"IF(W413=\"\",\"\",IF(COUNTIF(W$2:$W413,W413)=1,Order_Salim(RANK(W413,$W$2:$W$21)),Order_Salim(RANK(W413,$W$2:$W$21))&\" مكرّر  \"))","v":""}]
[null,null,null,null,null,null,null,null,null,null,null,null,null,null,null,null,null,null,null,null,null,null,null,0,{"$f":"IF(W414=\"\",\"\",IF(COUNTIF(W$2:$W414,W414)=1,Order_Salim(RANK(W414,$W$2:$W$21)),Order_Salim(RANK(W414,$W$2:$W$21))&\" مكرّر  \"))","v":""}]
[null,null,null,null,null,null,null,null,null,null,null,null,null,null,null,null,null,null,null,null,null,null,null,0,{"$f":"IF(W415=\"\",\"\",IF(COUNTIF(W$2:$W415,W415)=1,Order_Salim(RANK(W415,$W$2:$W$21)),Order_Salim(RANK(W415,$W$2:$W$21))&\" مكرّر  \"))","v":""}]
[null,null,null,null,null,null,null,null,null,null,null,null,null,null,null,null,null,null,null,null,null,null,null,0,{"$f":"IF(W416=\"\",\"\",IF(COUNTIF(W$2:$W416,W416)=1,Order_Salim(RANK(W416,$W$2:$W$21)),Order_Salim(RANK(W416,$W$2:$W$21))&\" مكرّر  \"))","v":""}]
[null,null,null,null,null,null,null,null,null,null,null,null,null,null,null,null,null,null,null,null,null,null,null,0,{"$f":"IF(W417=\"\",\"\",IF(COUNTIF(W$2:$W417,W417)=1,Order_Salim(RANK(W417,$W$2:$W$21)),Order_Salim(RANK(W417,$W$2:$W$21))&\" مكرّر  \"))","v":""}]
[null,null,null,null,null,null,null,null,null,null,null,null,null,null,null,null,null,null,null,null,null,null,null,0,{"$f":"IF(W418=\"\",\"\",IF(COUNTIF(W$2:$W418,W418)=1,Order_Salim(RANK(W418,$W$2:$W$21)),Order_Salim(RANK(W418,$W$2:$W$21))&\" مكرّر  \"))","v":""}]
[null,null,null,null,null,null,null,null,null,null,null,null,null,null,null,null,null,null,null,null,null,null,null,0,{"$f":"IF(W419=\"\",\"\",IF(COUNTIF(W$2:$W419,W419)=1,Order_Salim(RANK(W419,$W$2:$W$21)),Order_Salim(RANK(W419,$W$2:$W$21))&\" مكرّر  \"))","v":""}]
[null,null,null,null,null,null,null,null,null,null,null,null,null,null,null,null,null,null,null,null,null,null,null,0,{"$f":"IF(W420=\"\",\"\",IF(COUNTIF(W$2:$W420,W420)=1,Order_Salim(RANK(W420,$W$2:$W$21)),Order_Salim(RANK(W420,$W$2:$W$21))&\" مكرّر  \"))","v":""}]
[null,null,null,null,null,null,null,null,null,null,null,null,null,null,null,null,null,null,null,null,null,null,null,0,{"$f":"IF(W421=\"\",\"\",IF(COUNTIF(W$2:$W421,W421)=1,Order_Salim(RANK(W421,$W$2:$W$21)),Order_Salim(RANK(W421,$W$2:$W$21))&\" مكرّر  \"))","v":""}]
[null,null,null,null,null,null,null,null,null,null,null,null,null,null,null,null,null,null,null,null,null,null,null,0,{"$f":"IF(W422=\"\",\"\",IF(COUNTIF(W$2:$W422,W422)=1,Order_Salim(RANK(W422,$W$2:$W$21)),Order_Salim(RANK(W422,$W$2:$W$21))&\" مكرّر  \"))","v":""}]
[null,null,null,null,null,null,null,null,null,null,null,null,null,null,null,null,null,null,null,null,null,null,null,0,{"$f":"IF(W423=\"\",\"\",IF(COUNTIF(W$2:$W423,W423)=1,Order_Salim(RANK(W423,$W$2:$W$21)),Order_Salim(RANK(W423,$W$2:$W$21))&\" مكرّر  \"))","v":""}]
[null,null,null,null,null,null,null,null,null,null,null,null,null,null,null,null,null,null,null,null,null,null,null,0,{"$f":"IF(W424=\"\",\"\",IF(COUNTIF(W$2:$W424,W424)=1,Order_Salim(RANK(W424,$W$2:$W$21)),Order_Salim(RANK(W424,$W$2:$W$21))&\" مكرّر  \"))","v":""}]
[null,null,null,null,null,null,null,null,null,null,null,null,null,null,null,null,null,null,null,null,null,null,null,0,{"$f":"IF(W425=\"\",\"\",IF(COUNTIF(W$2:$W425,W425)=1,Order_Salim(RANK(W425,$W$2:$W$21)),Order_Salim(RANK(W425,$W$2:$W$21))&\" مكرّر  \"))","v":""}]
[null,null,null,null,null,null,null,null,null,null,null,null,null,null,null,null,null,null,null,null,null,null,null,0,{"$f":"IF(W426=\"\",\"\",IF(COUNTIF(W$2:$W426,W426)=1,Order_Salim(RANK(W426,$W$2:$W$21)),Order_Salim(RANK(W426,$W$2:$W$21))&\" مكرّر  \"))","v":""}]
[null,null,null,null,null,null,null,null,null,null,null,null,null,null,null,null,null,null,null,null,null,null,null,0,{"$f":"IF(W427=\"\",\"\",IF(COUNTIF(W$2:$W427,W427)=1,Order_Salim(RANK(W427,$W$2:$W$21)),Order_Salim(RANK(W427,$W$2:$W$21))&\" مكرّر  \"))","v":""}]
[null,null,null,null,null,null,null,null,null,null,null,null,null,null,null,null,null,null,null,null,null,null,null,0,{"$f":"IF(W428=\"\",\"\",IF(COUNTIF(W$2:$W428,W428)=1,Order_Salim(RANK(W428,$W$2:$W$21)),Order_Salim(RANK(W428,$W$2:$W$21))&\" مكرّر  \"))","v":""}]
[null,null,null,null,null,null,null,null,null,null,null,null,null,null,null,null,null,null,null,null,null,null,null,0,{"$f":"IF(W429=\"\",\"\",IF(COUNTIF(W$2:$W429,W429)=1,Order_Salim(RANK(W429,$W$2:$W$21)),Order_Salim(RANK(W429,$W$2:$W$21))&\" مكرّر  \"))","v":""}]
[null,null,null,null,null,null,null,null,null,null,null,null,null,null,null,null,null,null,null,null,null,null,null,0,{"$f":"IF(W430=\"\",\"\",IF(COUNTIF(W$2:$W430,W430)=1,Order_Salim(RANK(W430,$W$2:$W$21)),Order_Salim(RANK(W430,$W$2:$W$21))&\" مكرّر  \"))","v":""}]
[null,null,null,null,null,null,null,null,null,null,null,null,null,null,null,null,null,null,null,null,null,null,null,0,{"$f":"IF(W431=\"\",\"\",IF(COUNTIF(W$2:$W431,W431)=1,Order_Salim(RANK(W431,$W$2:$W$21)),Order_Salim(RANK(W431,$W$2:$W$21))&\" مكرّر  \"))","v":""}]
[null,null,null,null,null,null,null,null,null,null,null,null,null,null,null,null,null,null,null,null,null,null,null,0,{"$f":"IF(W432=\"\",\"\",IF(COUNTIF(W$2:$W432,W432)=1,Order_Salim(RANK(W432,$W$2:$W$21)),Order_Salim(RANK(W432,$W$2:$W$21))&\" مكرّر  \"))","v":""}]
[null,null,null,null,null,null,null,null,null,null,null,null,null,null,null,null,null,null,null,null,null,null,null,0,{"$f":"IF(W433=\"\",\"\",IF(COUNTIF(W$2:$W433,W433)=1,Order_Salim(RANK(W433,$W$2:$W$21)),Order_Salim(RANK(W433,$W$2:$W$21))&\" مكرّر  \"))","v":""}]
[null,null,null,null,null,null,null,null,null,null,null,null,null,null,null,null,null,null,null,null,null,null,null,0,{"$f":"IF(W434=\"\",\"\",IF(COUNTIF(W$2:$W434,W434)=1,Order_Salim(RANK(W434,$W$2:$W$21)),Order_Salim(RANK(W434,$W$2:$W$21))&\" مكرّر  \"))","v":""}]
[null,null,null,null,null,null,null,null,null,null,null,null,null,null,null,null,null,null,null,null,null,null,null,0,{"$f":"IF(W435=\"\",\"\",IF(COUNTIF(W$2:$W435,W435)=1,Order_Salim(RANK(W435,$W$2:$W$21)),Order_Salim(RANK(W435,$W$2:$W$21))&\" مكرّر  \"))","v":""}]
[null,null,null,null,null,null,null,null,null,null,null,null,null,null,null,null,null,null,null,null,null,null,null,0,{"$f":"IF(W436=\"\",\"\",IF(COUNTIF(W$2:$W436,W436)=1,Order_Salim(RANK(W436,$W$2:$W$21)),Order_Salim(RANK(W436,$W$2:$W$21))&\" مكرّر  \"))","v":""}]
[null,null,null,null,null,null,null,null,null,null,null,null,null,null,null,null,null,null,null,null,null,null,null,0,{"$f":"IF(W437=\"\",\"\",IF(COUNTIF(W$2:$W437,W437)=1,Order_Salim(RANK(W437,$W$2:$W$21)),Order_Salim(RANK(W437,$W$2:$W$21))&\" مكرّر  \"))","v":""}]
[null,null,null,null,null,null,null,null,null,null,null,null,null,null,null,null,null,null,null,null,null,null,null,0,{"$f":"IF(W438=\"\",\"\",IF(COUNTIF(W$2:$W438,W438)=1,Order_Salim(RANK(W438,$W$2:$W$21)),Order_Salim(RANK(W438,$W$2:$W$21))&\" مكرّر  \"))","v":""}]
[null,null,null,null,null,null,null,null,null,null,null,null,null,null,null,null,null,null,null,null,null,null,null,0,{"$f":"IF(W439=\"\",\"\",IF(COUNTIF(W$2:$W439,W439)=1,Order_Salim(RANK(W439,$W$2:$W$21)),Order_Salim(RANK(W439,$W$2:$W$21))&\" مكرّر  \"))","v":""}]
[null,null,null,null,null,null,null,null,null,null,null,null,null,null,null,null,null,null,null,null,null,null,null,0,{"$f":"IF(W440=\"\",\"\",IF(COUNTIF(W$2:$W440,W440)=1,Order_Salim(RANK(W440,$W$2:$W$21)),Order_Salim(RANK(W440,$W$2:$W$21))&\" مكرّر  \"))","v":""}]
[null,null,null,null,null,null,null,null,null,null,null,null,null,null,null,null,null,null,null,null,null,null,null,0,{"$f":"IF(W441=\"\",\"\",IF(COUNTIF(W$2:$W441,W441)=1,Order_Salim(RANK(W441,$W$2:$W$21)),Order_Salim(RANK(W441,$W$2:$W$21))&\" مكرّر  \"))","v":""}]
[null,null,null,null,null,null,null,null,null,null,null,null,null,null,null,null,null,null,null,null,null,null,null,0,{"$f":"IF(W442=\"\",\"\",IF(COUNTIF(W$2:$W442,W442)=1,Order_Salim(RANK(W442,$W$2:$W$21)),Order_Salim(RANK(W442,$W$2:$W$21))&\" مكرّر  \"))","v":""}]
[null,null,null,null,null,null,null,null,null,null,null,null,null,null,null,null,null,null,null,null,null,null,null,0,{"$f":"IF(W443=\"\",\"\",IF(COUNTIF(W$2:$W443,W443)=1,Order_Salim(RANK(W443,$W$2:$W$21)),Order_Salim(RANK(W443,$W$2:$W$21))&\" مكرّر  \"))","v":""}]
[null,null,null,null,null,null,null,null,null,null,null,null,null,null,null,null,null,null,null,null,null,null,null,0,{"$f":"IF(W444=\"\",\"\",IF(COUNTIF(W$2:$W444,W444)=1,Order_Salim(RANK(W444,$W$2:$W$21)),Order_Salim(RANK(W444,$W$2:$W$21))&\" مكرّر  \"))","v":""}]
[null,null,null,null,null,null,null,null,null,null,null,null,null,null,null,null,null,null,null,null,null,null,null,0,{"$f":"IF(W445=\"\",\"\",IF(COUNTIF(W$2:$W445,W445)=1,Order_Salim(RANK(W445,$W$2:$W$21)),Order_Salim(RANK(W445,$W$2:$W$21))&\" مكرّر  \"))","v":""}]
[null,null,null,null,null,null,null,null,null,null,null,null,null,null,null,null,null,null,null,null,null,null,null,0,{"$f":"IF(W446=\"\",\"\",IF(COUNTIF(W$2:$W446,W446)=1,Order_Salim(RANK(W446,$W$2:$W$21)),Order_Salim(RANK(W446,$W$2:$W$21))&\" مكرّر  \"))","v":""}]
[null,null,null,null,null,null,null,null,null,null,null,null,null,null,null,null,null,null,null,null,null,null,null,0,{"$f":"IF(W447=\"\",\"\",IF(COUNTIF(W$2:$W447,W447)=1,Order_Salim(RANK(W447,$W$2:$W$21)),Order_Salim(RANK(W447,$W$2:$W$21))&\" مكرّر  \"))","v":""}]
[null,null,null,null,null,null,null,null,null,null,null,null,null,null,null,null,null,null,null,null,null,null,null,0,{"$f":"IF(W448=\"\",\"\",IF(COUNTIF(W$2:$W448,W448)=1,Order_Salim(RANK(W448,$W$2:$W$21)),Order_Salim(RANK(W448,$W$2:$W$21))&\" مكرّر  \"))","v":""}]
[null,null,null,null,null,null,null,null,null,null,null,null,null,null,null,null,null,null,null,null,null,null,null,0,{"$f":"IF(W449=\"\",\"\",IF(COUNTIF(W$2:$W449,W449)=1,Order_Salim(RANK(W449,$W$2:$W$21)),Order_Salim(RANK(W449,$W$2:$W$21))&\" مكرّر  \"))","v":""}]
[null,null,null,null,null,null,null,null,null,null,null,null,null,null,null,null,null,null,null,null,null,null,null,0,{"$f":"IF(W450=\"\",\"\",IF(COUNTIF(W$2:$W450,W450)=1,Order_Salim(RANK(W450,$W$2:$W$21)),Order_Salim(RANK(W450,$W$2:$W$21))&\" مكرّر  \"))","v":""}]
[null,null,null,null,null,null,null,null,null,null,null,null,null,null,null,null,null,null,null,null,null,null,null,{"$f":"W451/350","v":0},{"$f":"IF(W451=\"\",\"\",IF(COUNTIF(W$2:$W451,W451)=1,Order_Salim(RANK(W451,$W$2:$W$21)),Order_Salim(RANK(W451,$W$2:$W$21))&\" مكرّر  \"))","v":""}]
[null,null,null,null,null,null,null,null,null,null,null,null,null,null,null,null,null,null,null,null,null,null,null,0,{"$f":"IF(W452=\"\",\"\",IF(COUNTIF(W$2:$W452,W452)=1,Order_Salim(RANK(W452,$W$2:$W$21)),Order_Salim(RANK(W452,$W$2:$W$21))&\" مكرّر  \"))","v":""}]
[null,null,null,null,null,null,null,null,null,null,null,null,null,null,null,null,null,null,null,null,null,null,null,0,{"$f":"IF(W453=\"\",\"\",IF(COUNTIF(W$2:$W453,W453)=1,Order_Salim(RANK(W453,$W$2:$W$21)),Order_Salim(RANK(W453,$W$2:$W$21))&\" مكرّر  \"))","v":""}]
[null,null,null,null,null,null,null,null,null,null,null,null,null,null,null,null,null,null,null,null,null,null,null,0,{"$f":"IF(W454=\"\",\"\",IF(COUNTIF(W$2:$W454,W454)=1,Order_Salim(RANK(W454,$W$2:$W$21)),Order_Salim(RANK(W454,$W$2:$W$21))&\" مكرّر  \"))","v":""}]
[null,null,null,null,null,null,null,null,null,null,null,null,null,null,null,null,null,null,null,null,null,null,null,0,{"$f":"IF(W455=\"\",\"\",IF(COUNTIF(W$2:$W455,W455)=1,Order_Salim(RANK(W455,$W$2:$W$21)),Order_Salim(RANK(W455,$W$2:$W$21))&\" مكرّر  \"))","v":""}]
[null,null,null,null,null,null,null,null,null,null,null,null,null,null,null,null,null,null,null,null,null,null,null,0,{"$f":"IF(W456=\"\",\"\",IF(COUNTIF(W$2:$W456,W456)=1,Order_Salim(RANK(W456,$W$2:$W$21)),Order_Salim(RANK(W456,$W$2:$W$21))&\" مكرّر  \"))","v":""}]
[null,null,null,null,null,null,null,null,null,null,null,null,null,null,null,null,null,null,null,null,null,null,null,0,{"$f":"IF(W457=\"\",\"\",IF(COUNTIF(W$2:$W457,W457)=1,Order_Salim(RANK(W457,$W$2:$W$21)),Order_Salim(RANK(W457,$W$2:$W$21))&\" مكرّر  \"))","v":""}]
[null,null,null,null,null,null,null,null,null,null,null,null,null,null,null,null,null,null,null,null,null,null,null,0,{"$f":"IF(W458=\"\",\"\",IF(COUNTIF(W$2:$W458,W458)=1,Order_Salim(RANK(W458,$W$2:$W$21)),Order_Salim(RANK(W458,$W$2:$W$21))&\" مكرّر  \"))","v":""}]
[null,null,null,null,null,null,null,null,null,null,null,null,null,null,null,null,null,null,null,null,null,null,null,0,{"$f":"IF(W459=\"\",\"\",IF(COUNTIF(W$2:$W459,W459)=1,Order_Salim(RANK(W459,$W$2:$W$21)),Order_Salim(RANK(W459,$W$2:$W$21))&\" مكرّر  \"))","v":""}]
[null,null,null,null,null,null,null,null,null,null,null,null,null,null,null,null,null,null,null,null,null,null,null,0,{"$f":"IF(W460=\"\",\"\",IF(COUNTIF(W$2:$W460,W460)=1,Order_Salim(RANK(W460,$W$2:$W$21)),Order_Salim(RANK(W460,$W$2:$W$21))&\" مكرّر  \"))","v":""}]
[null,null,null,null,null,null,null,null,null,null,null,null,null,null,null,null,null,null,null,null,null,null,null,0,{"$f":"IF(W461=\"\",\"\",IF(COUNTIF(W$2:$W461,W461)=1,Order_Salim(RANK(W461,$W$2:$W$21)),Order_Salim(RANK(W461,$W$2:$W$21))&\" مكرّر  \"))","v":""}]
[null,null,null,null,null,null,null,null,null,null,null,null,null,null,null,null,null,null,null,null,null,null,null,0,{"$f":"IF(W462=\"\",\"\",IF(COUNTIF(W$2:$W462,W462)=1,Order_Salim(RANK(W462,$W$2:$W$21)),Order_Salim(RANK(W462,$W$2:$W$21))&\" مكرّر  \"))","v":""}]
[null,null,null,null,null,null,null,null,null,null,null,null,null,null,null,null,null,null,null,null,null,null,null,0,{"$f":"IF(W463=\"\",\"\",IF(COUNTIF(W$2:$W463,W463)=1,Order_Salim(RANK(W463,$W$2:$W$21)),Order_Salim(RANK(W463,$W$2:$W$21))&\" مكرّر  \"))","v":""}]
[null,null,null,null,null,null,null,null,null,null,null,null,null,null,null,null,null,null,null,null,null,null,null,0,{"$f":"IF(W464=\"\",\"\",IF(COUNTIF(W$2:$W464,W464)=1,Order_Salim(RANK(W464,$W$2:$W$21)),Order_Salim(RANK(W464,$W$2:$W$21))&\" مكرّر  \"))","v":""}]
[null,null,null,null,null,null,null,null,null,null,null,null,null,null,null,null,null,null,null,null,null,null,null,0,{"$f":"IF(W465=\"\",\"\",IF(COUNTIF(W$2:$W465,W465)=1,Order_Salim(RANK(W465,$W$2:$W$21)),Order_Salim(RANK(W465,$W$2:$W$21))&\" مكرّر  \"))","v":""}]
[null,null,null,null,null,null,null,null,null,null,null,null,null,null,null,null,null,null,null,null,null,null,null,0,{"$f":"IF(W466=\"\",\"\",IF(COUNTIF(W$2:$W466,W466)=1,Order_Salim(RANK(W466,$W$2:$W$21)),Order_Salim(RANK(W466,$W$2:$W$21))&\" مكرّر  \"))","v":""}]
[null,null,null,null,null,null,null,null,null,null,null,null,null,null,null,null,null,null,null,null,null,null,null,0,{"$f":"IF(W467=\"\",\"\",IF(COUNTIF(W$2:$W467,W467)=1,Order_Salim(RANK(W467,$W$2:$W$21)),Order_Salim(RANK(W467,$W$2:$W$21))&\" مكرّر  \"))","v":""}]
[null,null,null,null,null,null,null,null,null,null,null,null,null,null,null,null,null,null,null,null,null,null,null,0,{"$f":"IF(W468=\"\",\"\",IF(COUNTIF(W$2:$W468,W468)=1,Order_Salim(RANK(W468,$W$2:$W$21)),Order_Salim(RANK(W468,$W$2:$W$21))&\" مكرّر  \"))","v":""}]
[null,null,null,null,null,null,null,null,null,null,null,null,null,null,null,null,null,null,null,null,null,null,null,0,{"$f":"IF(W469=\"\",\"\",IF(COUNTIF(W$2:$W469,W469)=1,Order_Salim(RANK(W469,$W$2:$W$21)),Order_Salim(RANK(W469,$W$2:$W$21))&\" مكرّر  \"))","v":""}]
[null,null,null,null,null,null,null,null,null,null,null,null,null,null,null,null,null,null,null,null,null,null,null,0,{"$f":"IF(W470=\"\",\"\",IF(COUNTIF(W$2:$W470,W470)=1,Order_Salim(RANK(W470,$W$2:$W$21)),Order_Salim(RANK(W470,$W$2:$W$21))&\" مكرّر  \"))","v":""}]
[null,null,null,null,null,null,null,null,null,null,null,null,null,null,null,null,null,null,null,null,null,null,null,0,{"$f":"IF(W471=\"\",\"\",IF(COUNTIF(W$2:$W471,W471)=1,Order_Salim(RANK(W471,$W$2:$W$21)),Order_Salim(RANK(W471,$W$2:$W$21))&\" مكرّر  \"))","v":""}]
[null,null,null,null,null,null,null,null,null,null,null,null,null,null,null,null,null,null,null,null,null,null,null,0,{"$f":"IF(W472=\"\",\"\",IF(COUNTIF(W$2:$W472,W472)=1,Order_Salim(RANK(W472,$W$2:$W$21)),Order_Salim(RANK(W472,$W$2:$W$21))&\" مكرّر  \"))","v":""}]
[null,null,null,null,null,null,null,null,null,null,null,null,null,null,null,null,null,null,null,null,null,null,null,0,{"$f":"IF(W473=\"\",\"\",IF(COUNTIF(W$2:$W473,W473)=1,Order_Salim(RANK(W473,$W$2:$W$21)),Order_Salim(RANK(W473,$W$2:$W$21))&\" مكرّر  \"))","v":""}]
[null,null,null,null,null,null,null,null,null,null,null,null,null,null,null,null,null,null,null,null,null,null,null,0,{"$f":"IF(W474=\"\",\"\",IF(COUNTIF(W$2:$W474,W474)=1,Order_Salim(RANK(W474,$W$2:$W$21)),Order_Salim(RANK(W474,$W$2:$W$21))&\" مكرّر  \"))","v":""}]
[null,null,null,null,null,null,null,null,null,null,null,null,null,null,null,null,null,null,null,null,null,null,null,0,{"$f":"IF(W475=\"\",\"\",IF(COUNTIF(W$2:$W475,W475)=1,Order_Salim(RANK(W475,$W$2:$W$21)),Order_Salim(RANK(W475,$W$2:$W$21))&\" مكرّر  \"))","v":""}]
[null,null,null,null,null,null,null,null,null,null,null,null,null,null,null,null,null,null,null,null,null,null,null,0,{"$f":"IF(W476=\"\",\"\",IF(COUNTIF(W$2:$W476,W476)=1,Order_Salim(RANK(W476,$W$2:$W$21)),Order_Salim(RANK(W476,$W$2:$W$21))&\" مكرّر  \"))","v":""}]
[null,null,null,null,null,null,null,null,null,null,null,null,null,null,null,null,null,null,null,null,null,null,null,0,{"$f":"IF(W477=\"\",\"\",IF(COUNTIF(W$2:$W477,W477)=1,Order_Salim(RANK(W477,$W$2:$W$21)),Order_Salim(RANK(W477,$W$2:$W$21))&\" مكرّر  \"))","v":""}]
[null,null,null,null,null,null,null,null,null,null,null,null,null,null,null,null,null,null,null,null,null,null,null,0,{"$f":"IF(W478=\"\",\"\",IF(COUNTIF(W$2:$W478,W478)=1,Order_Salim(RANK(W478,$W$2:$W$21)),Order_Salim(RANK(W478,$W$2:$W$21))&\" مكرّر  \"))","v":""}]
[null,null,null,null,null,null,null,null,null,null,null,null,null,null,null,null,null,null,null,null,null,null,null,0,{"$f":"IF(W479=\"\",\"\",IF(COUNTIF(W$2:$W479,W479)=1,Order_Salim(RANK(W479,$W$2:$W$21)),Order_Salim(RANK(W479,$W$2:$W$21))&\" مكرّر  \"))","v":""}]
[null,null,null,null,null,null,null,null,null,null,null,null,null,null,null,null,null,null,null,null,null,null,null,0,{"$f":"IF(W480=\"\",\"\",IF(COUNTIF(W$2:$W480,W480)=1,Order_Salim(RANK(W480,$W$2:$W$21)),Order_Salim(RANK(W480,$W$2:$W$21))&\" مكرّر  \"))","v":""}]
[null,null,null,null,null,null,null,null,null,null,null,null,null,null,null,null,null,null,null,null,null,null,null,0,{"$f":"IF(W481=\"\",\"\",IF(COUNTIF(W$2:$W481,W481)=1,Order_Salim(RANK(W481,$W$2:$W$21)),Order_Salim(RANK(W481,$W$2:$W$21))&\" مكرّر  \"))","v":""}]
[null,null,null,null,null,null,null,null,null,null,null,null,null,null,null,null,null,null,null,null,null,null,null,0,{"$f":"IF(W482=\"\",\"\",IF(COUNTIF(W$2:$W482,W482)=1,Order_Salim(RANK(W482,$W$2:$W$21)),Order_Salim(RANK(W482,$W$2:$W$21))&\" مكرّر  \"))","v":""}]
[null,null,null,null,null,null,null,null,null,null,null,null,null,null,null,null,null,null,null,null,null,null,null,0,{"$f":"IF(W483=\"\",\"\",IF(COUNTIF(W$2:$W483,W483)=1,Order_Salim(RANK(W483,$W$2:$W$21)),Order_Salim(RANK(W483,$W$2:$W$21))&\" مكرّر  \"))","v":""}]
[null,null,null,null,null,null,null,null,null,null,null,null,null,null,null,null,null,null,null,null,null,null,null,0,{"$f":"IF(W484=\"\",\"\",IF(COUNTIF(W$2:$W484,W484)=1,Order_Salim(RANK(W484,$W$2:$W$21)),Order_Salim(RANK(W484,$W$2:$W$21))&\" مكرّر  \"))","v":""}]
[null,null,null,null,null,null,null,null,null,null,null,null,null,null,null,null,null,null,null,null,null,null,null,0,{"$f":"IF(W485=\"\",\"\",IF(COUNTIF(W$2:$W485,W485)=1,Order_Salim(RANK(W485,$W$2:$W$21)),Order_Salim(RANK(W485,$W$2:$W$21))&\" مكرّر  \"))","v":""}]
[null,null,null,null,null,null,null,null,null,null,null,null,null,null,null,null,null,null,null,null,null,null,null,0,{"$f":"IF(W486=\"\",\"\",IF(COUNTIF(W$2:$W486,W486)=1,Order_Salim(RANK(W486,$W$2:$W$21)),Order_Salim(RANK(W486,$W$2:$W$21))&\" مكرّر  \"))","v":""}]
[null,null,null,null,null,null,null,null,null,null,null,null,null,null,null,null,null,null,null,null,null,null,null,0,{"$f":"IF(W487=\"\",\"\",IF(COUNTIF(W$2:$W487,W487)=1,Order_Salim(RANK(W487,$W$2:$W$21)),Order_Salim(RANK(W487,$W$2:$W$21))&\" مكرّر  \"))","v":""}]
[null,null,null,null,null,null,null,null,null,null,null,null,null,null,null,null,null,null,null,null,null,null,null,0,{"$f":"IF(W488=\"\",\"\",IF(COUNTIF(W$2:$W488,W488)=1,Order_Salim(RANK(W488,$W$2:$W$21)),Order_Salim(RANK(W488,$W$2:$W$21))&\" مكرّر  \"))","v":""}]
[null,null,null,null,null,null,null,null,null,null,null,null,null,null,null,null,null,null,null,null,null,null,null,0,{"$f":"IF(W489=\"\",\"\",IF(COUNTIF(W$2:$W489,W489)=1,Order_Salim(RANK(W489,$W$2:$W$21)),Order_Salim(RANK(W489,$W$2:$W$21))&\" مكرّر  \"))","v":""}]
[null,null,null,null,null,null,null,null,null,null,null,null,null,null,null,null,null,null,null,null,null,null,null,0,{"$f":"IF(W490=\"\",\"\",IF(COUNTIF(W$2:$W490,W490)=1,Order_Salim(RANK(W490,$W$2:$W$21)),Order_Salim(RANK(W490,$W$2:$W$21))&\" مكرّر  \"))","v":""}]
[null,null,null,null,null,null,null,null,null,null,null,null,null,null,null,null,null,null,null,null,null,null,null,0,{"$f":"IF(W491=\"\",\"\",IF(COUNTIF(W$2:$W491,W491)=1,Order_Salim(RANK(W491,$W$2:$W$21)),Order_Salim(RANK(W491,$W$2:$W$21))&\" مكرّر  \"))","v":""}]
[null,null,null,null,null,null,null,null,null,null,null,null,null,null,null,null,null,null,null,null,null,null,null,0,{"$f":"IF(W492=\"\",\"\",IF(COUNTIF(W$2:$W492,W492)=1,Order_Salim(RANK(W492,$W$2:$W$21)),Order_Salim(RANK(W492,$W$2:$W$21))&\" مكرّر  \"))","v":""}]
[null,null,null,null,null,null,null,null,null,null,null,null,null,null,null,null,null,null,null,null,null,null,null,0,{"$f":"IF(W493=\"\",\"\",IF(COUNTIF(W$2:$W493,W493)=1,Order_Salim(RANK(W493,$W$2:$W$21)),Order_Salim(RANK(W493,$W$2:$W$21))&\" مكرّر  \"))","v":""}]
[null,null,null,null,null,null,null,null,null,null,null,null,null,null,null,null,null,null,null,null,null,null,null,0,{"$f":"IF(W494=\"\",\"\",IF(COUNTIF(W$2:$W494,W494)=1,Order_Salim(RANK(W494,$W$2:$W$21)),Order_Salim(RANK(W494,$W$2:$W$21))&\" مكرّر  \"))","v":""}]
[null,null,null,null,null,null,null,null,null,null,null,null,null,null,null,null,null,null,null,null,null,null,null,0,{"$f":"IF(W495=\"\",\"\",IF(COUNTIF(W$2:$W495,W495)=1,Order_Salim(RANK(W495,$W$2:$W$21)),Order_Salim(RANK(W495,$W$2:$W$21))&\" مكرّر  \"))","v":""}]
[null,null,null,null,null,null,null,null,null,null,null,null,null,null,null,null,null,null,null,null,null,null,null,0,{"$f":"IF(W496=\"\",\"\",IF(COUNTIF(W$2:$W496,W496)=1,Order_Salim(RANK(W496,$W$2:$W$21)),Order_Salim(RANK(W496,$W$2:$W$21))&\" مكرّر  \"))","v":""}]
[null,null,null,null,null,null,null,null,null,null,null,null,null,null,null,null,null,null,null,null,null,null,null,0,{"$f":"IF(W497=\"\",\"\",IF(COUNTIF(W$2:$W497,W497)=1,Order_Salim(RANK(W497,$W$2:$W$21)),Order_Salim(RANK(W497,$W$2:$W$21))&\" مكرّر  \"))","v":""}]
[null,null,null,null,null,null,null,null,null,null,null,null,null,null,null,null,null,null,null,null,null,null,null,0,{"$f":"IF(W498=\"\",\"\",IF(COUNTIF(W$2:$W498,W498)=1,Order_Salim(RANK(W498,$W$2:$W$21)),Order_Salim(RANK(W498,$W$2:$W$21))&\" مكرّر  \"))","v":""}]
[null,null,null,null,null,null,null,null,null,null,null,null,null,null,null,null,null,null,null,null,null,null,null,0,{"$f":"IF(W499=\"\",\"\",IF(COUNTIF(W$2:$W499,W499)=1,Order_Salim(RANK(W499,$W$2:$W$21)),Order_Salim(RANK(W499,$W$2:$W$21))&\" مكرّر  \"))","v":""}]
[null,null,null,null,null,null,null,null,null,null,null,null,null,null,null,null,null,null,null,null,null,null,null,0,{"$f":"IF(W500=\"\",\"\",IF(COUNTIF(W$2:$W500,W500)=1,Order_Salim(RANK(W500,$W$2:$W$21)),Order_Salim(RANK(W500,$W$2:$W$21))&\" مكرّر  \"))","v":""}]
[null,null,null,null,null,null,null,null,null,null,null,null,null,null,null,null,null,null,null,null,null,null,null,0,{"$f":"IF(W501=\"\",\"\",IF(COUNTIF(W$2:$W501,W501)=1,Order_Salim(RANK(W501,$W$2:$W$21)),Order_Salim(RANK(W501,$W$2:$W$21))&\" مكرّر  \"))","v":""}]
[null,null,null,null,null,null,null,null,null,null,null,null,null,null,null,null,null,null,null,null,null,null,null,0,{"$f":"IF(W502=\"\",\"\",IF(COUNTIF(W$2:$W502,W502)=1,Order_Salim(RANK(W502,$W$2:$W$21)),Order_Salim(RANK(W502,$W$2:$W$21))&\" مكرّر  \"))","v":""}]
[null,null,null,null,null,null,null,null,null,null,null,null,null,null,null,null,null,null,null,null,null,null,null,0,{"$f":"IF(W503=\"\",\"\",IF(COUNTIF(W$2:$W503,W503)=1,Order_Salim(RANK(W503,$W$2:$W$21)),Order_Salim(RANK(W503,$W$2:$W$21))&\" مكرّر  \"))","v":""}]
[null,null,null,null,null,null,null,null,null,null,null,null,null,null,null,null,null,null,null,null,null,null,null,0,{"$f":"IF(W504=\"\",\"\",IF(COUNTIF(W$2:$W504,W504)=1,Order_Salim(RANK(W504,$W$2:$W$21)),Order_Salim(RANK(W504,$W$2:$W$21))&\" مكرّر  \"))","v":""}]
[null,null,null,null,null,null,null,null,null,null,null,null,null,null,null,null,null,null,null,null,null,null,null,0,{"$f":"IF(W505=\"\",\"\",IF(COUNTIF(W$2:$W505,W505)=1,Order_Salim(RANK(W505,$W$2:$W$21)),Order_Salim(RANK(W505,$W$2:$W$21))&\" مكرّر  \"))","v":""}]
[null,null,null,null,null,null,null,null,null,null,null,null,null,null,null,null,null,null,null,null,null,null,null,0,{"$f":"IF(W506=\"\",\"\",IF(COUNTIF(W$2:$W506,W506)=1,Order_Salim(RANK(W506,$W$2:$W$21)),Order_Salim(RANK(W506,$W$2:$W$21))&\" مكرّر  \"))","v":""}]
[null,null,null,null,null,null,null,null,null,null,null,null,null,null,null,null,null,null,null,null,null,null,null,0,{"$f":"IF(W507=\"\",\"\",IF(COUNTIF(W$2:$W507,W507)=1,Order_Salim(RANK(W507,$W$2:$W$21)),Order_Salim(RANK(W507,$W$2:$W$21))&\" مكرّر  \"))","v":""}]
[null,null,null,null,null,null,null,null,null,null,null,null,null,null,null,null,null,null,null,null,null,null,null,0,{"$f":"IF(W508=\"\",\"\",IF(COUNTIF(W$2:$W508,W508)=1,Order_Salim(RANK(W508,$W$2:$W$21)),Order_Salim(RANK(W508,$W$2:$W$21))&\" مكرّر  \"))","v":""}]
[null,null,null,null,null,null,null,null,null,null,null,null,null,null,null,null,null,null,null,null,null,null,null,0,{"$f":"IF(W509=\"\",\"\",IF(COUNTIF(W$2:$W509,W509)=1,Order_Salim(RANK(W509,$W$2:$W$21)),Order_Salim(RANK(W509,$W$2:$W$21))&\" مكرّر  \"))","v":""}]
[null,null,null,null,null,null,null,null,null,null,null,null,null,null,null,null,null,null,null,null,null,null,null,0,{"$f":"IF(W510=\"\",\"\",IF(COUNTIF(W$2:$W510,W510)=1,Order_Salim(RANK(W510,$W$2:$W$21)),Order_Salim(RANK(W510,$W$2:$W$21))&\" مكرّر  \"))","v":""}]
[null,null,null,null,null,null,null,null,null,null,null,null,null,null,null,null,null,null,null,null,null,null,null,0,{"$f":"IF(W511=\"\",\"\",IF(COUNTIF(W$2:$W511,W511)=1,Order_Salim(RANK(W511,$W$2:$W$21)),Order_Salim(RANK(W511,$W$2:$W$21))&\" مكرّر  \"))","v":""}]
[null,null,null,null,null,null,null,null,null,null,null,null,null,null,null,null,null,null,null,null,null,null,null,0,{"$f":"IF(W512=\"\",\"\",IF(COUNTIF(W$2:$W512,W512)=1,Order_Salim(RANK(W512,$W$2:$W$21)),Order_Salim(RANK(W512,$W$2:$W$21))&\" مكرّر  \"))","v":""}]
[null,null,null,null,null,null,null,null,null,null,null,null,null,null,null,null,null,null,null,null,null,null,null,0,{"$f":"IF(W513=\"\",\"\",IF(COUNTIF(W$2:$W513,W513)=1,Order_Salim(RANK(W513,$W$2:$W$21)),Order_Salim(RANK(W513,$W$2:$W$21))&\" مكرّر  \"))","v":""}]
[null,null,null,null,null,null,null,null,null,null,null,null,null,null,null,null,null,null,null,null,null,null,null,0,{"$f":"IF(W514=\"\",\"\",IF(COUNTIF(W$2:$W514,W514)=1,Order_Salim(RANK(W514,$W$2:$W$21)),Order_Salim(RANK(W514,$W$2:$W$21))&\" مكرّر  \"))","v":""}]
[null,null,null,null,null,null,null,null,null,null,null,null,null,null,null,null,null,null,null,null,null,null,null,{"$f":"W515/350","v":0},{"$f":"IF(W515=\"\",\"\",IF(COUNTIF(W$2:$W515,W515)=1,Order_Salim(RANK(W515,$W$2:$W$21)),Order_Salim(RANK(W515,$W$2:$W$21))&\" مكرّر  \"))","v":""}]
[null,null,null,null,null,null,null,null,null,null,null,null,null,null,null,null,null,null,null,null,null,null,null,0,{"$f":"IF(W516=\"\",\"\",IF(COUNTIF(W$2:$W516,W516)=1,Order_Salim(RANK(W516,$W$2:$W$21)),Order_Salim(RANK(W516,$W$2:$W$21))&\" مكرّر  \"))","v":""}]
[null,null,null,null,null,null,null,null,null,null,null,null,null,null,null,null,null,null,null,null,null,null,null,0,{"$f":"IF(W517=\"\",\"\",IF(COUNTIF(W$2:$W517,W517)=1,Order_Salim(RANK(W517,$W$2:$W$21)),Order_Salim(RANK(W517,$W$2:$W$21))&\" مكرّر  \"))","v":""}]
[null,null,null,null,null,null,null,null,null,null,null,null,null,null,null,null,null,null,null,null,null,null,null,0,{"$f":"IF(W518=\"\",\"\",IF(COUNTIF(W$2:$W518,W518)=1,Order_Salim(RANK(W518,$W$2:$W$21)),Order_Salim(RANK(W518,$W$2:$W$21))&\" مكرّر  \"))","v":""}]
[null,null,null,null,null,null,null,null,null,null,null,null,null,null,null,null,null,null,null,null,null,null,null,0,{"$f":"IF(W519=\"\",\"\",IF(COUNTIF(W$2:$W519,W519)=1,Order_Salim(RANK(W519,$W$2:$W$21)),Order_Salim(RANK(W519,$W$2:$W$21))&\" مكرّر  \"))","v":""}]
[null,null,null,null,null,null,null,null,null,null,null,null,null,null,null,null,null,null,null,null,null,null,null,0,{"$f":"IF(W520=\"\",\"\",IF(COUNTIF(W$2:$W520,W520)=1,Order_Salim(RANK(W520,$W$2:$W$21)),Order_Salim(RANK(W520,$W$2:$W$21))&\" مكرّر  \"))","v":""}]
[null,null,null,null,null,null,null,null,null,null,null,null,null,null,null,null,null,null,null,null,null,null,null,0,{"$f":"IF(W521=\"\",\"\",IF(COUNTIF(W$2:$W521,W521)=1,Order_Salim(RANK(W521,$W$2:$W$21)),Order_Salim(RANK(W521,$W$2:$W$21))&\" مكرّر  \"))","v":""}]
[null,null,null,null,null,null,null,null,null,null,null,null,null,null,null,null,null,null,null,null,null,null,null,0,{"$f":"IF(W522=\"\",\"\",IF(COUNTIF(W$2:$W522,W522)=1,Order_Salim(RANK(W522,$W$2:$W$21)),Order_Salim(RANK(W522,$W$2:$W$21))&\" مكرّر  \"))","v":""}]
[null,null,null,null,null,null,null,null,null,null,null,null,null,null,null,null,null,null,null,null,null,null,null,0,{"$f":"IF(W523=\"\",\"\",IF(COUNTIF(W$2:$W523,W523)=1,Order_Salim(RANK(W523,$W$2:$W$21)),Order_Salim(RANK(W523,$W$2:$W$21))&\" مكرّر  \"))","v":""}]
[null,null,null,null,null,null,null,null,null,null,null,null,null,null,null,null,null,null,null,null,null,null,null,0,{"$f":"IF(W524=\"\",\"\",IF(COUNTIF(W$2:$W524,W524)=1,Order_Salim(RANK(W524,$W$2:$W$21)),Order_Salim(RANK(W524,$W$2:$W$21))&\" مكرّر  \"))","v":""}]
[null,null,null,null,null,null,null,null,null,null,null,null,null,null,null,null,null,null,null,null,null,null,null,0,{"$f":"IF(W525=\"\",\"\",IF(COUNTIF(W$2:$W525,W525)=1,Order_Salim(RANK(W525,$W$2:$W$21)),Order_Salim(RANK(W525,$W$2:$W$21))&\" مكرّر  \"))","v":""}]
[null,null,null,null,null,null,null,null,null,null,null,null,null,null,null,null,null,null,null,null,null,null,null,0,{"$f":"IF(W526=\"\",\"\",IF(COUNTIF(W$2:$W526,W526)=1,Order_Salim(RANK(W526,$W$2:$W$21)),Order_Salim(RANK(W526,$W$2:$W$21))&\" مكرّر  \"))","v":""}]
[null,null,null,null,null,null,null,null,null,null,null,null,null,null,null,null,null,null,null,null,null,null,null,0,{"$f":"IF(W527=\"\",\"\",IF(COUNTIF(W$2:$W527,W527)=1,Order_Salim(RANK(W527,$W$2:$W$21)),Order_Salim(RANK(W527,$W$2:$W$21))&\" مكرّر  \"))","v":""}]
[null,null,null,null,null,null,null,null,null,null,null,null,null,null,null,null,null,null,null,null,null,null,null,0,{"$f":"IF(W528=\"\",\"\",IF(COUNTIF(W$2:$W528,W528)=1,Order_Salim(RANK(W528,$W$2:$W$21)),Order_Salim(RANK(W528,$W$2:$W$21))&\" مكرّر  \"))","v":""}]
[null,null,null,null,null,null,null,null,null,null,null,null,null,null,null,null,null,null,null,null,null,null,null,0,{"$f":"IF(W529=\"\",\"\",IF(COUNTIF(W$2:$W529,W529)=1,Order_Salim(RANK(W529,$W$2:$W$21)),Order_Salim(RANK(W529,$W$2:$W$21))&\" مكرّر  \"))","v":""}]
[null,null,null,null,null,null,null,null,null,null,null,null,null,null,null,null,null,null,null,null,null,null,null,0,{"$f":"IF(W530=\"\",\"\",IF(COUNTIF(W$2:$W530,W530)=1,Order_Salim(RANK(W530,$W$2:$W$21)),Order_Salim(RANK(W530,$W$2:$W$21))&\" مكرّر  \"))","v":""}]
[null,null,null,null,null,null,null,null,null,null,null,null,null,null,null,null,null,null,null,null,null,null,null,0,{"$f":"IF(W531=\"\",\"\",IF(COUNTIF(W$2:$W531,W531)=1,Order_Salim(RANK(W531,$W$2:$W$21)),Order_Salim(RANK(W531,$W$2:$W$21))&\" مكرّر  \"))","v":""}]
[null,null,null,null,null,null,null,null,null,null,null,null,null,null,null,null,null,null,null,null,null,null,null,0,{"$f":"IF(W532=\"\",\"\",IF(COUNTIF(W$2:$W532,W532)=1,Order_Salim(RANK(W532,$W$2:$W$21)),Order_Salim(RANK(W532,$W$2:$W$21))&\" مكرّر  \"))","v":""}]
[null,null,null,null,null,null,null,null,null,null,null,null,null,null,null,null,null,null,null,null,null,null,null,0,{"$f":"IF(W533=\"\",\"\",IF(COUNTIF(W$2:$W533,W533)=1,Order_Salim(RANK(W533,$W$2:$W$21)),Order_Salim(RANK(W533,$W$2:$W$21))&\" مكرّر  \"))","v":""}]
[null,null,null,null,null,null,null,null,null,null,null,null,null,null,null,null,null,null,null,null,null,null,null,0,{"$f":"IF(W534=\"\",\"\",IF(COUNTIF(W$2:$W534,W534)=1,Order_Salim(RANK(W534,$W$2:$W$21)),Order_Salim(RANK(W534,$W$2:$W$21))&\" مكرّر  \"))","v":""}]
[null,null,null,null,null,null,null,null,null,null,null,null,null,null,null,null,null,null,null,null,null,null,null,0,{"$f":"IF(W535=\"\",\"\",IF(COUNTIF(W$2:$W535,W535)=1,Order_Salim(RANK(W535,$W$2:$W$21)),Order_Salim(RANK(W535,$W$2:$W$21))&\" مكرّر  \"))","v":""}]
[null,null,null,null,null,null,null,null,null,null,null,null,null,null,null,null,null,null,null,null,null,null,null,null,{"$f":"IF(W536=\"\",\"\",IF(COUNTIF(W$2:$W536,W536)=1,Order_Salim(RANK(W536,$W$2:$W$21)),Order_Salim(RANK(W536,$W$2:$W$21))&\" مكرّر  \"))","v":""}]
[null,null,null,null,null,null,null,null,null,null,null,null,null,null,null,null,null,null,null,null,null,null,null,null,{"$f":"IF(W537=\"\",\"\",IF(COUNTIF(W$2:$W537,W537)=1,Order_Salim(RANK(W537,$W$2:$W$21)),Order_Salim(RANK(W537,$W$2:$W$21))&\" مكرّر  \"))","v":""}]
[null,null,null,null,null,null,null,null,null,null,null,null,null,null,null,null,null,null,null,null,null,null,null,null,{"$f":"IF(W538=\"\",\"\",IF(COUNTIF(W$2:$W538,W538)=1,Order_Salim(RANK(W538,$W$2:$W$21)),Order_Salim(RANK(W538,$W$2:$W$21))&\" مكرّر  \"))","v":""}]
[null,null,null,null,null,null,null,null,null,null,null,null,null,null,null,null,null,null,null,null,null,null,null,null,{"$f":"IF(W539=\"\",\"\",IF(COUNTIF(W$2:$W539,W539)=1,Order_Salim(RANK(W539,$W$2:$W$21)),Order_Salim(RANK(W539,$W$2:$W$21))&\" مكرّر  \"))","v":""}]
[null,null,null,null,null,null,null,null,null,null,null,null,null,null,null,null,null,null,null,null,null,null,null,null,{"$f":"IF(W540=\"\",\"\",IF(COUNTIF(W$2:$W540,W540)=1,Order_Salim(RANK(W540,$W$2:$W$21)),Order_Salim(RANK(W540,$W$2:$W$21))&\" مكرّر  \"))","v":""}]